Organisation Name,Organisation Code,Unique Ref No,Effective Date,Directorate  where expenditure incurred,Supplier name ,Payment Date,Net Amount,Purpose of Spend,Procurement Classification (Higher Level),Procurement Classification (Lower Level),Capital/Revenue
Walsall Council,http://opendatacommunities.org/id/metropolitan-district-council/walsall,WC65-1,29/02/2016,Economy & Environment,118 PHARMACY LIMITED,16/02/2016,300,71007-CONTRIBUTION TO PCT,PUBLIC HEALTH BUSINESS SUPPORT,Third Party Payments,Revenue
Walsall Council,http://opendatacommunities.org/id/metropolitan-district-council/walsall,WC65-2,29/02/2016,Childrens,247 CARS (WILLENHALL) LIMITED,01/02/2016,468,52000-WITH DRIVER-HIRE OF VEHICLES,FOSTERING SUPPORT TEAM,Transport,Revenue
Walsall Council,http://opendatacommunities.org/id/metropolitan-district-council/walsall,WC65-3,29/02/2016,Childrens,247 CARS (WILLENHALL) LIMITED,24/02/2016,763.2,52000-WITH DRIVER-HIRE OF VEHICLES,SCHOOL TRANSPORT,Transport,Revenue
Walsall Council,http://opendatacommunities.org/id/metropolitan-district-council/walsall,WC65-4,29/02/2016,Childrens,247 CARS (WILLENHALL) LIMITED,01/02/2016,792,52000-WITH DRIVER-HIRE OF VEHICLES,FOSTERING SUPPORT TEAM,Transport,Revenue
Walsall Council,http://opendatacommunities.org/id/metropolitan-district-council/walsall,WC65-5,29/02/2016,Childrens,247 CARS (WILLENHALL) LIMITED,19/02/2016,"8,352.00",52000-WITH DRIVER-HIRE OF VEHICLES,SCHOOL TRANSPORT,Transport,Revenue
Walsall Council,http://opendatacommunities.org/id/metropolitan-district-council/walsall,WC65-6,29/02/2016,Change and Governance,2ND BROWNHILLS-15TH WALSALL SCOUT GROUP,05/02/2016,"1,575.00",62515-MISCELLANEOUS SUPPLIES,AREA 1 - BROWNHILLS,Supplies & Services,Revenue
Walsall Council,http://opendatacommunities.org/id/metropolitan-district-council/walsall,WC65-7,29/02/2016,Childrens,39 ESSEX STREET LLP PFA,16/02/2016,"1,055.70",73014-LEGAL FEES-PRIV CONTRACTOR FEES,PERFORMANCE & OUTCOMES TEAM (C&YP),Third Party Payments,Revenue
Walsall Council,http://opendatacommunities.org/id/metropolitan-district-council/walsall,WC65-8,29/02/2016,Childrens,39 ESSEX STREET LLP PFA,23/02/2016,"1,092.00",63116-EXTERNAL BARRISTERS-SERVICES-FEES,PERFORMANCE & OUTCOMES TEAM (C&YP),Supplies & Services,Revenue
Walsall Council,http://opendatacommunities.org/id/metropolitan-district-council/walsall,WC65-9,29/02/2016,Change and Governance,39 ESSEX STREET LLP PFA,25/02/2016,"21,413.95",63000-PROFESSIONAL FEES AND SERVICES,CORPORATE EXPENSES,Supplies & Services,Revenue
Walsall Council,http://opendatacommunities.org/id/metropolitan-district-council/walsall,WC65-10,29/02/2016,Childrens,5 CARE SERVICES LTD,16/02/2016,960,63000-PROFESSIONAL FEES AND SERVICES,DIRECTLY COMMISSIONED NURSING SERVICES,Supplies & Services,Revenue
Walsall Council,http://opendatacommunities.org/id/metropolitan-district-council/walsall,WC65-11,29/02/2016,Social Care & Inclusion,5 CARE SERVICES LTD,03/02/2016,"29,134.54",73372-DOMICILIARY CARE,OP COMMISSIONING,Third Party Payments,Revenue
Walsall Council,http://opendatacommunities.org/id/metropolitan-district-council/walsall,WC65-12,29/02/2016,Change and Governance,A D T FIRE AND SECURITY PLC,17/02/2016,-961.09,73002-SECURITY-PRIV CONTRACTOR FEES,CHALLENGE BUILDING,Third Party Payments,Revenue
Walsall Council,http://opendatacommunities.org/id/metropolitan-district-council/walsall,WC65-13,29/02/2016,Change and Governance,A D T FIRE AND SECURITY PLC,02/02/2016,232,73002-SECURITY-PRIV CONTRACTOR FEES,CHALLENGE BUILDING,Third Party Payments,Revenue
Walsall Council,http://opendatacommunities.org/id/metropolitan-district-council/walsall,WC65-14,29/02/2016,Change and Governance,A D T FIRE AND SECURITY PLC,16/02/2016,247.48,73002-SECURITY-PRIV CONTRACTOR FEES,CENTRALISED MAINTENANCE,Third Party Payments,Revenue
Walsall Council,http://opendatacommunities.org/id/metropolitan-district-council/walsall,WC65-15,29/02/2016,Change and Governance,A D T FIRE AND SECURITY PLC,01/02/2016,332.69,60008-MAINTENANCE-FURNITURE & EQUIPMENT,ACCOMMODATION SERVICES MANAGEMENT,Supplies & Services,Revenue
Walsall Council,http://opendatacommunities.org/id/metropolitan-district-council/walsall,WC65-16,29/02/2016,Change and Governance,A D T FIRE AND SECURITY PLC,17/02/2016,461,73002-SECURITY-PRIV CONTRACTOR FEES,CHALLENGE BUILDING,Third Party Payments,Revenue
Walsall Council,http://opendatacommunities.org/id/metropolitan-district-council/walsall,WC65-17,29/02/2016,Change and Governance,A D T FIRE AND SECURITY PLC,01/02/2016,509,60008-MAINTENANCE-FURNITURE & EQUIPMENT,ACCOMMODATION SERVICES MANAGEMENT,Supplies & Services,Revenue
Walsall Council,http://opendatacommunities.org/id/metropolitan-district-council/walsall,WC65-18,29/02/2016,Change and Governance,A D T FIRE AND SECURITY PLC,01/02/2016,571.25,60008-MAINTENANCE-FURNITURE & EQUIPMENT,ACCOMMODATION SERVICES MANAGEMENT,Supplies & Services,Revenue
Walsall Council,http://opendatacommunities.org/id/metropolitan-district-council/walsall,WC65-19,29/02/2016,Change and Governance,A D T FIRE AND SECURITY PLC,01/02/2016,572.69,60008-MAINTENANCE-FURNITURE & EQUIPMENT,ACCOMMODATION SERVICES MANAGEMENT,Supplies & Services,Revenue
Walsall Council,http://opendatacommunities.org/id/metropolitan-district-council/walsall,WC65-20,29/02/2016,Change and Governance,A D T FIRE AND SECURITY PLC,02/02/2016,748.7,01006-SITE WORKS MAIN CONTRACTORS,CFR 804 FIRE RISK ASSESSMENT WORKS,Capital,Capital
Walsall Council,http://opendatacommunities.org/id/metropolitan-district-council/walsall,WC65-21,29/02/2016,Economy & Environment,A D T FIRE AND SECURITY PLC,08/02/2016,766.71,60008-MAINTENANCE-FURNITURE & EQUIPMENT,ARBORETUM,Supplies & Services,Revenue
Walsall Council,http://opendatacommunities.org/id/metropolitan-district-council/walsall,WC65-22,29/02/2016,Economy & Environment,A D T FIRE AND SECURITY PLC,08/02/2016,793.54,60008-MAINTENANCE-FURNITURE & EQUIPMENT,ARBORETUM,Supplies & Services,Revenue
Walsall Council,http://opendatacommunities.org/id/metropolitan-district-council/walsall,WC65-23,29/02/2016,Change and Governance,A D T FIRE AND SECURITY PLC,19/02/2016,857.65,"40000-REPAIRS,ALTERATIONS & MAINTENANCE-PREM",CENTRALISED MAINTENANCE,Premises,Revenue
Walsall Council,http://opendatacommunities.org/id/metropolitan-district-council/walsall,WC65-24,29/02/2016,Change and Governance,A D T FIRE AND SECURITY PLC,17/02/2016,"1,037.64",73002-SECURITY-PRIV CONTRACTOR FEES,CHALLENGE BUILDING,Third Party Payments,Revenue
Walsall Council,http://opendatacommunities.org/id/metropolitan-district-council/walsall,WC65-25,29/02/2016,Change and Governance,A D T FIRE AND SECURITY PLC,02/02/2016,"1,860.10",73002-SECURITY-PRIV CONTRACTOR FEES,CENTRALISED MAINTENANCE,Third Party Payments,Revenue
Walsall Council,http://opendatacommunities.org/id/metropolitan-district-council/walsall,WC65-26,29/02/2016,Social Care & Inclusion,A F BLAKEMORE & SON LTD,03/02/2016,229.79,61016-FOOD AND BEVERAGES-PROVISIONS,BROADWAY NORTH RECOVERY COLLEGE,Supplies & Services,Revenue
Walsall Council,http://opendatacommunities.org/id/metropolitan-district-council/walsall,WC65-27,29/02/2016,Economy & Environment,A F BLAKEMORE & SON LTD,05/02/2016,266.77,61009-BEVERAGES-PROVISIONS,BLOXWICH LEISURE CENTRE,Supplies & Services,Revenue
Walsall Council,http://opendatacommunities.org/id/metropolitan-district-council/walsall,WC65-28,29/02/2016,Social Care & Inclusion,A F BLAKEMORE & SON LTD,03/02/2016,274.04,60500-GENERAL MATERIALS,GOSCOTE,Supplies & Services,Revenue
Walsall Council,http://opendatacommunities.org/id/metropolitan-district-council/walsall,WC65-29,29/02/2016,Economy & Environment,A F BLAKEMORE & SON LTD,18/02/2016,279.32,61008-CONFECTIONERY/SNACKS-PROVISIONS,OAK PARK,Supplies & Services,Revenue
Walsall Council,http://opendatacommunities.org/id/metropolitan-district-council/walsall,WC65-30,29/02/2016,Social Care & Inclusion,A F BLAKEMORE & SON LTD,15/02/2016,292.58,60500-GENERAL MATERIALS,GOSCOTE,Supplies & Services,Revenue
Walsall Council,http://opendatacommunities.org/id/metropolitan-district-council/walsall,WC65-31,29/02/2016,Social Care & Inclusion,A F BLAKEMORE & SON LTD,08/02/2016,412.06,61016-FOOD AND BEVERAGES-PROVISIONS,REABLEMENT TEAM - HOLLY BANK,Supplies & Services,Revenue
Walsall Council,http://opendatacommunities.org/id/metropolitan-district-council/walsall,WC65-32,29/02/2016,Social Care & Inclusion,A F BLAKEMORE & SON LTD,05/02/2016,433.95,61016-FOOD AND BEVERAGES-PROVISIONS,REABLEMENT TEAM - HOLLY BANK,Supplies & Services,Revenue
Walsall Council,http://opendatacommunities.org/id/metropolitan-district-council/walsall,WC65-33,29/02/2016,Social Care & Inclusion,A F BLAKEMORE & SON LTD,03/02/2016,580.52,60500-GENERAL MATERIALS,GOSCOTE,Supplies & Services,Revenue
Walsall Council,http://opendatacommunities.org/id/metropolitan-district-council/walsall,WC65-34,29/02/2016,Economy & Environment,A F BLAKEMORE & SON LTD,15/02/2016,782.1,61008-CONFECTIONERY/SNACKS-PROVISIONS,OAK PARK,Supplies & Services,Revenue
Walsall Council,http://opendatacommunities.org/id/metropolitan-district-council/walsall,WC65-35,29/02/2016,Childrens,REDACTED,15/02/2016,349.76,74006-HOLIDAY/CHRISTMAS ALLOWANCE-FOSTER CARERS-OTH AGENCY PROVISION,INTERNAL FOSTER CARE PROVISION,Third Party Payments,Revenue
Walsall Council,http://opendatacommunities.org/id/metropolitan-district-council/walsall,WC65-36,29/02/2016,Economy & Environment,A KARIMS CHUCKERY PHARMACY,16/02/2016,300,71007-CONTRIBUTION TO PCT,PUBLIC HEALTH BUSINESS SUPPORT,Third Party Payments,Revenue
Walsall Council,http://opendatacommunities.org/id/metropolitan-district-council/walsall,WC65-37,29/02/2016,Economy & Environment,A KARIMS CHUCKERY PHARMACY,18/02/2016,786.08,63000-PROFESSIONAL FEES AND SERVICES,HEALTH CHECKS,Supplies & Services,Revenue
Walsall Council,http://opendatacommunities.org/id/metropolitan-district-council/walsall,WC65-38,29/02/2016,Childrens,REDACTED,02/02/2016,464,76000-TRANSFER PAYMENTS - SOCIAL SERVICES CLIENTS,TRANSITION AND LEAVING CARE,Transfer Payments,Revenue
Walsall Council,http://opendatacommunities.org/id/metropolitan-district-council/walsall,WC65-39,29/02/2016,Childrens,REDACTED,16/02/2016,464,76000-TRANSFER PAYMENTS - SOCIAL SERVICES CLIENTS,TRANSITION AND LEAVING CARE,Transfer Payments,Revenue
Walsall Council,http://opendatacommunities.org/id/metropolitan-district-council/walsall,WC65-40,29/02/2016,Childrens,REDACTED,01/02/2016,498.89,62515-MISCELLANEOUS SUPPLIES,INTERNAL FOSTER CARE PROVISION,Supplies & Services,Revenue
Walsall Council,http://opendatacommunities.org/id/metropolitan-district-council/walsall,WC65-41,29/02/2016,Childrens,REDACTED,24/02/2016,298.16,74023-SHORT TERM BREAKS,INTERNAL FOSTER CARE PROVISION,Third Party Payments,Revenue
Walsall Council,http://opendatacommunities.org/id/metropolitan-district-council/walsall,WC65-42,29/02/2016,Childrens,A1 EXPRESS TAXIS,17/02/2016,280,52001-HIRE OF VEHICLES,CHILDRENS TAXI BUDGET,Transport,Revenue
Walsall Council,http://opendatacommunities.org/id/metropolitan-district-council/walsall,WC65-43,29/02/2016,Childrens,A1 EXPRESS TAXIS,17/02/2016,972,52001-HIRE OF VEHICLES,CHILDRENS TAXI BUDGET,Transport,Revenue
Walsall Council,http://opendatacommunities.org/id/metropolitan-district-council/walsall,WC65-44,29/02/2016,Childrens,REDACTED,09/02/2016,345.24,76422-DIRECT PAYMENTS TO SOCIAL SERVICES CLIENTS,FAMILY SUPPORT - DIRECT PAYMENTS,Transfer Payments,Revenue
Walsall Council,http://opendatacommunities.org/id/metropolitan-district-council/walsall,WC65-45,29/02/2016,Childrens,ABACUS FOSTERING LTD,15/02/2016,"3,935.71",74037-INDEPENDENT FOSTER CARE-OTH AGENCY PROVISION,EXTERNAL FOSTER CARE PROVISION,Third Party Payments,Revenue
Walsall Council,http://opendatacommunities.org/id/metropolitan-district-council/walsall,WC65-46,29/02/2016,Childrens,ABACUS FOSTERING LTD,01/02/2016,"4,207.14",74037-INDEPENDENT FOSTER CARE-OTH AGENCY PROVISION,EXTERNAL FOSTER CARE PROVISION,Third Party Payments,Revenue
Walsall Council,http://opendatacommunities.org/id/metropolitan-district-council/walsall,WC65-47,29/02/2016,Childrens,REDACTED,15/02/2016,650.92,74006-HOLIDAY/CHRISTMAS ALLOWANCE-FOSTER CARERS-OTH AGENCY PROVISION,INTERNAL FOSTER CARE PROVISION,Third Party Payments,Revenue
Walsall Council,http://opendatacommunities.org/id/metropolitan-district-council/walsall,WC65-48,29/02/2016,Social Care & Inclusion,ABBEY COURT NURSING & RESIDEN,24/02/2016,"1,547.36",73373-RESIDENTIAL & NURSING CARE PLACEMENTS,OP COMMISSIONING,Third Party Payments,Revenue
Walsall Council,http://opendatacommunities.org/id/metropolitan-district-council/walsall,WC65-49,29/02/2016,Economy & Environment,ABBEY ENGLAND LIMITED,08/02/2016,236.71,60500-GENERAL MATERIALS,LEATHER MUSEUM,Supplies & Services,Revenue
Walsall Council,http://opendatacommunities.org/id/metropolitan-district-council/walsall,WC65-50,29/02/2016,Childrens,ABC FOSTERING,12/02/2016,"2,980.34",74037-INDEPENDENT FOSTER CARE-OTH AGENCY PROVISION,EXTERNAL FOSTER CARE PROVISION,Third Party Payments,Revenue
Walsall Council,http://opendatacommunities.org/id/metropolitan-district-council/walsall,WC65-51,29/02/2016,Childrens,ABC FOSTERING,12/02/2016,"2,980.34",74037-INDEPENDENT FOSTER CARE-OTH AGENCY PROVISION,EXTERNAL FOSTER CARE PROVISION,Third Party Payments,Revenue
Walsall Council,http://opendatacommunities.org/id/metropolitan-district-council/walsall,WC65-52,29/02/2016,Childrens,ABC FOSTERING,12/02/2016,"3,137.20",74037-INDEPENDENT FOSTER CARE-OTH AGENCY PROVISION,EXTERNAL FOSTER CARE PROVISION,Third Party Payments,Revenue
Walsall Council,http://opendatacommunities.org/id/metropolitan-district-council/walsall,WC65-53,29/02/2016,Childrens,ABC FOSTERING,12/02/2016,"3,137.20",74037-INDEPENDENT FOSTER CARE-OTH AGENCY PROVISION,EXTERNAL FOSTER CARE PROVISION,Third Party Payments,Revenue
Walsall Council,http://opendatacommunities.org/id/metropolitan-district-council/walsall,WC65-54,29/02/2016,Childrens,ABC FOSTERING,12/02/2016,"3,176.48",74037-INDEPENDENT FOSTER CARE-OTH AGENCY PROVISION,EXTERNAL FOSTER CARE PROVISION,Third Party Payments,Revenue
Walsall Council,http://opendatacommunities.org/id/metropolitan-district-council/walsall,WC65-55,29/02/2016,Childrens,ABC FOSTERING,17/02/2016,"3,176.48",74037-INDEPENDENT FOSTER CARE-OTH AGENCY PROVISION,EXTERNAL FOSTER CARE PROVISION,Third Party Payments,Revenue
Walsall Council,http://opendatacommunities.org/id/metropolitan-district-council/walsall,WC65-56,29/02/2016,Childrens,ABC FOSTERING,12/02/2016,"3,239.50",74037-INDEPENDENT FOSTER CARE-OTH AGENCY PROVISION,EXTERNAL FOSTER CARE PROVISION,Third Party Payments,Revenue
Walsall Council,http://opendatacommunities.org/id/metropolitan-district-council/walsall,WC65-57,29/02/2016,Childrens,ABC FOSTERING,17/02/2016,"3,239.50",74037-INDEPENDENT FOSTER CARE-OTH AGENCY PROVISION,EXTERNAL FOSTER CARE PROVISION,Third Party Payments,Revenue
Walsall Council,http://opendatacommunities.org/id/metropolitan-district-council/walsall,WC65-58,29/02/2016,Childrens,ABC FOSTERING,12/02/2016,"3,343.57",74037-INDEPENDENT FOSTER CARE-OTH AGENCY PROVISION,EXTERNAL FOSTER CARE PROVISION,Third Party Payments,Revenue
Walsall Council,http://opendatacommunities.org/id/metropolitan-district-council/walsall,WC65-59,29/02/2016,Childrens,ABC FOSTERING,17/02/2016,"3,343.57",74037-INDEPENDENT FOSTER CARE-OTH AGENCY PROVISION,EXTERNAL FOSTER CARE PROVISION,Third Party Payments,Revenue
Walsall Council,http://opendatacommunities.org/id/metropolitan-district-council/walsall,WC65-60,29/02/2016,Childrens,ABC FOSTERING,12/02/2016,"3,410.00",74037-INDEPENDENT FOSTER CARE-OTH AGENCY PROVISION,EXTERNAL FOSTER CARE PROVISION,Third Party Payments,Revenue
Walsall Council,http://opendatacommunities.org/id/metropolitan-district-council/walsall,WC65-61,29/02/2016,Childrens,ABC FOSTERING,12/02/2016,"3,410.00",74037-INDEPENDENT FOSTER CARE-OTH AGENCY PROVISION,EXTERNAL FOSTER CARE PROVISION,Third Party Payments,Revenue
Walsall Council,http://opendatacommunities.org/id/metropolitan-district-council/walsall,WC65-62,29/02/2016,Childrens,ABC TEACHERS LIMITED,01/02/2016,692.97,34305-AGENCY STAFF-EMPLOYEES,ACCESS TEAM,Employees,Revenue
Walsall Council,http://opendatacommunities.org/id/metropolitan-district-council/walsall,WC65-63,29/02/2016,Childrens,ABC TEACHERS LIMITED,03/02/2016,692.97,34305-AGENCY STAFF-EMPLOYEES,ACCESS TEAM,Employees,Revenue
Walsall Council,http://opendatacommunities.org/id/metropolitan-district-council/walsall,WC65-64,29/02/2016,Childrens,ABC TEACHERS LIMITED,08/02/2016,692.97,34305-AGENCY STAFF-EMPLOYEES,ACCESS TEAM,Employees,Revenue
Walsall Council,http://opendatacommunities.org/id/metropolitan-district-council/walsall,WC65-65,29/02/2016,Childrens,ABC TEACHERS LIMITED,16/02/2016,692.97,34305-AGENCY STAFF-EMPLOYEES,ACCESS TEAM,Employees,Revenue
Walsall Council,http://opendatacommunities.org/id/metropolitan-district-council/walsall,WC65-66,29/02/2016,Childrens,ABC TEACHERS LIMITED,23/02/2016,692.97,34305-AGENCY STAFF-EMPLOYEES,ACCESS TEAM,Employees,Revenue
Walsall Council,http://opendatacommunities.org/id/metropolitan-district-council/walsall,WC65-67,29/02/2016,Social Care & Inclusion,REDACTED,09/02/2016,"2,357.99",76422-DIRECT PAYMENTS TO SOCIAL SERVICES CLIENTS,LD COMMISSIONING,Transfer Payments,Revenue
Walsall Council,http://opendatacommunities.org/id/metropolitan-district-council/walsall,WC65-68,29/02/2016,Childrens,ABLEWELL CARS,10/02/2016,742,52000-WITH DRIVER-HIRE OF VEHICLES,SCHOOL TRANSPORT,Transport,Revenue
Walsall Council,http://opendatacommunities.org/id/metropolitan-district-council/walsall,WC65-69,29/02/2016,Social Care & Inclusion,ACCORD HOUSING ASSOCIATION LTD#135,03/02/2016,-569.07,73374-SUPPORTED & OTHER ACCOMMODATION,LD COMMISSIONING,Third Party Payments,Revenue
Walsall Council,http://opendatacommunities.org/id/metropolitan-district-council/walsall,WC65-70,29/02/2016,Social Care & Inclusion,ACCORD HOUSING ASSOCIATION LTD#135,03/02/2016,271.68,73374-SUPPORTED & OTHER ACCOMMODATION,OP COMMISSIONING,Third Party Payments,Revenue
Walsall Council,http://opendatacommunities.org/id/metropolitan-district-council/walsall,WC65-71,29/02/2016,Social Care & Inclusion,ACCORD HOUSING ASSOCIATION LTD#135,12/02/2016,273.06,73374-SUPPORTED & OTHER ACCOMMODATION,OP COMMISSIONING,Third Party Payments,Revenue
Walsall Council,http://opendatacommunities.org/id/metropolitan-district-council/walsall,WC65-72,29/02/2016,Social Care & Inclusion,ACCORD HOUSING ASSOCIATION LTD#135,09/02/2016,317.96,73373-RESIDENTIAL & NURSING CARE PLACEMENTS,OP COMMISSIONING,Third Party Payments,Revenue
Walsall Council,http://opendatacommunities.org/id/metropolitan-district-council/walsall,WC65-73,29/02/2016,Social Care & Inclusion,ACCORD HOUSING ASSOCIATION LTD#135,09/02/2016,317.96,73373-RESIDENTIAL & NURSING CARE PLACEMENTS,LD COMMISSIONING,Third Party Payments,Revenue
Walsall Council,http://opendatacommunities.org/id/metropolitan-district-council/walsall,WC65-74,29/02/2016,Social Care & Inclusion,ACCORD HOUSING ASSOCIATION LTD#135,09/02/2016,317.96,73373-RESIDENTIAL & NURSING CARE PLACEMENTS,LD COMMISSIONING,Third Party Payments,Revenue
Walsall Council,http://opendatacommunities.org/id/metropolitan-district-council/walsall,WC65-75,29/02/2016,Social Care & Inclusion,ACCORD HOUSING ASSOCIATION LTD#135,09/02/2016,317.96,73373-RESIDENTIAL & NURSING CARE PLACEMENTS,OP COMMISSIONING,Third Party Payments,Revenue
Walsall Council,http://opendatacommunities.org/id/metropolitan-district-council/walsall,WC65-76,29/02/2016,Social Care & Inclusion,ACCORD HOUSING ASSOCIATION LTD#135,09/02/2016,317.96,73373-RESIDENTIAL & NURSING CARE PLACEMENTS,OP COMMISSIONING,Third Party Payments,Revenue
Walsall Council,http://opendatacommunities.org/id/metropolitan-district-council/walsall,WC65-77,29/02/2016,Social Care & Inclusion,ACCORD HOUSING ASSOCIATION LTD#135,09/02/2016,317.96,73373-RESIDENTIAL & NURSING CARE PLACEMENTS,OP COMMISSIONING,Third Party Payments,Revenue
Walsall Council,http://opendatacommunities.org/id/metropolitan-district-council/walsall,WC65-78,29/02/2016,Social Care & Inclusion,ACCORD HOUSING ASSOCIATION LTD#135,09/02/2016,317.96,73373-RESIDENTIAL & NURSING CARE PLACEMENTS,OP COMMISSIONING,Third Party Payments,Revenue
Walsall Council,http://opendatacommunities.org/id/metropolitan-district-council/walsall,WC65-79,29/02/2016,Social Care & Inclusion,ACCORD HOUSING ASSOCIATION LTD#135,09/02/2016,317.96,73373-RESIDENTIAL & NURSING CARE PLACEMENTS,OP COMMISSIONING,Third Party Payments,Revenue
Walsall Council,http://opendatacommunities.org/id/metropolitan-district-council/walsall,WC65-80,29/02/2016,Social Care & Inclusion,ACCORD HOUSING ASSOCIATION LTD#135,09/02/2016,317.96,73373-RESIDENTIAL & NURSING CARE PLACEMENTS,OP COMMISSIONING,Third Party Payments,Revenue
Walsall Council,http://opendatacommunities.org/id/metropolitan-district-council/walsall,WC65-81,29/02/2016,Social Care & Inclusion,ACCORD HOUSING ASSOCIATION LTD#135,09/02/2016,317.96,73373-RESIDENTIAL & NURSING CARE PLACEMENTS,OP COMMISSIONING,Third Party Payments,Revenue
Walsall Council,http://opendatacommunities.org/id/metropolitan-district-council/walsall,WC65-82,29/02/2016,Social Care & Inclusion,ACCORD HOUSING ASSOCIATION LTD#135,09/02/2016,317.96,73373-RESIDENTIAL & NURSING CARE PLACEMENTS,OP COMMISSIONING,Third Party Payments,Revenue
Walsall Council,http://opendatacommunities.org/id/metropolitan-district-council/walsall,WC65-83,29/02/2016,Social Care & Inclusion,ACCORD HOUSING ASSOCIATION LTD#135,09/02/2016,317.96,73373-RESIDENTIAL & NURSING CARE PLACEMENTS,OP COMMISSIONING,Third Party Payments,Revenue
Walsall Council,http://opendatacommunities.org/id/metropolitan-district-council/walsall,WC65-84,29/02/2016,Social Care & Inclusion,ACCORD HOUSING ASSOCIATION LTD#135,09/02/2016,317.96,73373-RESIDENTIAL & NURSING CARE PLACEMENTS,OP COMMISSIONING,Third Party Payments,Revenue
Walsall Council,http://opendatacommunities.org/id/metropolitan-district-council/walsall,WC65-85,29/02/2016,Social Care & Inclusion,ACCORD HOUSING ASSOCIATION LTD#135,09/02/2016,317.96,73373-RESIDENTIAL & NURSING CARE PLACEMENTS,OP COMMISSIONING,Third Party Payments,Revenue
Walsall Council,http://opendatacommunities.org/id/metropolitan-district-council/walsall,WC65-86,29/02/2016,Social Care & Inclusion,ACCORD HOUSING ASSOCIATION LTD#135,09/02/2016,317.96,73373-RESIDENTIAL & NURSING CARE PLACEMENTS,OP COMMISSIONING,Third Party Payments,Revenue
Walsall Council,http://opendatacommunities.org/id/metropolitan-district-council/walsall,WC65-87,29/02/2016,Social Care & Inclusion,ACCORD HOUSING ASSOCIATION LTD#135,09/02/2016,317.96,73373-RESIDENTIAL & NURSING CARE PLACEMENTS,OP COMMISSIONING,Third Party Payments,Revenue
Walsall Council,http://opendatacommunities.org/id/metropolitan-district-council/walsall,WC65-88,29/02/2016,Social Care & Inclusion,ACCORD HOUSING ASSOCIATION LTD#135,09/02/2016,317.96,73373-RESIDENTIAL & NURSING CARE PLACEMENTS,OP COMMISSIONING,Third Party Payments,Revenue
Walsall Council,http://opendatacommunities.org/id/metropolitan-district-council/walsall,WC65-89,29/02/2016,Social Care & Inclusion,ACCORD HOUSING ASSOCIATION LTD#135,09/02/2016,317.96,73373-RESIDENTIAL & NURSING CARE PLACEMENTS,OP COMMISSIONING,Third Party Payments,Revenue
Walsall Council,http://opendatacommunities.org/id/metropolitan-district-council/walsall,WC65-90,29/02/2016,Social Care & Inclusion,ACCORD HOUSING ASSOCIATION LTD#135,09/02/2016,317.96,73373-RESIDENTIAL & NURSING CARE PLACEMENTS,OP COMMISSIONING,Third Party Payments,Revenue
Walsall Council,http://opendatacommunities.org/id/metropolitan-district-council/walsall,WC65-91,29/02/2016,Social Care & Inclusion,ACCORD HOUSING ASSOCIATION LTD#135,09/02/2016,317.96,73373-RESIDENTIAL & NURSING CARE PLACEMENTS,OP COMMISSIONING,Third Party Payments,Revenue
Walsall Council,http://opendatacommunities.org/id/metropolitan-district-council/walsall,WC65-92,29/02/2016,Social Care & Inclusion,ACCORD HOUSING ASSOCIATION LTD#135,09/02/2016,317.96,73373-RESIDENTIAL & NURSING CARE PLACEMENTS,OP COMMISSIONING,Third Party Payments,Revenue
Walsall Council,http://opendatacommunities.org/id/metropolitan-district-council/walsall,WC65-93,29/02/2016,Social Care & Inclusion,ACCORD HOUSING ASSOCIATION LTD#135,09/02/2016,317.96,73373-RESIDENTIAL & NURSING CARE PLACEMENTS,OP COMMISSIONING,Third Party Payments,Revenue
Walsall Council,http://opendatacommunities.org/id/metropolitan-district-council/walsall,WC65-94,29/02/2016,Social Care & Inclusion,ACCORD HOUSING ASSOCIATION LTD#135,09/02/2016,317.96,73373-RESIDENTIAL & NURSING CARE PLACEMENTS,OP COMMISSIONING,Third Party Payments,Revenue
Walsall Council,http://opendatacommunities.org/id/metropolitan-district-council/walsall,WC65-95,29/02/2016,Social Care & Inclusion,ACCORD HOUSING ASSOCIATION LTD#135,09/02/2016,317.96,73373-RESIDENTIAL & NURSING CARE PLACEMENTS,OP COMMISSIONING,Third Party Payments,Revenue
Walsall Council,http://opendatacommunities.org/id/metropolitan-district-council/walsall,WC65-96,29/02/2016,Social Care & Inclusion,ACCORD HOUSING ASSOCIATION LTD#135,09/02/2016,317.96,73373-RESIDENTIAL & NURSING CARE PLACEMENTS,OP COMMISSIONING,Third Party Payments,Revenue
Walsall Council,http://opendatacommunities.org/id/metropolitan-district-council/walsall,WC65-97,29/02/2016,Social Care & Inclusion,ACCORD HOUSING ASSOCIATION LTD#135,09/02/2016,317.96,73373-RESIDENTIAL & NURSING CARE PLACEMENTS,OP COMMISSIONING,Third Party Payments,Revenue
Walsall Council,http://opendatacommunities.org/id/metropolitan-district-council/walsall,WC65-98,29/02/2016,Social Care & Inclusion,ACCORD HOUSING ASSOCIATION LTD#135,09/02/2016,317.96,73373-RESIDENTIAL & NURSING CARE PLACEMENTS,OP COMMISSIONING,Third Party Payments,Revenue
Walsall Council,http://opendatacommunities.org/id/metropolitan-district-council/walsall,WC65-99,29/02/2016,Social Care & Inclusion,ACCORD HOUSING ASSOCIATION LTD#135,09/02/2016,317.96,73373-RESIDENTIAL & NURSING CARE PLACEMENTS,OP COMMISSIONING,Third Party Payments,Revenue
Walsall Council,http://opendatacommunities.org/id/metropolitan-district-council/walsall,WC65-100,29/02/2016,Social Care & Inclusion,ACCORD HOUSING ASSOCIATION LTD#135,09/02/2016,317.96,73373-RESIDENTIAL & NURSING CARE PLACEMENTS,OP COMMISSIONING,Third Party Payments,Revenue
Walsall Council,http://opendatacommunities.org/id/metropolitan-district-council/walsall,WC65-101,29/02/2016,Social Care & Inclusion,ACCORD HOUSING ASSOCIATION LTD#135,03/02/2016,460.7,73374-SUPPORTED & OTHER ACCOMMODATION,OP COMMISSIONING,Third Party Payments,Revenue
Walsall Council,http://opendatacommunities.org/id/metropolitan-district-council/walsall,WC65-102,29/02/2016,Social Care & Inclusion,ACCORD HOUSING ASSOCIATION LTD#135,03/02/2016,543.36,73374-SUPPORTED & OTHER ACCOMMODATION,OP COMMISSIONING,Third Party Payments,Revenue
Walsall Council,http://opendatacommunities.org/id/metropolitan-district-council/walsall,WC65-103,29/02/2016,Social Care & Inclusion,ACCORD HOUSING ASSOCIATION LTD#135,03/02/2016,543.36,73374-SUPPORTED & OTHER ACCOMMODATION,OP COMMISSIONING,Third Party Payments,Revenue
Walsall Council,http://opendatacommunities.org/id/metropolitan-district-council/walsall,WC65-104,29/02/2016,Social Care & Inclusion,ACCORD HOUSING ASSOCIATION LTD#135,03/02/2016,546.12,73374-SUPPORTED & OTHER ACCOMMODATION,OP COMMISSIONING,Third Party Payments,Revenue
Walsall Council,http://opendatacommunities.org/id/metropolitan-district-council/walsall,WC65-105,29/02/2016,Social Care & Inclusion,ACCORD HOUSING ASSOCIATION LTD#135,03/02/2016,546.12,73374-SUPPORTED & OTHER ACCOMMODATION,OP COMMISSIONING,Third Party Payments,Revenue
Walsall Council,http://opendatacommunities.org/id/metropolitan-district-council/walsall,WC65-106,29/02/2016,Social Care & Inclusion,ACCORD HOUSING ASSOCIATION LTD#135,03/02/2016,546.12,73374-SUPPORTED & OTHER ACCOMMODATION,OP COMMISSIONING,Third Party Payments,Revenue
Walsall Council,http://opendatacommunities.org/id/metropolitan-district-council/walsall,WC65-107,29/02/2016,Social Care & Inclusion,ACCORD HOUSING ASSOCIATION LTD#135,03/02/2016,546.12,73374-SUPPORTED & OTHER ACCOMMODATION,OP COMMISSIONING,Third Party Payments,Revenue
Walsall Council,http://opendatacommunities.org/id/metropolitan-district-council/walsall,WC65-108,29/02/2016,Social Care & Inclusion,ACCORD HOUSING ASSOCIATION LTD#135,03/02/2016,546.12,73374-SUPPORTED & OTHER ACCOMMODATION,OP COMMISSIONING,Third Party Payments,Revenue
Walsall Council,http://opendatacommunities.org/id/metropolitan-district-council/walsall,WC65-109,29/02/2016,Social Care & Inclusion,ACCORD HOUSING ASSOCIATION LTD#135,03/02/2016,657.08,73374-SUPPORTED & OTHER ACCOMMODATION,OP COMMISSIONING,Third Party Payments,Revenue
Walsall Council,http://opendatacommunities.org/id/metropolitan-district-council/walsall,WC65-110,29/02/2016,Social Care & Inclusion,ACCORD HOUSING ASSOCIATION LTD#135,12/02/2016,657.08,73374-SUPPORTED & OTHER ACCOMMODATION,OP COMMISSIONING,Third Party Payments,Revenue
Walsall Council,http://opendatacommunities.org/id/metropolitan-district-council/walsall,WC65-111,29/02/2016,Social Care & Inclusion,ACCORD HOUSING ASSOCIATION LTD#135,12/02/2016,787.42,73374-SUPPORTED & OTHER ACCOMMODATION,OP COMMISSIONING,Third Party Payments,Revenue
Walsall Council,http://opendatacommunities.org/id/metropolitan-district-council/walsall,WC65-112,29/02/2016,Social Care & Inclusion,ACCORD HOUSING ASSOCIATION LTD#135,03/02/2016,801.56,73374-SUPPORTED & OTHER ACCOMMODATION,OP COMMISSIONING,Third Party Payments,Revenue
Walsall Council,http://opendatacommunities.org/id/metropolitan-district-council/walsall,WC65-113,29/02/2016,Social Care & Inclusion,ACCORD HOUSING ASSOCIATION LTD#135,03/02/2016,801.56,73374-SUPPORTED & OTHER ACCOMMODATION,OP COMMISSIONING,Third Party Payments,Revenue
Walsall Council,http://opendatacommunities.org/id/metropolitan-district-council/walsall,WC65-114,29/02/2016,Social Care & Inclusion,ACCORD HOUSING ASSOCIATION LTD#135,03/02/2016,801.56,73374-SUPPORTED & OTHER ACCOMMODATION,OP COMMISSIONING,Third Party Payments,Revenue
Walsall Council,http://opendatacommunities.org/id/metropolitan-district-council/walsall,WC65-115,29/02/2016,Social Care & Inclusion,ACCORD HOUSING ASSOCIATION LTD#135,03/02/2016,899.91,73374-SUPPORTED & OTHER ACCOMMODATION,OP COMMISSIONING,Third Party Payments,Revenue
Walsall Council,http://opendatacommunities.org/id/metropolitan-district-council/walsall,WC65-116,29/02/2016,Social Care & Inclusion,ACCORD HOUSING ASSOCIATION LTD#135,03/02/2016,921.4,73374-SUPPORTED & OTHER ACCOMMODATION,OP COMMISSIONING,Third Party Payments,Revenue
Walsall Council,http://opendatacommunities.org/id/metropolitan-district-council/walsall,WC65-117,29/02/2016,Social Care & Inclusion,ACCORD HOUSING ASSOCIATION LTD#135,03/02/2016,921.4,73374-SUPPORTED & OTHER ACCOMMODATION,OP COMMISSIONING,Third Party Payments,Revenue
Walsall Council,http://opendatacommunities.org/id/metropolitan-district-council/walsall,WC65-118,29/02/2016,Childrens,ACCORD HOUSING ASSOCIATION LTD#135,04/02/2016,"1,310.68",76422-DIRECT PAYMENTS TO SOCIAL SERVICES CLIENTS,SAFEGUARDING & FAMILY SUPPORT,Transfer Payments,Revenue
Walsall Council,http://opendatacommunities.org/id/metropolitan-district-council/walsall,WC65-119,29/02/2016,Social Care & Inclusion,ACCORD HOUSING ASSOCIATION LTD#135,15/02/2016,"1,319.36",73374-SUPPORTED & OTHER ACCOMMODATION,OP COMMISSIONING,Third Party Payments,Revenue
Walsall Council,http://opendatacommunities.org/id/metropolitan-district-council/walsall,WC65-120,29/02/2016,Social Care & Inclusion,ACCORD HOUSING ASSOCIATION LTD#135,16/02/2016,"1,538.68",73372-DOMICILIARY CARE,OP COMMISSIONING,Third Party Payments,Revenue
Walsall Council,http://opendatacommunities.org/id/metropolitan-district-council/walsall,WC65-121,29/02/2016,Social Care & Inclusion,ACCORD HOUSING ASSOCIATION LTD#135,03/02/2016,"1,574.84",73374-SUPPORTED & OTHER ACCOMMODATION,OP COMMISSIONING,Third Party Payments,Revenue
Walsall Council,http://opendatacommunities.org/id/metropolitan-district-council/walsall,WC65-122,29/02/2016,Social Care & Inclusion,ACCORD HOUSING ASSOCIATION LTD#135,03/02/2016,"1,574.84",73374-SUPPORTED & OTHER ACCOMMODATION,OP COMMISSIONING,Third Party Payments,Revenue
Walsall Council,http://opendatacommunities.org/id/metropolitan-district-council/walsall,WC65-123,29/02/2016,Social Care & Inclusion,ACCORD HOUSING ASSOCIATION LTD#135,09/02/2016,"4,744.90",73373-RESIDENTIAL & NURSING CARE PLACEMENTS,LD COMMISSIONING,Third Party Payments,Revenue
Walsall Council,http://opendatacommunities.org/id/metropolitan-district-council/walsall,WC65-124,29/02/2016,Social Care & Inclusion,ACCORD HOUSING ASSOCIATION LTD#135,09/02/2016,"4,744.90",73373-RESIDENTIAL & NURSING CARE PLACEMENTS,LD COMMISSIONING,Third Party Payments,Revenue
Walsall Council,http://opendatacommunities.org/id/metropolitan-district-council/walsall,WC65-125,29/02/2016,Social Care & Inclusion,ACCORD HOUSING ASSOCIATION LTD#135,09/02/2016,"4,744.90",73373-RESIDENTIAL & NURSING CARE PLACEMENTS,LD COMMISSIONING,Third Party Payments,Revenue
Walsall Council,http://opendatacommunities.org/id/metropolitan-district-council/walsall,WC65-126,29/02/2016,Social Care & Inclusion,ACCORD HOUSING ASSOCIATION LTD#135,09/02/2016,"4,744.90",73373-RESIDENTIAL & NURSING CARE PLACEMENTS,LD COMMISSIONING,Third Party Payments,Revenue
Walsall Council,http://opendatacommunities.org/id/metropolitan-district-council/walsall,WC65-127,29/02/2016,Social Care & Inclusion,ACCORD HOUSING ASSOCIATION LTD#135,09/02/2016,"6,622.35",73373-RESIDENTIAL & NURSING CARE PLACEMENTS,LD COMMISSIONING,Third Party Payments,Revenue
Walsall Council,http://opendatacommunities.org/id/metropolitan-district-council/walsall,WC65-128,29/02/2016,Social Care & Inclusion,ACCORD HOUSING ASSOCIATION LTD#135,09/02/2016,"6,622.35",73373-RESIDENTIAL & NURSING CARE PLACEMENTS,LD COMMISSIONING,Third Party Payments,Revenue
Walsall Council,http://opendatacommunities.org/id/metropolitan-district-council/walsall,WC65-129,29/02/2016,Social Care & Inclusion,ACCORD HOUSING ASSOCIATION LTD#135,09/02/2016,"6,622.35",73373-RESIDENTIAL & NURSING CARE PLACEMENTS,LD COMMISSIONING,Third Party Payments,Revenue
Walsall Council,http://opendatacommunities.org/id/metropolitan-district-council/walsall,WC65-130,29/02/2016,Social Care & Inclusion,ACCORD HOUSING ASSOCIATION LTD#135,03/02/2016,"8,668.43",73372-DOMICILIARY CARE,OP COMMISSIONING,Third Party Payments,Revenue
Walsall Council,http://opendatacommunities.org/id/metropolitan-district-council/walsall,WC65-131,29/02/2016,Social Care & Inclusion,ACCORD HOUSING ASSOCIATION LTD#135,03/02/2016,"29,630.44",73372-DOMICILIARY CARE,OP COMMISSIONING,Third Party Payments,Revenue
Walsall Council,http://opendatacommunities.org/id/metropolitan-district-council/walsall,WC65-132,29/02/2016,Economy & Environment,ACCORD HOUSING ASSOCIATION LTD#135,05/02/2016,"68,846.01",63000-PROFESSIONAL FEES AND SERVICES,ALCOHOL & DRUGS MISUSE/TOBACCO CONTROL,Supplies & Services,Revenue
Walsall Council,http://opendatacommunities.org/id/metropolitan-district-council/walsall,WC65-133,29/02/2016,Social Care & Inclusion,ACE CARE AGENCY,10/02/2016,607.05,73372-DOMICILIARY CARE,MH COMMISSIONING,Third Party Payments,Revenue
Walsall Council,http://opendatacommunities.org/id/metropolitan-district-council/walsall,WC65-134,29/02/2016,Social Care & Inclusion,ACE CARE AGENCY,08/02/2016,"1,019.76",73372-DOMICILIARY CARE,OP COMMISSIONING,Third Party Payments,Revenue
Walsall Council,http://opendatacommunities.org/id/metropolitan-district-council/walsall,WC65-135,29/02/2016,Change and Governance,ACE REMOVALS,12/02/2016,325,60104-REMOVAL OF FURNITURE,ADVICE & GUIDANCE SERVICE,Supplies & Services,Revenue
Walsall Council,http://opendatacommunities.org/id/metropolitan-district-council/walsall,WC65-136,29/02/2016,Social Care & Inclusion,ACEPAY LTD (COTTAGE NUR HOME),09/02/2016,"1,975.60",73373-RESIDENTIAL & NURSING CARE PLACEMENTS,OP COMMISSIONING,Third Party Payments,Revenue
Walsall Council,http://opendatacommunities.org/id/metropolitan-district-council/walsall,WC65-137,29/02/2016,Social Care & Inclusion,ACEPAY LTD (COTTAGE NUR HOME),09/02/2016,"1,975.60",73373-RESIDENTIAL & NURSING CARE PLACEMENTS,OP COMMISSIONING,Third Party Payments,Revenue
Walsall Council,http://opendatacommunities.org/id/metropolitan-district-council/walsall,WC65-138,29/02/2016,Social Care & Inclusion,ACEPAY LTD (COTTAGE NUR HOME),09/02/2016,"1,975.60",73373-RESIDENTIAL & NURSING CARE PLACEMENTS,OP COMMISSIONING,Third Party Payments,Revenue
Walsall Council,http://opendatacommunities.org/id/metropolitan-district-council/walsall,WC65-139,29/02/2016,Social Care & Inclusion,ACEPAY LTD (COTTAGE NUR HOME),09/02/2016,"2,018.20",73373-RESIDENTIAL & NURSING CARE PLACEMENTS,OP COMMISSIONING,Third Party Payments,Revenue
Walsall Council,http://opendatacommunities.org/id/metropolitan-district-council/walsall,WC65-140,29/02/2016,Social Care & Inclusion,ACEPAY LTD (COTTAGE NUR HOME),09/02/2016,"2,018.20",73373-RESIDENTIAL & NURSING CARE PLACEMENTS,OP COMMISSIONING,Third Party Payments,Revenue
Walsall Council,http://opendatacommunities.org/id/metropolitan-district-council/walsall,WC65-141,29/02/2016,Social Care & Inclusion,ACEPAY LTD (COTTAGE NUR HOME),09/02/2016,"2,018.20",73373-RESIDENTIAL & NURSING CARE PLACEMENTS,OP COMMISSIONING,Third Party Payments,Revenue
Walsall Council,http://opendatacommunities.org/id/metropolitan-district-council/walsall,WC65-142,29/02/2016,Social Care & Inclusion,ACORN CARE LTD,16/02/2016,"14,195.21",73373-RESIDENTIAL & NURSING CARE PLACEMENTS,LD COMMISSIONING,Third Party Payments,Revenue
Walsall Council,http://opendatacommunities.org/id/metropolitan-district-council/walsall,WC65-143,29/02/2016,Social Care & Inclusion,ACORN CARE LTD,02/02/2016,"15,174.19",73373-RESIDENTIAL & NURSING CARE PLACEMENTS,LD COMMISSIONING,Third Party Payments,Revenue
Walsall Council,http://opendatacommunities.org/id/metropolitan-district-council/walsall,WC65-144,29/02/2016,Social Care & Inclusion,ACORN REST HOME,16/02/2016,"1,493.24",73373-RESIDENTIAL & NURSING CARE PLACEMENTS,OP COMMISSIONING,Third Party Payments,Revenue
Walsall Council,http://opendatacommunities.org/id/metropolitan-district-council/walsall,WC65-145,29/02/2016,Childrens,ACORNS CHILDRENS HOSPICE TRUST,16/02/2016,750,63000-PROFESSIONAL FEES AND SERVICES,DIRECTLY COMMISSIONED NURSING SERVICES,Supplies & Services,Revenue
Walsall Council,http://opendatacommunities.org/id/metropolitan-district-council/walsall,WC65-146,29/02/2016,Economy & Environment,ACRYLIC DESIGN UK LIMITED,02/02/2016,"1,802.50",01002-PROJECT FEES,CFR 1072 M6 JUNCTION 10,Capital,Capital
Walsall Council,http://opendatacommunities.org/id/metropolitan-district-council/walsall,WC65-147,29/02/2016,Economy & Environment,ACTION DIGITAL MEDIA LTD,05/02/2016,238.55,62000-EXTERNAL PRINTING SERVICES,NAG - TEMPORARY EXHIBITIONS,Supplies & Services,Revenue
Walsall Council,http://opendatacommunities.org/id/metropolitan-district-council/walsall,WC65-148,29/02/2016,Economy & Environment,ACTION DIGITAL MEDIA LTD,05/02/2016,263.35,62000-EXTERNAL PRINTING SERVICES,NAG - TEMPORARY EXHIBITIONS,Supplies & Services,Revenue
Walsall Council,http://opendatacommunities.org/id/metropolitan-district-council/walsall,WC65-149,29/02/2016,Economy & Environment,ACTION DIGITAL MEDIA LTD,19/02/2016,664.93,62009-OUTWORK-DESIGN,PHOTOGRAPHY EXHIBITION NO. 2 WSA,Supplies & Services,Revenue
Walsall Council,http://opendatacommunities.org/id/metropolitan-district-council/walsall,WC65-150,29/02/2016,Childrens,ACTION FOR CHILDREN,18/02/2016,"3,291.83",74037-INDEPENDENT FOSTER CARE-OTH AGENCY PROVISION,EXTERNAL FOSTER CARE PROVISION,Third Party Payments,Revenue
Walsall Council,http://opendatacommunities.org/id/metropolitan-district-council/walsall,WC65-151,29/02/2016,Childrens,ACTION FOR CHILDREN,03/02/2016,"3,518.85",74037-INDEPENDENT FOSTER CARE-OTH AGENCY PROVISION,EXTERNAL FOSTER CARE PROVISION,Third Party Payments,Revenue
Walsall Council,http://opendatacommunities.org/id/metropolitan-district-council/walsall,WC65-152,29/02/2016,Economy & Environment,REDACTED,08/02/2016,"2,136.00",01023-TECHNICAL ASSISTANTS TIME,CFR 1045 GALLERY-ACE SMALL CAPITAL PROJECT,Capital,Capital
Walsall Council,http://opendatacommunities.org/id/metropolitan-district-council/walsall,WC65-153,29/02/2016,Childrens,REDACTED,09/02/2016,487.6,76422-DIRECT PAYMENTS TO SOCIAL SERVICES CLIENTS,FAMILY SUPPORT - DIRECT PAYMENTS,Transfer Payments,Revenue
Walsall Council,http://opendatacommunities.org/id/metropolitan-district-council/walsall,WC65-154,29/02/2016,Social Care & Inclusion,REDACTED,09/02/2016,417.48,76422-DIRECT PAYMENTS TO SOCIAL SERVICES CLIENTS,LD COMMISSIONING,Transfer Payments,Revenue
Walsall Council,http://opendatacommunities.org/id/metropolitan-district-council/walsall,WC65-155,29/02/2016,Social Care & Inclusion,ADASS,15/02/2016,499,62523-EVENTS,SENIOR MANAGEMENT TEAM,Supplies & Services,Revenue
Walsall Council,http://opendatacommunities.org/id/metropolitan-district-council/walsall,WC65-156,29/02/2016,Social Care & Inclusion,REDACTED,09/02/2016,860,76422-DIRECT PAYMENTS TO SOCIAL SERVICES CLIENTS,OP COMMISSIONING,Transfer Payments,Revenue
Walsall Council,http://opendatacommunities.org/id/metropolitan-district-council/walsall,WC65-157,29/02/2016,Childrens,ADMIRAL SELF STORAGE LTD,01/02/2016,228.78,63000-PROFESSIONAL FEES AND SERVICES,PLACEMENTS & RESOURCES TEAM,Supplies & Services,Revenue
Walsall Council,http://opendatacommunities.org/id/metropolitan-district-council/walsall,WC65-158,29/02/2016,Childrens,REDACTED,15/02/2016,728.32,74006-HOLIDAY/CHRISTMAS ALLOWANCE-FOSTER CARERS-OTH AGENCY PROVISION,INTERNAL FOSTER CARE PROVISION,Third Party Payments,Revenue
Walsall Council,http://opendatacommunities.org/id/metropolitan-district-council/walsall,WC65-159,29/02/2016,Economy & Environment,ADS ELECTRICAL & HIGHWAY SERVICES LTD,17/02/2016,290,63000-PROFESSIONAL FEES AND SERVICES,FESTIVE DECORATIONS,Supplies & Services,Revenue
Walsall Council,http://opendatacommunities.org/id/metropolitan-district-council/walsall,WC65-160,29/02/2016,Social Care & Inclusion,ADVANCE HEALTH CARE (UK) LTD,01/02/2016,"3,930.00",34305-AGENCY STAFF-EMPLOYEES,COMMUNITY INTERMEDIATE CARE,Employees,Revenue
Walsall Council,http://opendatacommunities.org/id/metropolitan-district-council/walsall,WC65-161,29/02/2016,Social Care & Inclusion,ADVANCE HEALTH CARE (UK) LTD,05/02/2016,"3,930.00",34305-AGENCY STAFF-EMPLOYEES,COMMUNITY INTERMEDIATE CARE,Employees,Revenue
Walsall Council,http://opendatacommunities.org/id/metropolitan-district-council/walsall,WC65-162,29/02/2016,Social Care & Inclusion,ADVANCE HEALTH CARE (UK) LTD,08/02/2016,"3,930.00",34305-AGENCY STAFF-EMPLOYEES,COMMUNITY INTERMEDIATE CARE,Employees,Revenue
Walsall Council,http://opendatacommunities.org/id/metropolitan-district-council/walsall,WC65-163,29/02/2016,Social Care & Inclusion,ADVANCE HEALTH CARE (UK) LTD,16/02/2016,"3,930.00",73025-PROFESSIONAL SERVICES-PRIV CONTRACTOR & OTHER AGENCIES,COMMUNITY INTERMEDIATE CARE,Third Party Payments,Revenue
Walsall Council,http://opendatacommunities.org/id/metropolitan-district-council/walsall,WC65-164,29/02/2016,Social Care & Inclusion,ADVANCE HEALTH CARE (UK) LTD,08/02/2016,"4,113.40",34305-AGENCY STAFF-EMPLOYEES,COMMUNITY INTERMEDIATE CARE,Employees,Revenue
Walsall Council,http://opendatacommunities.org/id/metropolitan-district-council/walsall,WC65-165,29/02/2016,Social Care & Inclusion,ADVANCE HEALTH CARE (UK) LTD,03/02/2016,"34,561.74",73372-DOMICILIARY CARE,OP COMMISSIONING,Third Party Payments,Revenue
Walsall Council,http://opendatacommunities.org/id/metropolitan-district-council/walsall,WC65-166,29/02/2016,Economy & Environment,AECOM LIMITED,12/02/2016,570.96,01001-OTHER CONSULTANTS FEES,CFR 876 DARLASTON STRUCTURES,Capital,Capital
Walsall Council,http://opendatacommunities.org/id/metropolitan-district-council/walsall,WC65-167,29/02/2016,Economy & Environment,AECOM LIMITED,12/02/2016,"8,501.58",01002-PROJECT FEES,CFR 1072 M6 JUNCTION 10,Capital,Capital
Walsall Council,http://opendatacommunities.org/id/metropolitan-district-council/walsall,WC65-168,29/02/2016,Economy & Environment,AECOM LIMITED,02/02/2016,"34,196.25",73025-PROFESSIONAL SERVICES-PRIV CONTRACTOR & OTHER AGENCIES,POLLUTION DIVISION,Third Party Payments,Revenue
Walsall Council,http://opendatacommunities.org/id/metropolitan-district-council/walsall,WC65-169,29/02/2016,Economy & Environment,AGE UK TRAINING,05/02/2016,750,66500-GRANTS TO OTHER ORGS,RES-WALSALL WORKS,Third Party Payments,Revenue
Walsall Council,http://opendatacommunities.org/id/metropolitan-district-council/walsall,WC65-170,29/02/2016,Economy & Environment,AGE UK TRAINING,04/02/2016,"1,125.00",66500-GRANTS TO OTHER ORGS,RES-WALSALL WORKS,Third Party Payments,Revenue
Walsall Council,http://opendatacommunities.org/id/metropolitan-district-council/walsall,WC65-171,29/02/2016,Economy & Environment,AGE UK WALSALL,22/02/2016,412.5,63000-PROFESSIONAL FEES AND SERVICES,FALLS PREVENTION,Supplies & Services,Revenue
Walsall Council,http://opendatacommunities.org/id/metropolitan-district-council/walsall,WC65-172,29/02/2016,Social Care & Inclusion,AGE UK WALSALL,19/02/2016,"7,300.00",76423-DIRECT PAYMENTS SUPPORT,INDIVIDUAL BUDGET - SUPPORT,Transfer Payments,Revenue
Walsall Council,http://opendatacommunities.org/id/metropolitan-district-council/walsall,WC65-173,29/02/2016,Social Care & Inclusion,AGE UK WALSALL,05/02/2016,"8,800.00",76423-DIRECT PAYMENTS SUPPORT,INDIVIDUAL BUDGET - SUPPORT,Transfer Payments,Revenue
Walsall Council,http://opendatacommunities.org/id/metropolitan-district-council/walsall,WC65-174,29/02/2016,Economy & Environment,AGRIPA SOLUTIONS LTD,01/02/2016,"1,360.00",68001-PUBLICITY & ADVERTISING (NOT STAFF ADVERTISING),RESOURCE MANAGEMENT,Supplies & Services,Revenue
Walsall Council,http://opendatacommunities.org/id/metropolitan-district-council/walsall,WC65-175,29/02/2016,Economy & Environment,AGRIPA SOLUTIONS LTD,01/02/2016,"2,700.00",68001-PUBLICITY & ADVERTISING (NOT STAFF ADVERTISING),RESOURCE MANAGEMENT,Supplies & Services,Revenue
Walsall Council,http://opendatacommunities.org/id/metropolitan-district-council/walsall,WC65-176,29/02/2016,Social Care & Inclusion,REDACTED,09/02/2016,"1,882.00",76422-DIRECT PAYMENTS TO SOCIAL SERVICES CLIENTS,LD COMMISSIONING,Transfer Payments,Revenue
Walsall Council,http://opendatacommunities.org/id/metropolitan-district-council/walsall,WC65-177,29/02/2016,Economy & Environment,AIRSPACE GALLERY,02/02/2016,300,60529-SHOP STOCK-MATERIALS,INTERPRETATION,Supplies & Services,Revenue
Walsall Council,http://opendatacommunities.org/id/metropolitan-district-council/walsall,WC65-178,29/02/2016,Social Care & Inclusion,REDACTED,09/02/2016,914.2,76422-DIRECT PAYMENTS TO SOCIAL SERVICES CLIENTS,OP COMMISSIONING,Transfer Payments,Revenue
Walsall Council,http://opendatacommunities.org/id/metropolitan-district-council/walsall,WC65-179,29/02/2016,Childrens,AJK TRAVEL,04/02/2016,"15,454.80",52000-WITH DRIVER-HIRE OF VEHICLES,SCHOOL TRANSPORT,Transport,Revenue
Walsall Council,http://opendatacommunities.org/id/metropolitan-district-council/walsall,WC65-180,29/02/2016,Childrens,ALAN CRITCHLEY ASSOCIATES,10/02/2016,"4,200.00",63000-PROFESSIONAL FEES AND SERVICES,SAFEGUARDING BOARD,Supplies & Services,Revenue
Walsall Council,http://opendatacommunities.org/id/metropolitan-district-council/walsall,WC65-181,29/02/2016,Social Care & Inclusion,ALDERGROVE MANOR CARE HOME,02/02/2016,"1,839.68",73373-RESIDENTIAL & NURSING CARE PLACEMENTS,MH COMMISSIONING,Third Party Payments,Revenue
Walsall Council,http://opendatacommunities.org/id/metropolitan-district-council/walsall,WC65-182,29/02/2016,Childrens,ALDRIDGE & BARONS LIMITED,19/02/2016,"13,586.15",52000-WITH DRIVER-HIRE OF VEHICLES,SCHOOL TRANSPORT,Transport,Revenue
Walsall Council,http://opendatacommunities.org/id/metropolitan-district-council/walsall,WC65-183,29/02/2016,Childrens,ALDRIDGE & BARONS LIMITED,19/02/2016,"17,926.20",52000-WITH DRIVER-HIRE OF VEHICLES,SCHOOL TRANSPORT,Transport,Revenue
Walsall Council,http://opendatacommunities.org/id/metropolitan-district-council/walsall,WC65-184,29/02/2016,Childrens,ALDRIDGE SCHOOL A SCIENCE COLLEGE.,10/02/2016,500,77300-ISB-FORMULA ALLOCATION,ALDRIDGE SCHOOL SCIENCE COLLEGE (ACADEMY),Transfer Payments,Revenue
Walsall Council,http://opendatacommunities.org/id/metropolitan-district-council/walsall,WC65-185,29/02/2016,Childrens,ALDRIDGE SCHOOL A SCIENCE COLLEGE.,10/02/2016,640,77300-ISB-FORMULA ALLOCATION,ALDRIDGE SCHOOL SCIENCE COLLEGE (ACADEMY),Transfer Payments,Revenue
Walsall Council,http://opendatacommunities.org/id/metropolitan-district-council/walsall,WC65-186,29/02/2016,Economy & Environment,ALERE LTD,15/02/2016,462,63000-PROFESSIONAL FEES AND SERVICES,HEALTH CHECKS,Supplies & Services,Revenue
Walsall Council,http://opendatacommunities.org/id/metropolitan-district-council/walsall,WC65-187,29/02/2016,Social Care & Inclusion,REDACTED,09/02/2016,"1,204.00",76422-DIRECT PAYMENTS TO SOCIAL SERVICES CLIENTS,YADS COMMISSIONING,Transfer Payments,Revenue
Walsall Council,http://opendatacommunities.org/id/metropolitan-district-council/walsall,WC65-188,29/02/2016,Social Care & Inclusion,ALEXANDRA HOUSE CARE SERVICES LTD T/A STONEBRIDGE NURSING HOME,24/02/2016,"7,117.44",73373-RESIDENTIAL & NURSING CARE PLACEMENTS,OP COMMISSIONING,Third Party Payments,Revenue
Walsall Council,http://opendatacommunities.org/id/metropolitan-district-council/walsall,WC65-189,29/02/2016,Childrens,REDACTED,09/02/2016,582.66,76422-DIRECT PAYMENTS TO SOCIAL SERVICES CLIENTS,FAMILY SUPPORT - DIRECT PAYMENTS,Transfer Payments,Revenue
Walsall Council,http://opendatacommunities.org/id/metropolitan-district-council/walsall,WC65-190,29/02/2016,Social Care & Inclusion,REDACTED,09/02/2016,854,76422-DIRECT PAYMENTS TO SOCIAL SERVICES CLIENTS,YADS COMMISSIONING,Transfer Payments,Revenue
Walsall Council,http://opendatacommunities.org/id/metropolitan-district-council/walsall,WC65-191,29/02/2016,Social Care & Inclusion,REDACTED,09/02/2016,578,76422-DIRECT PAYMENTS TO SOCIAL SERVICES CLIENTS,OP COMMISSIONING,Transfer Payments,Revenue
Walsall Council,http://opendatacommunities.org/id/metropolitan-district-council/walsall,WC65-192,29/02/2016,Childrens,REDACTED,01/02/2016,506.76,62515-MISCELLANEOUS SUPPLIES,INTERNAL FOSTER CARE PROVISION,Supplies & Services,Revenue
Walsall Council,http://opendatacommunities.org/id/metropolitan-district-council/walsall,WC65-193,29/02/2016,Childrens,REDACTED,29/02/2016,506.76,62515-MISCELLANEOUS SUPPLIES,INTERNAL FOSTER CARE PROVISION,Supplies & Services,Revenue
Walsall Council,http://opendatacommunities.org/id/metropolitan-district-council/walsall,WC65-194,29/02/2016,Childrens,REDACTED,01/02/2016,985.76,74006-HOLIDAY/CHRISTMAS ALLOWANCE-FOSTER CARERS-OTH AGENCY PROVISION,INTERNAL FOSTER CARE PROVISION,Third Party Payments,Revenue
Walsall Council,http://opendatacommunities.org/id/metropolitan-district-council/walsall,WC65-195,29/02/2016,Childrens,REDACTED,15/02/2016,552.96,74006-HOLIDAY/CHRISTMAS ALLOWANCE-FOSTER CARERS-OTH AGENCY PROVISION,INTERNAL FOSTER CARE PROVISION,Third Party Payments,Revenue
Walsall Council,http://opendatacommunities.org/id/metropolitan-district-council/walsall,WC65-196,29/02/2016,Change and Governance,ALLEN-MARTIN CONSERVATION LTD,08/02/2016,600,01006-SITE WORKS MAIN CONTRACTORS,CFR 804 FIRE RISK ASSESSMENT WORKS,Capital,Capital
Walsall Council,http://opendatacommunities.org/id/metropolitan-district-council/walsall,WC65-197,29/02/2016,Childrens,ALLEYNE'S ACADEMY,03/02/2016,"1,000.00",77300-ISB-FORMULA ALLOCATION,OUT OF BOROUGH SCHOOLS,Transfer Payments,Revenue
Walsall Council,http://opendatacommunities.org/id/metropolitan-district-council/walsall,WC65-198,29/02/2016,Change and Governance,ALLSORTS OFFICE SUPPLIES LTD,15/02/2016,216,60008-MAINTENANCE-FURNITURE & EQUIPMENT,PROCESSING,Supplies & Services,Revenue
Walsall Council,http://opendatacommunities.org/id/metropolitan-district-council/walsall,WC65-199,29/02/2016,Social Care & Inclusion,ALMA COURT,24/02/2016,"5,909.33",73373-RESIDENTIAL & NURSING CARE PLACEMENTS,MH COMMISSIONING,Third Party Payments,Revenue
Walsall Council,http://opendatacommunities.org/id/metropolitan-district-council/walsall,WC65-200,29/02/2016,Social Care & Inclusion,ALMA COURT,24/02/2016,"5,909.33",73373-RESIDENTIAL & NURSING CARE PLACEMENTS,OP COMMISSIONING,Third Party Payments,Revenue
Walsall Council,http://opendatacommunities.org/id/metropolitan-district-council/walsall,WC65-201,29/02/2016,Social Care & Inclusion,ALMA COURT,09/02/2016,"6,316.87",73373-RESIDENTIAL & NURSING CARE PLACEMENTS,MH COMMISSIONING,Third Party Payments,Revenue
Walsall Council,http://opendatacommunities.org/id/metropolitan-district-council/walsall,WC65-202,29/02/2016,Social Care & Inclusion,ALPHA HEALTH CARE LTD,09/02/2016,"1,406.56",73373-RESIDENTIAL & NURSING CARE PLACEMENTS,OP COMMISSIONING,Third Party Payments,Revenue
Walsall Council,http://opendatacommunities.org/id/metropolitan-district-council/walsall,WC65-203,29/02/2016,Social Care & Inclusion,ALPHA HEALTH CARE LTD,09/02/2016,"1,413.08",73373-RESIDENTIAL & NURSING CARE PLACEMENTS,OP COMMISSIONING,Third Party Payments,Revenue
Walsall Council,http://opendatacommunities.org/id/metropolitan-district-council/walsall,WC65-204,29/02/2016,Social Care & Inclusion,ALPHA HEALTH CARE LTD,02/02/2016,"1,485.24",73373-RESIDENTIAL & NURSING CARE PLACEMENTS,OP COMMISSIONING,Third Party Payments,Revenue
Walsall Council,http://opendatacommunities.org/id/metropolitan-district-council/walsall,WC65-205,29/02/2016,Social Care & Inclusion,ALPHA HEALTH CARE LTD,09/02/2016,"1,485.24",73373-RESIDENTIAL & NURSING CARE PLACEMENTS,OP COMMISSIONING,Third Party Payments,Revenue
Walsall Council,http://opendatacommunities.org/id/metropolitan-district-council/walsall,WC65-206,29/02/2016,Social Care & Inclusion,ALPHA HEALTH CARE LTD,09/02/2016,"1,493.24",73373-RESIDENTIAL & NURSING CARE PLACEMENTS,OP COMMISSIONING,Third Party Payments,Revenue
Walsall Council,http://opendatacommunities.org/id/metropolitan-district-council/walsall,WC65-207,29/02/2016,Social Care & Inclusion,ALPHA HEALTH CARE LTD,09/02/2016,"1,510.08",73373-RESIDENTIAL & NURSING CARE PLACEMENTS,OP COMMISSIONING,Third Party Payments,Revenue
Walsall Council,http://opendatacommunities.org/id/metropolitan-district-council/walsall,WC65-208,29/02/2016,Social Care & Inclusion,ALPHA HEALTH CARE LTD,09/02/2016,"1,510.08",73373-RESIDENTIAL & NURSING CARE PLACEMENTS,OP COMMISSIONING,Third Party Payments,Revenue
Walsall Council,http://opendatacommunities.org/id/metropolitan-district-council/walsall,WC65-209,29/02/2016,Social Care & Inclusion,ALPHA HEALTH CARE LTD,09/02/2016,"1,527.60",73373-RESIDENTIAL & NURSING CARE PLACEMENTS,OP COMMISSIONING,Third Party Payments,Revenue
Walsall Council,http://opendatacommunities.org/id/metropolitan-district-council/walsall,WC65-210,29/02/2016,Social Care & Inclusion,ALPHA HEALTH CARE LTD,09/02/2016,"1,527.60",73373-RESIDENTIAL & NURSING CARE PLACEMENTS,OP COMMISSIONING,Third Party Payments,Revenue
Walsall Council,http://opendatacommunities.org/id/metropolitan-district-council/walsall,WC65-211,29/02/2016,Social Care & Inclusion,ALPHA HEALTH CARE LTD,09/02/2016,"1,527.60",73373-RESIDENTIAL & NURSING CARE PLACEMENTS,OP COMMISSIONING,Third Party Payments,Revenue
Walsall Council,http://opendatacommunities.org/id/metropolitan-district-council/walsall,WC65-212,29/02/2016,Social Care & Inclusion,ALPHA HEALTH CARE LTD,09/02/2016,"1,527.60",73373-RESIDENTIAL & NURSING CARE PLACEMENTS,OP COMMISSIONING,Third Party Payments,Revenue
Walsall Council,http://opendatacommunities.org/id/metropolitan-district-council/walsall,WC65-213,29/02/2016,Social Care & Inclusion,ALPHA HEALTH CARE LTD,09/02/2016,"1,527.60",73373-RESIDENTIAL & NURSING CARE PLACEMENTS,OP COMMISSIONING,Third Party Payments,Revenue
Walsall Council,http://opendatacommunities.org/id/metropolitan-district-council/walsall,WC65-214,29/02/2016,Social Care & Inclusion,ALPHA HEALTH CARE LTD,09/02/2016,"1,527.60",73373-RESIDENTIAL & NURSING CARE PLACEMENTS,OP COMMISSIONING,Third Party Payments,Revenue
Walsall Council,http://opendatacommunities.org/id/metropolitan-district-council/walsall,WC65-215,29/02/2016,Social Care & Inclusion,ALPHA HEALTH CARE LTD,09/02/2016,"1,527.60",73373-RESIDENTIAL & NURSING CARE PLACEMENTS,OP COMMISSIONING,Third Party Payments,Revenue
Walsall Council,http://opendatacommunities.org/id/metropolitan-district-council/walsall,WC65-216,29/02/2016,Social Care & Inclusion,ALPHA HEALTH CARE LTD,09/02/2016,"1,527.60",73373-RESIDENTIAL & NURSING CARE PLACEMENTS,OP COMMISSIONING,Third Party Payments,Revenue
Walsall Council,http://opendatacommunities.org/id/metropolitan-district-council/walsall,WC65-217,29/02/2016,Social Care & Inclusion,ALPHA HEALTH CARE LTD,09/02/2016,"1,527.60",73373-RESIDENTIAL & NURSING CARE PLACEMENTS,MH COMMISSIONING,Third Party Payments,Revenue
Walsall Council,http://opendatacommunities.org/id/metropolitan-district-council/walsall,WC65-218,29/02/2016,Social Care & Inclusion,ALPHA HEALTH CARE LTD,09/02/2016,"1,527.60",73373-RESIDENTIAL & NURSING CARE PLACEMENTS,OP COMMISSIONING,Third Party Payments,Revenue
Walsall Council,http://opendatacommunities.org/id/metropolitan-district-council/walsall,WC65-219,29/02/2016,Social Care & Inclusion,ALPHA HEALTH CARE LTD,09/02/2016,"1,527.60",73373-RESIDENTIAL & NURSING CARE PLACEMENTS,OP COMMISSIONING,Third Party Payments,Revenue
Walsall Council,http://opendatacommunities.org/id/metropolitan-district-council/walsall,WC65-220,29/02/2016,Social Care & Inclusion,ALPHA HEALTH CARE LTD,09/02/2016,"1,527.60",73373-RESIDENTIAL & NURSING CARE PLACEMENTS,OP COMMISSIONING,Third Party Payments,Revenue
Walsall Council,http://opendatacommunities.org/id/metropolitan-district-council/walsall,WC65-221,29/02/2016,Social Care & Inclusion,ALPHA HEALTH CARE LTD,09/02/2016,"1,527.60",73373-RESIDENTIAL & NURSING CARE PLACEMENTS,OP COMMISSIONING,Third Party Payments,Revenue
Walsall Council,http://opendatacommunities.org/id/metropolitan-district-council/walsall,WC65-222,29/02/2016,Social Care & Inclusion,ALPHA HEALTH CARE LTD,09/02/2016,"1,527.60",73373-RESIDENTIAL & NURSING CARE PLACEMENTS,MH COMMISSIONING,Third Party Payments,Revenue
Walsall Council,http://opendatacommunities.org/id/metropolitan-district-council/walsall,WC65-223,29/02/2016,Social Care & Inclusion,ALPHA HEALTH CARE LTD,16/02/2016,"1,527.60",73373-RESIDENTIAL & NURSING CARE PLACEMENTS,OP COMMISSIONING,Third Party Payments,Revenue
Walsall Council,http://opendatacommunities.org/id/metropolitan-district-council/walsall,WC65-224,29/02/2016,Social Care & Inclusion,ALPHA HEALTH CARE LTD,09/02/2016,"1,527.64",73373-RESIDENTIAL & NURSING CARE PLACEMENTS,OP COMMISSIONING,Third Party Payments,Revenue
Walsall Council,http://opendatacommunities.org/id/metropolitan-district-council/walsall,WC65-225,29/02/2016,Social Care & Inclusion,ALPHA HEALTH CARE LTD,09/02/2016,"1,568.64",73373-RESIDENTIAL & NURSING CARE PLACEMENTS,OP COMMISSIONING,Third Party Payments,Revenue
Walsall Council,http://opendatacommunities.org/id/metropolitan-district-council/walsall,WC65-226,29/02/2016,Social Care & Inclusion,ALPHA HEALTH CARE LTD,09/02/2016,"1,568.64",73373-RESIDENTIAL & NURSING CARE PLACEMENTS,OP COMMISSIONING,Third Party Payments,Revenue
Walsall Council,http://opendatacommunities.org/id/metropolitan-district-council/walsall,WC65-227,29/02/2016,Social Care & Inclusion,ALPHA HEALTH CARE LTD,16/02/2016,"1,568.64",73373-RESIDENTIAL & NURSING CARE PLACEMENTS,OP COMMISSIONING,Third Party Payments,Revenue
Walsall Council,http://opendatacommunities.org/id/metropolitan-district-council/walsall,WC65-228,29/02/2016,Social Care & Inclusion,ALPHA HEALTH CARE LTD,09/02/2016,"1,568.80",73373-RESIDENTIAL & NURSING CARE PLACEMENTS,OP COMMISSIONING,Third Party Payments,Revenue
Walsall Council,http://opendatacommunities.org/id/metropolitan-district-council/walsall,WC65-229,29/02/2016,Social Care & Inclusion,ALPHA HEALTH CARE LTD,09/02/2016,"1,630.60",73373-RESIDENTIAL & NURSING CARE PLACEMENTS,OP COMMISSIONING,Third Party Payments,Revenue
Walsall Council,http://opendatacommunities.org/id/metropolitan-district-council/walsall,WC65-230,29/02/2016,Social Care & Inclusion,ALPHA HEALTH CARE LTD,09/02/2016,"1,803.50",73373-RESIDENTIAL & NURSING CARE PLACEMENTS,OP COMMISSIONING,Third Party Payments,Revenue
Walsall Council,http://opendatacommunities.org/id/metropolitan-district-council/walsall,WC65-231,29/02/2016,Social Care & Inclusion,ALPHA HEALTH CARE LTD,09/02/2016,"2,161.40",73373-RESIDENTIAL & NURSING CARE PLACEMENTS,MH COMMISSIONING,Third Party Payments,Revenue
Walsall Council,http://opendatacommunities.org/id/metropolitan-district-council/walsall,WC65-232,29/02/2016,Social Care & Inclusion,ALPHA HEALTH CARE LTD,09/02/2016,"2,521.44",73373-RESIDENTIAL & NURSING CARE PLACEMENTS,MH COMMISSIONING,Third Party Payments,Revenue
Walsall Council,http://opendatacommunities.org/id/metropolitan-district-council/walsall,WC65-233,29/02/2016,Social Care & Inclusion,ALPHA HEALTH CARE LTD,09/02/2016,"2,817.14",73373-RESIDENTIAL & NURSING CARE PLACEMENTS,MH COMMISSIONING,Third Party Payments,Revenue
Walsall Council,http://opendatacommunities.org/id/metropolitan-district-council/walsall,WC65-234,29/02/2016,Social Care & Inclusion,ALPHA HEALTH CARE LTD,09/02/2016,"2,817.14",73373-RESIDENTIAL & NURSING CARE PLACEMENTS,OP COMMISSIONING,Third Party Payments,Revenue
Walsall Council,http://opendatacommunities.org/id/metropolitan-district-council/walsall,WC65-235,29/02/2016,Social Care & Inclusion,ALPHA HEALTH CARE LTD,09/02/2016,"5,413.72",73373-RESIDENTIAL & NURSING CARE PLACEMENTS,MH COMMISSIONING,Third Party Payments,Revenue
Walsall Council,http://opendatacommunities.org/id/metropolitan-district-council/walsall,WC65-236,29/02/2016,Social Care & Inclusion,ALPHA HEALTH CARE LTD,09/02/2016,"5,553.32",73373-RESIDENTIAL & NURSING CARE PLACEMENTS,MH COMMISSIONING,Third Party Payments,Revenue
Walsall Council,http://opendatacommunities.org/id/metropolitan-district-council/walsall,WC65-237,29/02/2016,Change and Governance,ALTODIGITAL NETWORKS LTD,02/02/2016,"1,471.74",62001-STATIONERY & GENERAL SUPPLIES-OFFICE EXP,CA CENTRAL SUPPORT SERVICES,Supplies & Services,Revenue
Walsall Council,http://opendatacommunities.org/id/metropolitan-district-council/walsall,WC65-238,29/02/2016,Childrens,REDACTED,15/02/2016,"1,500.88",74006-HOLIDAY/CHRISTMAS ALLOWANCE-FOSTER CARERS-OTH AGENCY PROVISION,INTERNAL FOSTER CARE PROVISION,Third Party Payments,Revenue
Walsall Council,http://opendatacommunities.org/id/metropolitan-district-council/walsall,WC65-239,29/02/2016,Childrens,REDACTED,01/02/2016,540.2,62515-MISCELLANEOUS SUPPLIES,INTERNAL FOSTER CARE PROVISION,Supplies & Services,Revenue
Walsall Council,http://opendatacommunities.org/id/metropolitan-district-council/walsall,WC65-240,29/02/2016,Childrens,REDACTED,29/02/2016,540.2,62515-MISCELLANEOUS SUPPLIES,INTERNAL FOSTER CARE PROVISION,Supplies & Services,Revenue
Walsall Council,http://opendatacommunities.org/id/metropolitan-district-council/walsall,WC65-241,29/02/2016,Childrens,REDACTED,01/02/2016,650.92,74006-HOLIDAY/CHRISTMAS ALLOWANCE-FOSTER CARERS-OTH AGENCY PROVISION,INTERNAL FOSTER CARE PROVISION,Third Party Payments,Revenue
Walsall Council,http://opendatacommunities.org/id/metropolitan-district-council/walsall,WC65-242,29/02/2016,Childrens,REDACTED,09/02/2016,312.92,76422-DIRECT PAYMENTS TO SOCIAL SERVICES CLIENTS,FAMILY SUPPORT - DIRECT PAYMENTS,Transfer Payments,Revenue
Walsall Council,http://opendatacommunities.org/id/metropolitan-district-council/walsall,WC65-243,29/02/2016,Economy & Environment,AMEY LG LIMITED,15/02/2016,257.74,01006-SITE WORKS MAIN CONTRACTORS,CFR 999 TRAFFIC SIGNALS,Capital,Capital
Walsall Council,http://opendatacommunities.org/id/metropolitan-district-council/walsall,WC65-244,29/02/2016,Economy & Environment,AMEY LG LIMITED,10/02/2016,289.96,01006-SITE WORKS MAIN CONTRACTORS,CFR 999 TRAFFIC SIGNALS,Capital,Capital
Walsall Council,http://opendatacommunities.org/id/metropolitan-district-council/walsall,WC65-245,29/02/2016,Change and Governance,AMEY LG LIMITED,23/02/2016,312.7,60006-NEW-FURNITURE & EQUIPMENT,COMMUNITY SAFETY 2012/2013,Supplies & Services,Revenue
Walsall Council,http://opendatacommunities.org/id/metropolitan-district-council/walsall,WC65-246,29/02/2016,Economy & Environment,AMEY LG LIMITED,01/02/2016,335.06,01009-SITE WORKS - OTHER CONTRACTORS,CFR 1072 TRANSPORTATION GROWTH DEAL ACCESSING GROWTH,Capital,Capital
Walsall Council,http://opendatacommunities.org/id/metropolitan-district-council/walsall,WC65-247,29/02/2016,Economy & Environment,AMEY LG LIMITED,08/02/2016,368.99,73002-SECURITY-PRIV CONTRACTOR FEES,TRAFFIC CONTROL,Third Party Payments,Revenue
Walsall Council,http://opendatacommunities.org/id/metropolitan-district-council/walsall,WC65-248,29/02/2016,Economy & Environment,AMEY LG LIMITED,19/02/2016,371.2,73025-PROFESSIONAL SERVICES-PRIV CONTRACTOR & OTHER AGENCIES,STREET LIGHTING PFI PROJECT,Third Party Payments,Revenue
Walsall Council,http://opendatacommunities.org/id/metropolitan-district-council/walsall,WC65-249,29/02/2016,Economy & Environment,AMEY LG LIMITED,15/02/2016,761.79,73002-SECURITY-PRIV CONTRACTOR FEES,TRAFFIC CONTROL,Third Party Payments,Revenue
Walsall Council,http://opendatacommunities.org/id/metropolitan-district-council/walsall,WC65-250,29/02/2016,Economy & Environment,AMEY LG LIMITED,01/02/2016,"1,074.70",01006-SITE WORKS MAIN CONTRACTORS,CFR 1085 SUPPORT OF A* STARS SAFER ROUTES TO SCHOOLS,Capital,Capital
Walsall Council,http://opendatacommunities.org/id/metropolitan-district-council/walsall,WC65-251,29/02/2016,Economy & Environment,AMEY LG LIMITED,04/02/2016,"1,268.51",01006-SITE WORKS MAIN CONTRACTORS,CFR 1085 SAFETY RELATED REQUESTS 15/16,Capital,Capital
Walsall Council,http://opendatacommunities.org/id/metropolitan-district-council/walsall,WC65-252,29/02/2016,Economy & Environment,AMEY LG LIMITED,01/02/2016,"1,465.40",01006-SITE WORKS MAIN CONTRACTORS,CFR 1085 ABBEY PRIMARY SAFER ROUTES TO SCHOOLS,Capital,Capital
Walsall Council,http://opendatacommunities.org/id/metropolitan-district-council/walsall,WC65-253,29/02/2016,Economy & Environment,AMEY LG LIMITED,02/02/2016,"10,507.19",73025-PROFESSIONAL SERVICES-PRIV CONTRACTOR & OTHER AGENCIES,TRAFFIC MANAGEMENT,Third Party Payments,Revenue
Walsall Council,http://opendatacommunities.org/id/metropolitan-district-council/walsall,WC65-254,29/02/2016,Social Care & Inclusion,AMG NURSING CARE SERVICES,22/02/2016,-677.6,73374-SUPPORTED & OTHER ACCOMMODATION,YADS COMMISSIONING,Third Party Payments,Revenue
Walsall Council,http://opendatacommunities.org/id/metropolitan-district-council/walsall,WC65-255,29/02/2016,Social Care & Inclusion,AMG NURSING CARE SERVICES,15/02/2016,871.2,73374-SUPPORTED & OTHER ACCOMMODATION,YADS COMMISSIONING,Third Party Payments,Revenue
Walsall Council,http://opendatacommunities.org/id/metropolitan-district-council/walsall,WC65-256,29/02/2016,Social Care & Inclusion,AMG NURSING CARE SERVICES,15/02/2016,871.2,73374-SUPPORTED & OTHER ACCOMMODATION,YADS COMMISSIONING,Third Party Payments,Revenue
Walsall Council,http://opendatacommunities.org/id/metropolitan-district-council/walsall,WC65-257,29/02/2016,Social Care & Inclusion,AMG NURSING CARE SERVICES,15/02/2016,871.2,73374-SUPPORTED & OTHER ACCOMMODATION,YADS COMMISSIONING,Third Party Payments,Revenue
Walsall Council,http://opendatacommunities.org/id/metropolitan-district-council/walsall,WC65-258,29/02/2016,Social Care & Inclusion,AMG NURSING CARE SERVICES,15/02/2016,871.2,73374-SUPPORTED & OTHER ACCOMMODATION,YADS COMMISSIONING,Third Party Payments,Revenue
Walsall Council,http://opendatacommunities.org/id/metropolitan-district-council/walsall,WC65-259,29/02/2016,Childrens,AMG NURSING CARE SERVICES,10/02/2016,"1,088.88",74036-EXTERNAL RESIDENTIAL CARE-OTH AGENCY PROVISION,INDEPENDENT RESIDENTIAL HOMES,Third Party Payments,Revenue
Walsall Council,http://opendatacommunities.org/id/metropolitan-district-council/walsall,WC65-260,29/02/2016,Childrens,AMG NURSING CARE SERVICES,23/02/2016,"1,526.24",74036-EXTERNAL RESIDENTIAL CARE-OTH AGENCY PROVISION,INDEPENDENT RESIDENTIAL HOMES,Third Party Payments,Revenue
Walsall Council,http://opendatacommunities.org/id/metropolitan-district-council/walsall,WC65-261,29/02/2016,Childrens,AMG NURSING CARE SERVICES,01/02/2016,"2,229.76",74036-EXTERNAL RESIDENTIAL CARE-OTH AGENCY PROVISION,INDEPENDENT RESIDENTIAL HOMES,Third Party Payments,Revenue
Walsall Council,http://opendatacommunities.org/id/metropolitan-district-council/walsall,WC65-262,29/02/2016,Childrens,AMG NURSING CARE SERVICES,15/02/2016,"2,229.76",74036-EXTERNAL RESIDENTIAL CARE-OTH AGENCY PROVISION,INDEPENDENT RESIDENTIAL HOMES,Third Party Payments,Revenue
Walsall Council,http://opendatacommunities.org/id/metropolitan-district-council/walsall,WC65-263,29/02/2016,Childrens,AMG NURSING CARE SERVICES,22/02/2016,"2,229.76",74036-EXTERNAL RESIDENTIAL CARE-OTH AGENCY PROVISION,INDEPENDENT RESIDENTIAL HOMES,Third Party Payments,Revenue
Walsall Council,http://opendatacommunities.org/id/metropolitan-district-council/walsall,WC65-264,29/02/2016,Childrens,AMG NURSING CARE SERVICES,22/02/2016,"2,229.76",74036-EXTERNAL RESIDENTIAL CARE-OTH AGENCY PROVISION,INDEPENDENT RESIDENTIAL HOMES,Third Party Payments,Revenue
Walsall Council,http://opendatacommunities.org/id/metropolitan-district-council/walsall,WC65-265,29/02/2016,Social Care & Inclusion,AMG NURSING CARE SERVICES,16/02/2016,"5,065.75",73372-DOMICILIARY CARE,YADS COMMISSIONING,Third Party Payments,Revenue
Walsall Council,http://opendatacommunities.org/id/metropolitan-district-council/walsall,WC65-266,29/02/2016,Social Care & Inclusion,AMG NURSING CARE SERVICES,22/02/2016,"52,949.60",73374-SUPPORTED & OTHER ACCOMMODATION,YADS COMMISSIONING,Third Party Payments,Revenue
Walsall Council,http://opendatacommunities.org/id/metropolitan-district-council/walsall,WC65-267,29/02/2016,Social Care & Inclusion,REDACTED,09/02/2016,"1,133.44",76422-DIRECT PAYMENTS TO SOCIAL SERVICES CLIENTS,OP COMMISSIONING,Transfer Payments,Revenue
Walsall Council,http://opendatacommunities.org/id/metropolitan-district-council/walsall,WC65-268,29/02/2016,Social Care & Inclusion,REDACTED,09/02/2016,945,76422-DIRECT PAYMENTS TO SOCIAL SERVICES CLIENTS,OP COMMISSIONING,Transfer Payments,Revenue
Walsall Council,http://opendatacommunities.org/id/metropolitan-district-council/walsall,WC65-269,29/02/2016,Childrens,REDACTED,15/02/2016,425.08,74006-HOLIDAY/CHRISTMAS ALLOWANCE-FOSTER CARERS-OTH AGENCY PROVISION,INTERNAL FOSTER CARE PROVISION,Third Party Payments,Revenue
Walsall Council,http://opendatacommunities.org/id/metropolitan-district-council/walsall,WC65-270,29/02/2016,Social Care & Inclusion,REDACTED,09/02/2016,544,76422-DIRECT PAYMENTS TO SOCIAL SERVICES CLIENTS,OP COMMISSIONING,Transfer Payments,Revenue
Walsall Council,http://opendatacommunities.org/id/metropolitan-district-council/walsall,WC65-271,29/02/2016,Social Care & Inclusion,REDACTED,09/02/2016,714,76422-DIRECT PAYMENTS TO SOCIAL SERVICES CLIENTS,OP COMMISSIONING,Transfer Payments,Revenue
Walsall Council,http://opendatacommunities.org/id/metropolitan-district-council/walsall,WC65-272,29/02/2016,Social Care & Inclusion,ANCHOR,16/02/2016,"1,120.46",73373-RESIDENTIAL & NURSING CARE PLACEMENTS,OP COMMISSIONING,Third Party Payments,Revenue
Walsall Council,http://opendatacommunities.org/id/metropolitan-district-council/walsall,WC65-273,29/02/2016,Social Care & Inclusion,ANCHOR,16/02/2016,"1,493.24",73373-RESIDENTIAL & NURSING CARE PLACEMENTS,OP COMMISSIONING,Third Party Payments,Revenue
Walsall Council,http://opendatacommunities.org/id/metropolitan-district-council/walsall,WC65-274,29/02/2016,Social Care & Inclusion,ANCHOR,16/02/2016,"1,493.24",73373-RESIDENTIAL & NURSING CARE PLACEMENTS,OP COMMISSIONING,Third Party Payments,Revenue
Walsall Council,http://opendatacommunities.org/id/metropolitan-district-council/walsall,WC65-275,29/02/2016,Social Care & Inclusion,ANCHOR,16/02/2016,"1,568.64",73373-RESIDENTIAL & NURSING CARE PLACEMENTS,OP COMMISSIONING,Third Party Payments,Revenue
Walsall Council,http://opendatacommunities.org/id/metropolitan-district-council/walsall,WC65-276,29/02/2016,Social Care & Inclusion,ANCHOR,16/02/2016,"1,568.64",73373-RESIDENTIAL & NURSING CARE PLACEMENTS,OP COMMISSIONING,Third Party Payments,Revenue
Walsall Council,http://opendatacommunities.org/id/metropolitan-district-council/walsall,WC65-277,29/02/2016,Social Care & Inclusion,ANCHOR,16/02/2016,"1,568.64",73373-RESIDENTIAL & NURSING CARE PLACEMENTS,MH COMMISSIONING,Third Party Payments,Revenue
Walsall Council,http://opendatacommunities.org/id/metropolitan-district-council/walsall,WC65-278,29/02/2016,Social Care & Inclusion,ANCHOR,16/02/2016,"1,568.64",73373-RESIDENTIAL & NURSING CARE PLACEMENTS,OP COMMISSIONING,Third Party Payments,Revenue
Walsall Council,http://opendatacommunities.org/id/metropolitan-district-council/walsall,WC65-279,29/02/2016,Social Care & Inclusion,ANCHOR,16/02/2016,"1,568.64",73373-RESIDENTIAL & NURSING CARE PLACEMENTS,OP COMMISSIONING,Third Party Payments,Revenue
Walsall Council,http://opendatacommunities.org/id/metropolitan-district-council/walsall,WC65-280,29/02/2016,Social Care & Inclusion,ANCHOR,16/02/2016,"1,568.64",73373-RESIDENTIAL & NURSING CARE PLACEMENTS,OP COMMISSIONING,Third Party Payments,Revenue
Walsall Council,http://opendatacommunities.org/id/metropolitan-district-council/walsall,WC65-281,29/02/2016,Social Care & Inclusion,ANCHOR,16/02/2016,"1,568.64",73373-RESIDENTIAL & NURSING CARE PLACEMENTS,OP COMMISSIONING,Third Party Payments,Revenue
Walsall Council,http://opendatacommunities.org/id/metropolitan-district-council/walsall,WC65-282,29/02/2016,Social Care & Inclusion,ANCHOR,16/02/2016,"1,568.64",73373-RESIDENTIAL & NURSING CARE PLACEMENTS,OP COMMISSIONING,Third Party Payments,Revenue
Walsall Council,http://opendatacommunities.org/id/metropolitan-district-council/walsall,WC65-283,29/02/2016,Social Care & Inclusion,ANCHOR,16/02/2016,"1,568.64",73373-RESIDENTIAL & NURSING CARE PLACEMENTS,OP COMMISSIONING,Third Party Payments,Revenue
Walsall Council,http://opendatacommunities.org/id/metropolitan-district-council/walsall,WC65-284,29/02/2016,Social Care & Inclusion,ANCHOR,16/02/2016,"1,568.64",73373-RESIDENTIAL & NURSING CARE PLACEMENTS,OP COMMISSIONING,Third Party Payments,Revenue
Walsall Council,http://opendatacommunities.org/id/metropolitan-district-council/walsall,WC65-285,29/02/2016,Social Care & Inclusion,ANCHOR,16/02/2016,"1,568.64",73373-RESIDENTIAL & NURSING CARE PLACEMENTS,OP COMMISSIONING,Third Party Payments,Revenue
Walsall Council,http://opendatacommunities.org/id/metropolitan-district-council/walsall,WC65-286,29/02/2016,Social Care & Inclusion,ANCHOR,16/02/2016,"1,568.64",73373-RESIDENTIAL & NURSING CARE PLACEMENTS,OP COMMISSIONING,Third Party Payments,Revenue
Walsall Council,http://opendatacommunities.org/id/metropolitan-district-council/walsall,WC65-287,29/02/2016,Social Care & Inclusion,ANCHOR,16/02/2016,"1,568.64",73373-RESIDENTIAL & NURSING CARE PLACEMENTS,OP COMMISSIONING,Third Party Payments,Revenue
Walsall Council,http://opendatacommunities.org/id/metropolitan-district-council/walsall,WC65-288,29/02/2016,Social Care & Inclusion,ANCHOR,16/02/2016,"1,568.64",73373-RESIDENTIAL & NURSING CARE PLACEMENTS,OP COMMISSIONING,Third Party Payments,Revenue
Walsall Council,http://opendatacommunities.org/id/metropolitan-district-council/walsall,WC65-289,29/02/2016,Social Care & Inclusion,ANCHOR,16/02/2016,"1,568.64",73373-RESIDENTIAL & NURSING CARE PLACEMENTS,OP COMMISSIONING,Third Party Payments,Revenue
Walsall Council,http://opendatacommunities.org/id/metropolitan-district-council/walsall,WC65-290,29/02/2016,Social Care & Inclusion,ANCHOR,24/02/2016,"1,960.85",73373-RESIDENTIAL & NURSING CARE PLACEMENTS,OP COMMISSIONING,Third Party Payments,Revenue
Walsall Council,http://opendatacommunities.org/id/metropolitan-district-council/walsall,WC65-291,29/02/2016,Childrens,REDACTED,01/02/2016,650.92,74006-HOLIDAY/CHRISTMAS ALLOWANCE-FOSTER CARERS-OTH AGENCY PROVISION,INTERNAL FOSTER CARE PROVISION,Third Party Payments,Revenue
Walsall Council,http://opendatacommunities.org/id/metropolitan-district-council/walsall,WC65-292,29/02/2016,Childrens,REDACTED,29/02/2016,"1,128.16",62515-MISCELLANEOUS SUPPLIES,INTERNAL FOSTER CARE PROVISION,Supplies & Services,Revenue
Walsall Council,http://opendatacommunities.org/id/metropolitan-district-council/walsall,WC65-293,29/02/2016,Childrens,REDACTED,01/02/2016,"1,186.46",62515-MISCELLANEOUS SUPPLIES,INTERNAL FOSTER CARE PROVISION,Supplies & Services,Revenue
Walsall Council,http://opendatacommunities.org/id/metropolitan-district-council/walsall,WC65-294,29/02/2016,Social Care & Inclusion,REDACTED,09/02/2016,378,76422-DIRECT PAYMENTS TO SOCIAL SERVICES CLIENTS,YADS COMMISSIONING,Transfer Payments,Revenue
Walsall Council,http://opendatacommunities.org/id/metropolitan-district-council/walsall,WC65-295,29/02/2016,Childrens,REDACTED,15/02/2016,"1,952.76",74006-HOLIDAY/CHRISTMAS ALLOWANCE-FOSTER CARERS-OTH AGENCY PROVISION,INTERNAL FOSTER CARE PROVISION,Third Party Payments,Revenue
Walsall Council,http://opendatacommunities.org/id/metropolitan-district-council/walsall,WC65-296,29/02/2016,Childrens,ANGLIA DNA SERVICES LIMITED,01/02/2016,287,73014-LEGAL FEES-PRIV CONTRACTOR FEES,GENERAL MANAGEMENT SUPPORT (INC LEGAL),Third Party Payments,Revenue
Walsall Council,http://opendatacommunities.org/id/metropolitan-district-council/walsall,WC65-297,29/02/2016,Childrens,ANGLIA DNA SERVICES LIMITED,01/02/2016,848,73014-LEGAL FEES-PRIV CONTRACTOR FEES,GENERAL MANAGEMENT SUPPORT (INC LEGAL),Third Party Payments,Revenue
Walsall Council,http://opendatacommunities.org/id/metropolitan-district-council/walsall,WC65-298,29/02/2016,Change and Governance,ANGLIA STAIRLIFTS LTD,09/02/2016,250,01045-PRIVATE GRANTS,CFR 826 DISABLED FACILITIES GRANTS (SOCIAL SERVICES),Capital,Capital
Walsall Council,http://opendatacommunities.org/id/metropolitan-district-council/walsall,WC65-299,29/02/2016,Change and Governance,ANGLIA STAIRLIFTS LTD,16/02/2016,250,01045-PRIVATE GRANTS,CFR 826 DISABLED FACILITIES GRANTS (SOCIAL SERVICES),Capital,Capital
Walsall Council,http://opendatacommunities.org/id/metropolitan-district-council/walsall,WC65-300,29/02/2016,Change and Governance,ANGLIA STAIRLIFTS LTD,15/02/2016,270,01045-PRIVATE GRANTS,CFR 826 DISABLED FACILITIES GRANTS (SOCIAL SERVICES),Capital,Capital
Walsall Council,http://opendatacommunities.org/id/metropolitan-district-council/walsall,WC65-301,29/02/2016,Change and Governance,ANGLIA STAIRLIFTS LTD,18/02/2016,"3,750.00",01045-PRIVATE GRANTS,CFR 826 DISABLED FACILITIES GRANTS (SOCIAL SERVICES),Capital,Capital
Walsall Council,http://opendatacommunities.org/id/metropolitan-district-council/walsall,WC65-302,29/02/2016,Change and Governance,ANGLIA STAIRLIFTS LTD,22/02/2016,"4,030.00",01045-PRIVATE GRANTS,CFR 826 DISABLED FACILITIES GRANTS (SOCIAL SERVICES),Capital,Capital
Walsall Council,http://opendatacommunities.org/id/metropolitan-district-council/walsall,WC65-303,29/02/2016,Change and Governance,ANGLIA STAIRLIFTS LTD,09/02/2016,"4,045.00",01045-PRIVATE GRANTS,CFR 826 DISABLED FACILITIES GRANTS (SOCIAL SERVICES),Capital,Capital
Walsall Council,http://opendatacommunities.org/id/metropolitan-district-council/walsall,WC65-304,29/02/2016,Change and Governance,ANGLIA STAIRLIFTS LTD,17/02/2016,"4,104.00",01045-PRIVATE GRANTS,CFR 826 DISABLED FACILITIES GRANTS (SOCIAL SERVICES),Capital,Capital
Walsall Council,http://opendatacommunities.org/id/metropolitan-district-council/walsall,WC65-305,29/02/2016,Change and Governance,ANGLIA STAIRLIFTS LTD,03/02/2016,"4,565.00",01045-PRIVATE GRANTS,CFR 826 DISABLED FACILITIES GRANTS (SOCIAL SERVICES),Capital,Capital
Walsall Council,http://opendatacommunities.org/id/metropolitan-district-council/walsall,WC65-306,29/02/2016,Change and Governance,ANGLIA STAIRLIFTS LTD,22/02/2016,"4,670.00",01045-PRIVATE GRANTS,CFR 826 DISABLED FACILITIES GRANTS (SOCIAL SERVICES),Capital,Capital
Walsall Council,http://opendatacommunities.org/id/metropolitan-district-council/walsall,WC65-307,29/02/2016,Change and Governance,ANGLIA STAIRLIFTS LTD,22/02/2016,"4,765.00",01045-PRIVATE GRANTS,CFR 826 DISABLED FACILITIES GRANTS (SOCIAL SERVICES),Capital,Capital
Walsall Council,http://opendatacommunities.org/id/metropolitan-district-council/walsall,WC65-308,29/02/2016,Change and Governance,ANGLIA STAIRLIFTS LTD,05/02/2016,"4,815.00",01045-PRIVATE GRANTS,CFR 826 DISABLED FACILITIES GRANTS (SOCIAL SERVICES),Capital,Capital
Walsall Council,http://opendatacommunities.org/id/metropolitan-district-council/walsall,WC65-309,29/02/2016,Change and Governance,ANGLIA STAIRLIFTS LTD,22/02/2016,"4,965.00",01045-PRIVATE GRANTS,CFR 826 DISABLED FACILITIES GRANTS (SOCIAL SERVICES),Capital,Capital
Walsall Council,http://opendatacommunities.org/id/metropolitan-district-council/walsall,WC65-310,29/02/2016,Social Care & Inclusion,REDACTED,09/02/2016,344,76422-DIRECT PAYMENTS TO SOCIAL SERVICES CLIENTS,LD COMMISSIONING,Transfer Payments,Revenue
Walsall Council,http://opendatacommunities.org/id/metropolitan-district-council/walsall,WC65-311,29/02/2016,Childrens,REDACTED,26/02/2016,-52.19,74501-MAINTENANCE ALLOWANCE-FOSTER CARERS,INTERNAL FOSTER CARE PROVISION,Transfer Payments,Revenue
Walsall Council,http://opendatacommunities.org/id/metropolitan-district-council/walsall,WC65-312,29/02/2016,Childrens,REDACTED,26/02/2016,8.91,60006-NEW-FURNITURE & EQUIPMENT,INTERNAL FOSTER CARE PROVISION,Supplies & Services,Revenue
Walsall Council,http://opendatacommunities.org/id/metropolitan-district-council/walsall,WC65-313,29/02/2016,Childrens,REDACTED,26/02/2016,409.22,74506-TRAVEL-FOSTER CARERS,INTERNAL FOSTER CARE PROVISION,Transfer Payments,Revenue
Walsall Council,http://opendatacommunities.org/id/metropolitan-district-council/walsall,WC65-314,29/02/2016,Childrens,REDACTED,26/02/2016,523.29,74508-INTERNAL FOSTER CARERS-CARER FEES,INTERNAL FOSTER CARE PROVISION,Transfer Payments,Revenue
Walsall Council,http://opendatacommunities.org/id/metropolitan-district-council/walsall,WC65-315,29/02/2016,Childrens,REDACTED,01/02/2016,925,62515-MISCELLANEOUS SUPPLIES,INTERNAL FOSTER CARE PROVISION,Supplies & Services,Revenue
Walsall Council,http://opendatacommunities.org/id/metropolitan-district-council/walsall,WC65-316,29/02/2016,Childrens,REDACTED,01/02/2016,"1,461.24",74006-HOLIDAY/CHRISTMAS ALLOWANCE-FOSTER CARERS-OTH AGENCY PROVISION,INTERNAL FOSTER CARE PROVISION,Third Party Payments,Revenue
Walsall Council,http://opendatacommunities.org/id/metropolitan-district-council/walsall,WC65-317,29/02/2016,Social Care & Inclusion,REDACTED,24/02/2016,947.75,73374-SUPPORTED & OTHER ACCOMMODATION,LD COMMISSIONING,Third Party Payments,Revenue
Walsall Council,http://opendatacommunities.org/id/metropolitan-district-council/walsall,WC65-318,29/02/2016,Social Care & Inclusion,ANSON COURT RESIDENTIAL HOME,24/02/2016,"-1,709.38",73373-RESIDENTIAL & NURSING CARE PLACEMENTS,OP COMMISSIONING,Third Party Payments,Revenue
Walsall Council,http://opendatacommunities.org/id/metropolitan-district-council/walsall,WC65-319,29/02/2016,Social Care & Inclusion,ANSON COURT RESIDENTIAL HOME,16/02/2016,504.21,73373-RESIDENTIAL & NURSING CARE PLACEMENTS,OP COMMISSIONING,Third Party Payments,Revenue
Walsall Council,http://opendatacommunities.org/id/metropolitan-district-council/walsall,WC65-320,29/02/2016,Social Care & Inclusion,ANSON COURT RESIDENTIAL HOME,09/02/2016,"1,567.00",73373-RESIDENTIAL & NURSING CARE PLACEMENTS,OP COMMISSIONING,Third Party Payments,Revenue
Walsall Council,http://opendatacommunities.org/id/metropolitan-district-council/walsall,WC65-321,29/02/2016,Social Care & Inclusion,ANSON COURT RESIDENTIAL HOME,09/02/2016,"1,568.64",73373-RESIDENTIAL & NURSING CARE PLACEMENTS,OP COMMISSIONING,Third Party Payments,Revenue
Walsall Council,http://opendatacommunities.org/id/metropolitan-district-council/walsall,WC65-322,29/02/2016,Social Care & Inclusion,ANSON COURT RESIDENTIAL HOME,09/02/2016,"1,568.64",73373-RESIDENTIAL & NURSING CARE PLACEMENTS,OP COMMISSIONING,Third Party Payments,Revenue
Walsall Council,http://opendatacommunities.org/id/metropolitan-district-council/walsall,WC65-323,29/02/2016,Social Care & Inclusion,ANSON COURT RESIDENTIAL HOME,09/02/2016,"1,568.64",73373-RESIDENTIAL & NURSING CARE PLACEMENTS,OP COMMISSIONING,Third Party Payments,Revenue
Walsall Council,http://opendatacommunities.org/id/metropolitan-district-council/walsall,WC65-324,29/02/2016,Social Care & Inclusion,ANSON COURT RESIDENTIAL HOME,09/02/2016,"1,568.64",73373-RESIDENTIAL & NURSING CARE PLACEMENTS,MH COMMISSIONING,Third Party Payments,Revenue
Walsall Council,http://opendatacommunities.org/id/metropolitan-district-council/walsall,WC65-325,29/02/2016,Social Care & Inclusion,ANSON COURT RESIDENTIAL HOME,09/02/2016,"1,568.64",73373-RESIDENTIAL & NURSING CARE PLACEMENTS,OP COMMISSIONING,Third Party Payments,Revenue
Walsall Council,http://opendatacommunities.org/id/metropolitan-district-council/walsall,WC65-326,29/02/2016,Social Care & Inclusion,ANSON COURT RESIDENTIAL HOME,09/02/2016,"1,568.64",73373-RESIDENTIAL & NURSING CARE PLACEMENTS,OP COMMISSIONING,Third Party Payments,Revenue
Walsall Council,http://opendatacommunities.org/id/metropolitan-district-council/walsall,WC65-327,29/02/2016,Social Care & Inclusion,ANSON COURT RESIDENTIAL HOME,09/02/2016,"1,568.64",73373-RESIDENTIAL & NURSING CARE PLACEMENTS,MH COMMISSIONING,Third Party Payments,Revenue
Walsall Council,http://opendatacommunities.org/id/metropolitan-district-council/walsall,WC65-328,29/02/2016,Social Care & Inclusion,ANSON COURT RESIDENTIAL HOME,09/02/2016,"1,568.64",73373-RESIDENTIAL & NURSING CARE PLACEMENTS,MH COMMISSIONING,Third Party Payments,Revenue
Walsall Council,http://opendatacommunities.org/id/metropolitan-district-council/walsall,WC65-329,29/02/2016,Social Care & Inclusion,ANSON COURT RESIDENTIAL HOME,09/02/2016,"1,568.64",73373-RESIDENTIAL & NURSING CARE PLACEMENTS,MH COMMISSIONING,Third Party Payments,Revenue
Walsall Council,http://opendatacommunities.org/id/metropolitan-district-council/walsall,WC65-330,29/02/2016,Social Care & Inclusion,ANSON COURT RESIDENTIAL HOME,09/02/2016,"1,568.64",73373-RESIDENTIAL & NURSING CARE PLACEMENTS,OP COMMISSIONING,Third Party Payments,Revenue
Walsall Council,http://opendatacommunities.org/id/metropolitan-district-council/walsall,WC65-331,29/02/2016,Social Care & Inclusion,ANSON COURT RESIDENTIAL HOME,09/02/2016,"1,568.64",73373-RESIDENTIAL & NURSING CARE PLACEMENTS,OP COMMISSIONING,Third Party Payments,Revenue
Walsall Council,http://opendatacommunities.org/id/metropolitan-district-council/walsall,WC65-332,29/02/2016,Social Care & Inclusion,ANSON COURT RESIDENTIAL HOME,09/02/2016,"1,568.64",73373-RESIDENTIAL & NURSING CARE PLACEMENTS,OP COMMISSIONING,Third Party Payments,Revenue
Walsall Council,http://opendatacommunities.org/id/metropolitan-district-council/walsall,WC65-333,29/02/2016,Social Care & Inclusion,ANSON COURT RESIDENTIAL HOME,16/02/2016,"1,568.64",73373-RESIDENTIAL & NURSING CARE PLACEMENTS,OP COMMISSIONING,Third Party Payments,Revenue
Walsall Council,http://opendatacommunities.org/id/metropolitan-district-council/walsall,WC65-334,29/02/2016,Social Care & Inclusion,ANSON COURT RESIDENTIAL HOME,16/02/2016,"1,568.64",73373-RESIDENTIAL & NURSING CARE PLACEMENTS,OP COMMISSIONING,Third Party Payments,Revenue
Walsall Council,http://opendatacommunities.org/id/metropolitan-district-council/walsall,WC65-335,29/02/2016,Social Care & Inclusion,ANSON COURT RESIDENTIAL HOME,16/02/2016,"1,568.64",73373-RESIDENTIAL & NURSING CARE PLACEMENTS,OP COMMISSIONING,Third Party Payments,Revenue
Walsall Council,http://opendatacommunities.org/id/metropolitan-district-council/walsall,WC65-336,29/02/2016,Social Care & Inclusion,ANSON COURT RESIDENTIAL HOME,16/02/2016,"1,568.64",73373-RESIDENTIAL & NURSING CARE PLACEMENTS,OP COMMISSIONING,Third Party Payments,Revenue
Walsall Council,http://opendatacommunities.org/id/metropolitan-district-council/walsall,WC65-337,29/02/2016,Social Care & Inclusion,ANSON COURT RESIDENTIAL HOME,09/02/2016,"1,649.20",73373-RESIDENTIAL & NURSING CARE PLACEMENTS,MH COMMISSIONING,Third Party Payments,Revenue
Walsall Council,http://opendatacommunities.org/id/metropolitan-district-council/walsall,WC65-338,29/02/2016,Social Care & Inclusion,ANSON COURT RESIDENTIAL HOME,09/02/2016,"1,650.44",73373-RESIDENTIAL & NURSING CARE PLACEMENTS,OP COMMISSIONING,Third Party Payments,Revenue
Walsall Council,http://opendatacommunities.org/id/metropolitan-district-council/walsall,WC65-339,29/02/2016,Social Care & Inclusion,ANSON COURT RESIDENTIAL HOME,09/02/2016,"1,651.04",73373-RESIDENTIAL & NURSING CARE PLACEMENTS,OP COMMISSIONING,Third Party Payments,Revenue
Walsall Council,http://opendatacommunities.org/id/metropolitan-district-council/walsall,WC65-340,29/02/2016,Social Care & Inclusion,ANSON COURT RESIDENTIAL HOME,09/02/2016,"1,651.04",73373-RESIDENTIAL & NURSING CARE PLACEMENTS,OP COMMISSIONING,Third Party Payments,Revenue
Walsall Council,http://opendatacommunities.org/id/metropolitan-district-council/walsall,WC65-341,29/02/2016,Change and Governance,ANTALIS LIMITED,16/02/2016,222.94,60500-GENERAL MATERIALS,PRINTING SERVICES,Supplies & Services,Revenue
Walsall Council,http://opendatacommunities.org/id/metropolitan-district-council/walsall,WC65-342,29/02/2016,Childrens,REDACTED,15/02/2016,"1,369.84",74006-HOLIDAY/CHRISTMAS ALLOWANCE-FOSTER CARERS-OTH AGENCY PROVISION,INTERNAL FOSTER CARE PROVISION,Third Party Payments,Revenue
Walsall Council,http://opendatacommunities.org/id/metropolitan-district-council/walsall,WC65-343,29/02/2016,Childrens,REDACTED,15/02/2016,571.44,74006-HOLIDAY/CHRISTMAS ALLOWANCE-FOSTER CARERS-OTH AGENCY PROVISION,INTERNAL FOSTER CARE PROVISION,Third Party Payments,Revenue
Walsall Council,http://opendatacommunities.org/id/metropolitan-district-council/walsall,WC65-344,29/02/2016,Economy & Environment,APCOA PARKING SERVICES (UK) LTD,05/02/2016,"46,644.86",73025-PROFESSIONAL SERVICES-PRIV CONTRACTOR & OTHER AGENCIES,PARKING SERVICES,Third Party Payments,Revenue
Walsall Council,http://opendatacommunities.org/id/metropolitan-district-council/walsall,WC65-345,29/02/2016,Social Care & Inclusion,APNA HOUSE LTD,02/02/2016,"5,586.96",73373-RESIDENTIAL & NURSING CARE PLACEMENTS,OP COMMISSIONING,Third Party Payments,Revenue
Walsall Council,http://opendatacommunities.org/id/metropolitan-district-council/walsall,WC65-346,29/02/2016,Social Care & Inclusion,APNA HOUSE LTD,02/02/2016,"5,586.96",73373-RESIDENTIAL & NURSING CARE PLACEMENTS,OP COMMISSIONING,Third Party Payments,Revenue
Walsall Council,http://opendatacommunities.org/id/metropolitan-district-council/walsall,WC65-347,29/02/2016,Childrens,APPLE TRANSCRIPTION LIMITED,01/02/2016,315,73014-LEGAL FEES-PRIV CONTRACTOR FEES,GENERAL MANAGEMENT SUPPORT (INC LEGAL),Third Party Payments,Revenue
Walsall Council,http://opendatacommunities.org/id/metropolitan-district-council/walsall,WC65-348,29/02/2016,Economy & Environment,APSE 001,08/02/2016,338,30030-EXTERNAL TRAINING,STREET CLEANSING,Employees,Revenue
Walsall Council,http://opendatacommunities.org/id/metropolitan-district-council/walsall,WC65-349,29/02/2016,Economy & Environment,AQUALYMPIC,05/02/2016,450,63000-PROFESSIONAL FEES AND SERVICES,WALSALL GALA CENTRE,Supplies & Services,Revenue
Walsall Council,http://opendatacommunities.org/id/metropolitan-district-council/walsall,WC65-350,29/02/2016,Economy & Environment,AQUAMO LTD,15/02/2016,"1,455.35",63239-EXTERNAL WORKS-PAYMENT TO CONTRACTOR,WALSALL GALA CENTRE,Third Party Payments,Revenue
Walsall Council,http://opendatacommunities.org/id/metropolitan-district-council/walsall,WC65-351,29/02/2016,Social Care & Inclusion,ARBORETUM NURSING HOME.,16/02/2016,"-1,377.50",73373-RESIDENTIAL & NURSING CARE PLACEMENTS,OP COMMISSIONING,Third Party Payments,Revenue
Walsall Council,http://opendatacommunities.org/id/metropolitan-district-council/walsall,WC65-352,29/02/2016,Social Care & Inclusion,ARBORETUM NURSING HOME.,09/02/2016,"1,975.60",73373-RESIDENTIAL & NURSING CARE PLACEMENTS,OP COMMISSIONING,Third Party Payments,Revenue
Walsall Council,http://opendatacommunities.org/id/metropolitan-district-council/walsall,WC65-353,29/02/2016,Social Care & Inclusion,ARBORETUM NURSING HOME.,09/02/2016,"1,975.60",73373-RESIDENTIAL & NURSING CARE PLACEMENTS,OP COMMISSIONING,Third Party Payments,Revenue
Walsall Council,http://opendatacommunities.org/id/metropolitan-district-council/walsall,WC65-354,29/02/2016,Social Care & Inclusion,ARBORETUM NURSING HOME.,09/02/2016,"1,975.60",73373-RESIDENTIAL & NURSING CARE PLACEMENTS,OP COMMISSIONING,Third Party Payments,Revenue
Walsall Council,http://opendatacommunities.org/id/metropolitan-district-council/walsall,WC65-355,29/02/2016,Social Care & Inclusion,ARBORETUM NURSING HOME.,09/02/2016,"1,975.60",73373-RESIDENTIAL & NURSING CARE PLACEMENTS,YADS COMMISSIONING,Third Party Payments,Revenue
Walsall Council,http://opendatacommunities.org/id/metropolitan-district-council/walsall,WC65-356,29/02/2016,Social Care & Inclusion,ARBORETUM NURSING HOME.,09/02/2016,"1,975.60",73373-RESIDENTIAL & NURSING CARE PLACEMENTS,OP COMMISSIONING,Third Party Payments,Revenue
Walsall Council,http://opendatacommunities.org/id/metropolitan-district-council/walsall,WC65-357,29/02/2016,Social Care & Inclusion,ARBORETUM NURSING HOME.,09/02/2016,"1,975.60",73373-RESIDENTIAL & NURSING CARE PLACEMENTS,OP COMMISSIONING,Third Party Payments,Revenue
Walsall Council,http://opendatacommunities.org/id/metropolitan-district-council/walsall,WC65-358,29/02/2016,Social Care & Inclusion,ARBORETUM NURSING HOME.,09/02/2016,"2,017.16",73373-RESIDENTIAL & NURSING CARE PLACEMENTS,OP COMMISSIONING,Third Party Payments,Revenue
Walsall Council,http://opendatacommunities.org/id/metropolitan-district-council/walsall,WC65-359,29/02/2016,Social Care & Inclusion,ARBORETUM NURSING HOME.,09/02/2016,"2,030.00",73373-RESIDENTIAL & NURSING CARE PLACEMENTS,OP COMMISSIONING,Third Party Payments,Revenue
Walsall Council,http://opendatacommunities.org/id/metropolitan-district-council/walsall,WC65-360,29/02/2016,Social Care & Inclusion,ARBORETUM NURSING HOME.,17/02/2016,"15,000.00",73019-PSE'S-PRIV CONTRACTOR FEES,TRANSITIONAL CARE SUPPORT TEAM,Third Party Payments,Revenue
Walsall Council,http://opendatacommunities.org/id/metropolitan-district-council/walsall,WC65-361,29/02/2016,Economy & Environment,ARCANE DIRECT MARKETING,08/02/2016,311.09,62511-DISTRIBUTION,NAG - ART GALLERY MARKETING,Supplies & Services,Revenue
Walsall Council,http://opendatacommunities.org/id/metropolitan-district-council/walsall,WC65-362,29/02/2016,Economy & Environment,ARCANE DIRECT MARKETING,08/02/2016,946.21,62511-DISTRIBUTION,NAG - ART GALLERY MARKETING,Supplies & Services,Revenue
Walsall Council,http://opendatacommunities.org/id/metropolitan-district-council/walsall,WC65-363,29/02/2016,Economy & Environment,ARCHWAY TCS LTD,17/02/2016,577.32,60537-VEHICLE WASH PLANT-MATERIALS,DEPOT,Supplies & Services,Revenue
Walsall Council,http://opendatacommunities.org/id/metropolitan-district-council/walsall,WC65-364,29/02/2016,Economy & Environment,ARCHWAY TCS LTD,15/02/2016,707.5,60537-VEHICLE WASH PLANT-MATERIALS,DEPOT,Supplies & Services,Revenue
Walsall Council,http://opendatacommunities.org/id/metropolitan-district-council/walsall,WC65-365,29/02/2016,Economy & Environment,ARCHWAY TCS LTD,15/02/2016,707.5,60537-VEHICLE WASH PLANT-MATERIALS,DEPOT,Supplies & Services,Revenue
Walsall Council,http://opendatacommunities.org/id/metropolitan-district-council/walsall,WC65-366,29/02/2016,Economy & Environment,ARCHWAY TCS LTD,15/02/2016,707.5,73025-PROFESSIONAL SERVICES-PRIV CONTRACTOR & OTHER AGENCIES,DEPOT,Third Party Payments,Revenue
Walsall Council,http://opendatacommunities.org/id/metropolitan-district-council/walsall,WC65-367,29/02/2016,Economy & Environment,ARCHWAY TCS LTD,15/02/2016,707.5,73025-PROFESSIONAL SERVICES-PRIV CONTRACTOR & OTHER AGENCIES,DEPOT,Third Party Payments,Revenue
Walsall Council,http://opendatacommunities.org/id/metropolitan-district-council/walsall,WC65-368,29/02/2016,Economy & Environment,ARCHWAY TCS LTD,15/02/2016,707.5,73025-PROFESSIONAL SERVICES-PRIV CONTRACTOR & OTHER AGENCIES,DEPOT,Third Party Payments,Revenue
Walsall Council,http://opendatacommunities.org/id/metropolitan-district-council/walsall,WC65-369,29/02/2016,Economy & Environment,ASA AWARDS,18/02/2016,281.7,60006-NEW-FURNITURE & EQUIPMENT,OAK PARK,Supplies & Services,Revenue
Walsall Council,http://opendatacommunities.org/id/metropolitan-district-council/walsall,WC65-370,29/02/2016,Economy & Environment,ASCEL,08/02/2016,350,30030-EXTERNAL TRAINING,LIBRARY DEVELOPMENT 1,Employees,Revenue
Walsall Council,http://opendatacommunities.org/id/metropolitan-district-council/walsall,WC65-371,29/02/2016,Economy & Environment,ASDA PHARMACY,16/02/2016,300,71007-CONTRIBUTION TO PCT,PUBLIC HEALTH BUSINESS SUPPORT,Third Party Payments,Revenue
Walsall Council,http://opendatacommunities.org/id/metropolitan-district-council/walsall,WC65-372,29/02/2016,Social Care & Inclusion,ASH GRANGE CARE HOME,09/02/2016,"-1,988.20",73373-RESIDENTIAL & NURSING CARE PLACEMENTS,OP COMMISSIONING,Third Party Payments,Revenue
Walsall Council,http://opendatacommunities.org/id/metropolitan-district-council/walsall,WC65-373,29/02/2016,Social Care & Inclusion,ASH GRANGE CARE HOME,09/02/2016,"-1,917.19",73373-RESIDENTIAL & NURSING CARE PLACEMENTS,OP COMMISSIONING,Third Party Payments,Revenue
Walsall Council,http://opendatacommunities.org/id/metropolitan-district-council/walsall,WC65-374,29/02/2016,Social Care & Inclusion,ASH GRANGE CARE HOME,16/02/2016,"-1,207.12",73373-RESIDENTIAL & NURSING CARE PLACEMENTS,OP COMMISSIONING,Third Party Payments,Revenue
Walsall Council,http://opendatacommunities.org/id/metropolitan-district-council/walsall,WC65-375,29/02/2016,Social Care & Inclusion,ASH GRANGE CARE HOME,09/02/2016,-639.06,73373-RESIDENTIAL & NURSING CARE PLACEMENTS,OP COMMISSIONING,Third Party Payments,Revenue
Walsall Council,http://opendatacommunities.org/id/metropolitan-district-council/walsall,WC65-376,29/02/2016,Social Care & Inclusion,ASH GRANGE CARE HOME,02/02/2016,"1,505.56",73373-RESIDENTIAL & NURSING CARE PLACEMENTS,OP COMMISSIONING,Third Party Payments,Revenue
Walsall Council,http://opendatacommunities.org/id/metropolitan-district-council/walsall,WC65-377,29/02/2016,Social Care & Inclusion,ASH GRANGE CARE HOME,02/02/2016,"1,988.20",73373-RESIDENTIAL & NURSING CARE PLACEMENTS,OP COMMISSIONING,Third Party Payments,Revenue
Walsall Council,http://opendatacommunities.org/id/metropolitan-district-council/walsall,WC65-378,29/02/2016,Social Care & Inclusion,ASH GRANGE CARE HOME,02/02/2016,"1,988.20",73373-RESIDENTIAL & NURSING CARE PLACEMENTS,OP COMMISSIONING,Third Party Payments,Revenue
Walsall Council,http://opendatacommunities.org/id/metropolitan-district-council/walsall,WC65-379,29/02/2016,Social Care & Inclusion,ASH GRANGE CARE HOME,02/02/2016,"1,988.20",73373-RESIDENTIAL & NURSING CARE PLACEMENTS,MH COMMISSIONING,Third Party Payments,Revenue
Walsall Council,http://opendatacommunities.org/id/metropolitan-district-council/walsall,WC65-380,29/02/2016,Social Care & Inclusion,ASH GRANGE CARE HOME,02/02/2016,"1,988.20",73373-RESIDENTIAL & NURSING CARE PLACEMENTS,OP COMMISSIONING,Third Party Payments,Revenue
Walsall Council,http://opendatacommunities.org/id/metropolitan-district-council/walsall,WC65-381,29/02/2016,Social Care & Inclusion,ASH GRANGE CARE HOME,02/02/2016,"1,988.20",73373-RESIDENTIAL & NURSING CARE PLACEMENTS,OP COMMISSIONING,Third Party Payments,Revenue
Walsall Council,http://opendatacommunities.org/id/metropolitan-district-council/walsall,WC65-382,29/02/2016,Social Care & Inclusion,ASH GRANGE CARE HOME,02/02/2016,"1,988.20",73373-RESIDENTIAL & NURSING CARE PLACEMENTS,OP COMMISSIONING,Third Party Payments,Revenue
Walsall Council,http://opendatacommunities.org/id/metropolitan-district-council/walsall,WC65-383,29/02/2016,Social Care & Inclusion,ASH GRANGE CARE HOME,02/02/2016,"1,988.20",73373-RESIDENTIAL & NURSING CARE PLACEMENTS,OP COMMISSIONING,Third Party Payments,Revenue
Walsall Council,http://opendatacommunities.org/id/metropolitan-district-council/walsall,WC65-384,29/02/2016,Social Care & Inclusion,ASH GRANGE CARE HOME,02/02/2016,"1,988.20",73373-RESIDENTIAL & NURSING CARE PLACEMENTS,OP COMMISSIONING,Third Party Payments,Revenue
Walsall Council,http://opendatacommunities.org/id/metropolitan-district-council/walsall,WC65-385,29/02/2016,Social Care & Inclusion,ASH GRANGE CARE HOME,02/02/2016,"1,988.20",73373-RESIDENTIAL & NURSING CARE PLACEMENTS,OP COMMISSIONING,Third Party Payments,Revenue
Walsall Council,http://opendatacommunities.org/id/metropolitan-district-council/walsall,WC65-386,29/02/2016,Social Care & Inclusion,ASH GRANGE CARE HOME,02/02/2016,"1,988.20",73373-RESIDENTIAL & NURSING CARE PLACEMENTS,OP COMMISSIONING,Third Party Payments,Revenue
Walsall Council,http://opendatacommunities.org/id/metropolitan-district-council/walsall,WC65-387,29/02/2016,Social Care & Inclusion,ASH GRANGE CARE HOME,09/02/2016,"1,988.20",73373-RESIDENTIAL & NURSING CARE PLACEMENTS,OP COMMISSIONING,Third Party Payments,Revenue
Walsall Council,http://opendatacommunities.org/id/metropolitan-district-council/walsall,WC65-388,29/02/2016,Social Care & Inclusion,ASH GRANGE CARE HOME,02/02/2016,"2,065.64",73373-RESIDENTIAL & NURSING CARE PLACEMENTS,OP COMMISSIONING,Third Party Payments,Revenue
Walsall Council,http://opendatacommunities.org/id/metropolitan-district-council/walsall,WC65-389,29/02/2016,Social Care & Inclusion,ASH GRANGE CARE HOME,09/02/2016,"2,201.22",73373-RESIDENTIAL & NURSING CARE PLACEMENTS,OP COMMISSIONING,Third Party Payments,Revenue
Walsall Council,http://opendatacommunities.org/id/metropolitan-district-council/walsall,WC65-390,29/02/2016,Social Care & Inclusion,ASH GRANGE CARE HOME,02/02/2016,"2,943.72",73373-RESIDENTIAL & NURSING CARE PLACEMENTS,OP COMMISSIONING,Third Party Payments,Revenue
Walsall Council,http://opendatacommunities.org/id/metropolitan-district-council/walsall,WC65-391,29/02/2016,Social Care & Inclusion,ASH GRANGE CARE HOME,12/02/2016,"14,700.00",73019-PSE'S-PRIV CONTRACTOR FEES,TRANSITIONAL CARE SUPPORT TEAM,Third Party Payments,Revenue
Walsall Council,http://opendatacommunities.org/id/metropolitan-district-council/walsall,WC65-392,29/02/2016,Social Care & Inclusion,ASHBOURNE LODGE,16/02/2016,"2,033.73",73373-RESIDENTIAL & NURSING CARE PLACEMENTS,OP COMMISSIONING,Third Party Payments,Revenue
Walsall Council,http://opendatacommunities.org/id/metropolitan-district-council/walsall,WC65-393,29/02/2016,Economy & Environment,ASKEWS AND HOLTS LIBRARY SERVICES LTD,12/02/2016,224.02,60501-LIBRARY BOOKS,LIBRARY STOCK AND PERFORMANCE,Supplies & Services,Revenue
Walsall Council,http://opendatacommunities.org/id/metropolitan-district-council/walsall,WC65-394,29/02/2016,Economy & Environment,ASKEWS AND HOLTS LIBRARY SERVICES LTD,12/02/2016,252.32,60501-LIBRARY BOOKS,LIBRARY STOCK AND PERFORMANCE,Supplies & Services,Revenue
Walsall Council,http://opendatacommunities.org/id/metropolitan-district-council/walsall,WC65-395,29/02/2016,Economy & Environment,ASKEWS AND HOLTS LIBRARY SERVICES LTD,17/02/2016,263.9,60501-LIBRARY BOOKS,LIBRARY STOCK AND PERFORMANCE,Supplies & Services,Revenue
Walsall Council,http://opendatacommunities.org/id/metropolitan-district-council/walsall,WC65-396,29/02/2016,Economy & Environment,ASKEWS AND HOLTS LIBRARY SERVICES LTD,10/02/2016,363.9,60501-LIBRARY BOOKS,LIBRARY STOCK AND PERFORMANCE,Supplies & Services,Revenue
Walsall Council,http://opendatacommunities.org/id/metropolitan-district-council/walsall,WC65-397,29/02/2016,Economy & Environment,ASKEWS AND HOLTS LIBRARY SERVICES LTD,12/02/2016,365.88,60501-LIBRARY BOOKS,LIBRARY STOCK AND PERFORMANCE,Supplies & Services,Revenue
Walsall Council,http://opendatacommunities.org/id/metropolitan-district-council/walsall,WC65-398,29/02/2016,Economy & Environment,ASKEWS AND HOLTS LIBRARY SERVICES LTD,10/02/2016,369.19,60501-LIBRARY BOOKS,LIBRARY STOCK AND PERFORMANCE,Supplies & Services,Revenue
Walsall Council,http://opendatacommunities.org/id/metropolitan-district-council/walsall,WC65-399,29/02/2016,Economy & Environment,ASKEWS AND HOLTS LIBRARY SERVICES LTD,18/02/2016,530.64,60501-LIBRARY BOOKS,LIBRARY STOCK AND PERFORMANCE,Supplies & Services,Revenue
Walsall Council,http://opendatacommunities.org/id/metropolitan-district-council/walsall,WC65-400,29/02/2016,Economy & Environment,ASKEWS AND HOLTS LIBRARY SERVICES LTD,08/02/2016,573.53,60501-LIBRARY BOOKS,LIBRARY STOCK AND PERFORMANCE,Supplies & Services,Revenue
Walsall Council,http://opendatacommunities.org/id/metropolitan-district-council/walsall,WC65-401,29/02/2016,Economy & Environment,ASKEWS AND HOLTS LIBRARY SERVICES LTD,10/02/2016,713.59,60501-LIBRARY BOOKS,LIBRARY STOCK AND PERFORMANCE,Supplies & Services,Revenue
Walsall Council,http://opendatacommunities.org/id/metropolitan-district-council/walsall,WC65-402,29/02/2016,Social Care & Inclusion,REDACTED,09/02/2016,493,76422-DIRECT PAYMENTS TO SOCIAL SERVICES CLIENTS,YADS COMMISSIONING,Transfer Payments,Revenue
Walsall Council,http://opendatacommunities.org/id/metropolitan-district-council/walsall,WC65-403,29/02/2016,Economy & Environment,ASPINALL VERDI LIMITED,05/02/2016,343.77,01001-OTHER CONSULTANTS FEES,CFR 968 - BCBPIP,Capital,Capital
Walsall Council,http://opendatacommunities.org/id/metropolitan-district-council/walsall,WC65-404,29/02/2016,Childrens,ASSOCIATION FOR REHABILITATION OF COMMUNICATION AND ORAL SKILLS (ARCOS),24/02/2016,250,66502-TOP UP FUNDING -GRANTS TO SCHOOLS,INDEPENDENT PROVIDERS - POST SCHOOL,Third Party Payments,Revenue
Walsall Council,http://opendatacommunities.org/id/metropolitan-district-council/walsall,WC65-405,29/02/2016,Childrens,ASSOCIATION FOR REHABILITATION OF COMMUNICATION AND ORAL SKILLS (ARCOS),24/02/2016,475,66502-TOP UP FUNDING -GRANTS TO SCHOOLS,INDEPENDENT PROVIDERS - POST SCHOOL,Third Party Payments,Revenue
Walsall Council,http://opendatacommunities.org/id/metropolitan-district-council/walsall,WC65-406,29/02/2016,Childrens,ASSOCIATION FOR REHABILITATION OF COMMUNICATION AND ORAL SKILLS (ARCOS),24/02/2016,495,66502-TOP UP FUNDING -GRANTS TO SCHOOLS,INDEPENDENT PROVIDERS - POST SCHOOL,Third Party Payments,Revenue
Walsall Council,http://opendatacommunities.org/id/metropolitan-district-council/walsall,WC65-407,29/02/2016,Childrens,ASSOCIATION FOR REHABILITATION OF COMMUNICATION AND ORAL SKILLS (ARCOS),24/02/2016,900,66502-TOP UP FUNDING -GRANTS TO SCHOOLS,INDEPENDENT PROVIDERS - POST SCHOOL,Third Party Payments,Revenue
Walsall Council,http://opendatacommunities.org/id/metropolitan-district-council/walsall,WC65-408,29/02/2016,Change and Governance,ASSOCIATION OF BUILDING CLEANING DIRECT SERVICE PROVIDERS,19/02/2016,299,64500-PUBLICATIONS/ORGANISATIONS-SUBSCRIPTIONS,CL ADMIN,Supplies & Services,Revenue
Walsall Council,http://opendatacommunities.org/id/metropolitan-district-council/walsall,WC65-409,29/02/2016,Childrens,ASTON CHILDRENS CARE,23/02/2016,"7,542.70",74036-EXTERNAL RESIDENTIAL CARE-OTH AGENCY PROVISION,INDEPENDENT RESIDENTIAL HOMES,Third Party Payments,Revenue
Walsall Council,http://opendatacommunities.org/id/metropolitan-district-council/walsall,WC65-410,29/02/2016,Change and Governance,ASTOR BANNERMAN (MEDICAL) LTD,01/02/2016,548,01045-PRIVATE GRANTS,CFR 826 DISABLED FACILITIES GRANTS (SOCIAL SERVICES),Capital,Capital
Walsall Council,http://opendatacommunities.org/id/metropolitan-district-council/walsall,WC65-411,29/02/2016,Change and Governance,ASTUN TECHNOLOGY LIMITED,15/02/2016,"4,250.00",63800-COMPUTER EQUIPMENT AND SUPPLIES,RECHARGEABLE EQUIPMENT,Supplies & Services,Revenue
Walsall Council,http://opendatacommunities.org/id/metropolitan-district-council/walsall,WC65-412,29/02/2016,Economy & Environment,ATHWAL NEWS LTD,22/02/2016,553.23,60501-LIBRARY BOOKS,LIBRARY STOCK AND PERFORMANCE,Supplies & Services,Revenue
Walsall Council,http://opendatacommunities.org/id/metropolitan-district-council/walsall,WC65-413,29/02/2016,Economy & Environment,ATHWAL NEWS LTD,22/02/2016,560.64,60501-LIBRARY BOOKS,LIBRARY STOCK AND PERFORMANCE,Supplies & Services,Revenue
Walsall Council,http://opendatacommunities.org/id/metropolitan-district-council/walsall,WC65-414,29/02/2016,Economy & Environment,ATKINS HIGHWAYS & TRANSPORTATION,16/02/2016,"1,700.00",01001-OTHER CONSULTANTS FEES,CFR 1072 LEX - GROWTH DEAL,Capital,Capital
Walsall Council,http://opendatacommunities.org/id/metropolitan-district-council/walsall,WC65-415,29/02/2016,Economy & Environment,ATKINS HIGHWAYS & TRANSPORTATION,16/02/2016,"2,795.17",01001-OTHER CONSULTANTS FEES,CFR 1072 LEX - GROWTH DEAL,Capital,Capital
Walsall Council,http://opendatacommunities.org/id/metropolitan-district-council/walsall,WC65-416,29/02/2016,Social Care & Inclusion,AUTISM WEST MIDLANDS,02/02/2016,"7,479.01",73373-RESIDENTIAL & NURSING CARE PLACEMENTS,LD COMMISSIONING,Third Party Payments,Revenue
Walsall Council,http://opendatacommunities.org/id/metropolitan-district-council/walsall,WC65-417,29/02/2016,Social Care & Inclusion,AUTISM WEST MIDLANDS 001,02/02/2016,"4,999.33",73373-RESIDENTIAL & NURSING CARE PLACEMENTS,LD COMMISSIONING,Third Party Payments,Revenue
Walsall Council,http://opendatacommunities.org/id/metropolitan-district-council/walsall,WC65-418,29/02/2016,Social Care & Inclusion,AUTOMATIC RENTALS LIMITED,08/02/2016,498,61009-BEVERAGES-PROVISIONS,EMPLOYMENT LINKS TO WORK,Supplies & Services,Revenue
Walsall Council,http://opendatacommunities.org/id/metropolitan-district-council/walsall,WC65-419,29/02/2016,Economy & Environment,AVIDITY TRAINING LIMITED,25/02/2016,750,66500-GRANTS TO OTHER ORGS,RES-WALSALL WORKS,Third Party Payments,Revenue
Walsall Council,http://opendatacommunities.org/id/metropolitan-district-council/walsall,WC65-420,29/02/2016,Social Care & Inclusion,REDACTED,09/02/2016,777,76422-DIRECT PAYMENTS TO SOCIAL SERVICES CLIENTS,OP COMMISSIONING,Transfer Payments,Revenue
Walsall Council,http://opendatacommunities.org/id/metropolitan-district-council/walsall,WC65-421,29/02/2016,Economy & Environment,AXIELL LIMITED,26/02/2016,400,63800-COMPUTER EQUIPMENT AND SUPPLIES,NETWORK SUPPORT,Supplies & Services,Revenue
Walsall Council,http://opendatacommunities.org/id/metropolitan-district-council/walsall,WC65-422,29/02/2016,Economy & Environment,AXIELL LIMITED,08/02/2016,557.55,63000-PROFESSIONAL FEES AND SERVICES,LIBRARY STOCK AND PERFORMANCE,Supplies & Services,Revenue
Walsall Council,http://opendatacommunities.org/id/metropolitan-district-council/walsall,WC65-423,29/02/2016,Economy & Environment,AXIOMATIC TECHNOLOGY LTD,01/02/2016,689,63000-PROFESSIONAL FEES AND SERVICES,FOREST ARTS CENTRE,Supplies & Services,Revenue
Walsall Council,http://opendatacommunities.org/id/metropolitan-district-council/walsall,WC65-424,29/02/2016,Childrens,REDACTED,09/02/2016,"1,284.00",76422-DIRECT PAYMENTS TO SOCIAL SERVICES CLIENTS,FAMILY SUPPORT - DIRECT PAYMENTS,Transfer Payments,Revenue
Walsall Council,http://opendatacommunities.org/id/metropolitan-district-council/walsall,WC65-425,29/02/2016,Social Care & Inclusion,REDACTED,09/02/2016,"2,652.00",76422-DIRECT PAYMENTS TO SOCIAL SERVICES CLIENTS,LD COMMISSIONING,Transfer Payments,Revenue
Walsall Council,http://opendatacommunities.org/id/metropolitan-district-council/walsall,WC65-426,29/02/2016,Childrens,REDACTED,29/02/2016,906.76,62515-MISCELLANEOUS SUPPLIES,INTERNAL FOSTER CARE PROVISION,Supplies & Services,Revenue
Walsall Council,http://opendatacommunities.org/id/metropolitan-district-council/walsall,WC65-427,29/02/2016,Childrens,REDACTED,01/02/2016,945.23,62515-MISCELLANEOUS SUPPLIES,INTERNAL FOSTER CARE PROVISION,Supplies & Services,Revenue
Walsall Council,http://opendatacommunities.org/id/metropolitan-district-council/walsall,WC65-428,29/02/2016,Childrens,REDACTED,01/02/2016,"2,385.76",74006-HOLIDAY/CHRISTMAS ALLOWANCE-FOSTER CARERS-OTH AGENCY PROVISION,INTERNAL FOSTER CARE PROVISION,Third Party Payments,Revenue
Walsall Council,http://opendatacommunities.org/id/metropolitan-district-council/walsall,WC65-429,29/02/2016,Childrens,REDACTED,16/02/2016,464,76000-TRANSFER PAYMENTS - SOCIAL SERVICES CLIENTS,TRANSITION AND LEAVING CARE,Transfer Payments,Revenue
Walsall Council,http://opendatacommunities.org/id/metropolitan-district-council/walsall,WC65-430,29/02/2016,Childrens,REDACTED,09/02/2016,762.29,76000-TRANSFER PAYMENTS - SOCIAL SERVICES CLIENTS,TRANSITION AND LEAVING CARE,Transfer Payments,Revenue
Walsall Council,http://opendatacommunities.org/id/metropolitan-district-council/walsall,WC65-431,29/02/2016,Childrens,REDACTED,29/02/2016,906.76,62515-MISCELLANEOUS SUPPLIES,INTERNAL FOSTER CARE PROVISION,Supplies & Services,Revenue
Walsall Council,http://opendatacommunities.org/id/metropolitan-district-council/walsall,WC65-432,29/02/2016,Childrens,REDACTED,01/02/2016,"1,066.40",62515-MISCELLANEOUS SUPPLIES,INTERNAL FOSTER CARE PROVISION,Supplies & Services,Revenue
Walsall Council,http://opendatacommunities.org/id/metropolitan-district-council/walsall,WC65-433,29/02/2016,Childrens,REDACTED,01/02/2016,"1,161.79",74006-HOLIDAY/CHRISTMAS ALLOWANCE-FOSTER CARERS-OTH AGENCY PROVISION,INTERNAL FOSTER CARE PROVISION,Third Party Payments,Revenue
Walsall Council,http://opendatacommunities.org/id/metropolitan-district-council/walsall,WC65-434,29/02/2016,Economy & Environment,BAART HARRIES NEWALL,12/02/2016,"1,013.00",73025-PROFESSIONAL SERVICES-PRIV CONTRACTOR & OTHER AGENCIES,SMARTER WORKPLACES WORKPLACE SOLUTIONS,Third Party Payments,Revenue
Walsall Council,http://opendatacommunities.org/id/metropolitan-district-council/walsall,WC65-435,29/02/2016,Childrens,BABCOCK TRAINING LTD,01/02/2016,632,63000-PROFESSIONAL FEES AND SERVICES,VIRTUAL SCHOOL CENTRAL PUPIL PREMIUM,Supplies & Services,Revenue
Walsall Council,http://opendatacommunities.org/id/metropolitan-district-council/walsall,WC65-436,29/02/2016,Social Care & Inclusion,REDACTED,09/02/2016,863.2,76422-DIRECT PAYMENTS TO SOCIAL SERVICES CLIENTS,OP COMMISSIONING,Transfer Payments,Revenue
Walsall Council,http://opendatacommunities.org/id/metropolitan-district-council/walsall,WC65-437,29/02/2016,Change and Governance,BACK CARE SOLUTIONS LTD,15/02/2016,854,60000-FURNITURE & EQUIPMENT,INTEGRATED FACILITIES MANAGEMENT,Supplies & Services,Revenue
Walsall Council,http://opendatacommunities.org/id/metropolitan-district-council/walsall,WC65-438,29/02/2016,Change and Governance,BACS PAYMENT SCHEMES LIMITED,11/02/2016,"4,500.00",63000-PROFESSIONAL FEES AND SERVICES,PAYROLL HUB,Supplies & Services,Revenue
Walsall Council,http://opendatacommunities.org/id/metropolitan-district-council/walsall,WC65-439,29/02/2016,Economy & Environment,BAKER HALL PARTNERSHIP,15/02/2016,"1,046.25",63248-SURVEYS & PROF SERVICES-PAYMENT TO CONTRACTOR,BUILDING CONTROL REVENUE FUNDED,Supplies & Services,Revenue
Walsall Council,http://opendatacommunities.org/id/metropolitan-district-council/walsall,WC65-440,29/02/2016,Social Care & Inclusion,REDACTED,09/02/2016,"1,020.00",76422-DIRECT PAYMENTS TO SOCIAL SERVICES CLIENTS,MH COMMISSIONING,Transfer Payments,Revenue
Walsall Council,http://opendatacommunities.org/id/metropolitan-district-council/walsall,WC65-441,29/02/2016,Social Care & Inclusion,REDACTED,09/02/2016,"2,849.92",76422-DIRECT PAYMENTS TO SOCIAL SERVICES CLIENTS,LD COMMISSIONING,Transfer Payments,Revenue
Walsall Council,http://opendatacommunities.org/id/metropolitan-district-council/walsall,WC65-442,29/02/2016,Social Care & Inclusion,REDACTED,09/02/2016,850,76422-DIRECT PAYMENTS TO SOCIAL SERVICES CLIENTS,OP COMMISSIONING,Transfer Payments,Revenue
Walsall Council,http://opendatacommunities.org/id/metropolitan-district-council/walsall,WC65-443,29/02/2016,Social Care & Inclusion,REDACTED,09/02/2016,"1,046.50",76422-DIRECT PAYMENTS TO SOCIAL SERVICES CLIENTS,OP COMMISSIONING,Transfer Payments,Revenue
Walsall Council,http://opendatacommunities.org/id/metropolitan-district-council/walsall,WC65-444,29/02/2016,Social Care & Inclusion,REDACTED,09/02/2016,"1,582.86",76422-DIRECT PAYMENTS TO SOCIAL SERVICES CLIENTS,YADS COMMISSIONING,Transfer Payments,Revenue
Walsall Council,http://opendatacommunities.org/id/metropolitan-district-council/walsall,WC65-445,29/02/2016,Social Care & Inclusion,REDACTED,09/02/2016,"1,536.08",76422-DIRECT PAYMENTS TO SOCIAL SERVICES CLIENTS,YADS COMMISSIONING,Transfer Payments,Revenue
Walsall Council,http://opendatacommunities.org/id/metropolitan-district-council/walsall,WC65-446,29/02/2016,Social Care & Inclusion,REDACTED,09/02/2016,632.52,76422-DIRECT PAYMENTS TO SOCIAL SERVICES CLIENTS,OP COMMISSIONING,Transfer Payments,Revenue
Walsall Council,http://opendatacommunities.org/id/metropolitan-district-council/walsall,WC65-447,29/02/2016,Childrens,BARNARDOS SERVICES LTD,08/02/2016,"3,317.00",74037-INDEPENDENT FOSTER CARE-OTH AGENCY PROVISION,EXTERNAL FOSTER CARE PROVISION,Third Party Payments,Revenue
Walsall Council,http://opendatacommunities.org/id/metropolitan-district-council/walsall,WC65-448,29/02/2016,Childrens,BARNARDOS SERVICES LTD,08/02/2016,"3,317.00",74037-INDEPENDENT FOSTER CARE-OTH AGENCY PROVISION,EXTERNAL FOSTER CARE PROVISION,Third Party Payments,Revenue
Walsall Council,http://opendatacommunities.org/id/metropolitan-district-council/walsall,WC65-449,29/02/2016,Childrens,BARR BEACON SCHOOL TRUST,10/02/2016,500,77300-ISB-FORMULA ALLOCATION,BARR BEACON SCHOOL TRUST (ACADEMY),Transfer Payments,Revenue
Walsall Council,http://opendatacommunities.org/id/metropolitan-district-council/walsall,WC65-450,29/02/2016,Economy & Environment,BAT FABRICATIONS LTD,11/02/2016,225,"40000-REPAIRS,ALTERATIONS & MAINTENANCE-PREM",INFRASTRUCTURE MAINTENANCE,Premises,Revenue
Walsall Council,http://opendatacommunities.org/id/metropolitan-district-council/walsall,WC65-451,29/02/2016,Economy & Environment,BAT FABRICATIONS LTD,10/02/2016,235,"40000-REPAIRS,ALTERATIONS & MAINTENANCE-PREM",INFRASTRUCTURE MAINTENANCE,Premises,Revenue
Walsall Council,http://opendatacommunities.org/id/metropolitan-district-council/walsall,WC65-452,29/02/2016,Economy & Environment,BAT FABRICATIONS LTD,10/02/2016,340,60006-NEW-FURNITURE & EQUIPMENT,INFRASTRUCTURE MAINTENANCE,Supplies & Services,Revenue
Walsall Council,http://opendatacommunities.org/id/metropolitan-district-council/walsall,WC65-453,29/02/2016,Economy & Environment,BAT FABRICATIONS LTD,10/02/2016,350,60006-NEW-FURNITURE & EQUIPMENT,INFRASTRUCTURE MAINTENANCE,Supplies & Services,Revenue
Walsall Council,http://opendatacommunities.org/id/metropolitan-district-council/walsall,WC65-454,29/02/2016,Economy & Environment,BAT FABRICATIONS LTD,11/02/2016,"4,800.00","40000-REPAIRS,ALTERATIONS & MAINTENANCE-PREM",CENTRAL SERVICES ALLOTMENTS,Premises,Revenue
Walsall Council,http://opendatacommunities.org/id/metropolitan-district-council/walsall,WC65-455,29/02/2016,Economy & Environment,BEADEN POWERLEC LIMITED,01/02/2016,895,60008-MAINTENANCE-FURNITURE & EQUIPMENT,PARKING SERVICES,Supplies & Services,Revenue
Walsall Council,http://opendatacommunities.org/id/metropolitan-district-council/walsall,WC65-456,29/02/2016,Change and Governance,BEADEN POWERLEC LIMITED,18/02/2016,"2,150.00","40000-REPAIRS,ALTERATIONS & MAINTENANCE-PREM",CENTRALISED MAINTENANCE,Premises,Revenue
Walsall Council,http://opendatacommunities.org/id/metropolitan-district-council/walsall,WC65-457,29/02/2016,Childrens,REDACTED,01/02/2016,925,62515-MISCELLANEOUS SUPPLIES,INTERNAL FOSTER CARE PROVISION,Supplies & Services,Revenue
Walsall Council,http://opendatacommunities.org/id/metropolitan-district-council/walsall,WC65-458,29/02/2016,Childrens,REDACTED,29/02/2016,925,62515-MISCELLANEOUS SUPPLIES,INTERNAL FOSTER CARE PROVISION,Supplies & Services,Revenue
Walsall Council,http://opendatacommunities.org/id/metropolitan-district-council/walsall,WC65-459,29/02/2016,Childrens,REDACTED,01/02/2016,"1,301.84",74006-HOLIDAY/CHRISTMAS ALLOWANCE-FOSTER CARERS-OTH AGENCY PROVISION,INTERNAL FOSTER CARE PROVISION,Third Party Payments,Revenue
Walsall Council,http://opendatacommunities.org/id/metropolitan-district-council/walsall,WC65-460,29/02/2016,Social Care & Inclusion,BEARWOOD NURSING HOME LTD,09/02/2016,"1,527.60",73373-RESIDENTIAL & NURSING CARE PLACEMENTS,OP COMMISSIONING,Third Party Payments,Revenue
Walsall Council,http://opendatacommunities.org/id/metropolitan-district-council/walsall,WC65-461,29/02/2016,Social Care & Inclusion,REDACTED,09/02/2016,641.76,76422-DIRECT PAYMENTS TO SOCIAL SERVICES CLIENTS,OP COMMISSIONING,Transfer Payments,Revenue
Walsall Council,http://opendatacommunities.org/id/metropolitan-district-council/walsall,WC65-462,29/02/2016,Childrens,REDACTED,01/02/2016,354.48,62515-MISCELLANEOUS SUPPLIES,INTERNAL FOSTER CARE PROVISION,Supplies & Services,Revenue
Walsall Council,http://opendatacommunities.org/id/metropolitan-district-council/walsall,WC65-463,29/02/2016,Childrens,REDACTED,29/02/2016,354.48,62515-MISCELLANEOUS SUPPLIES,INTERNAL FOSTER CARE PROVISION,Supplies & Services,Revenue
Walsall Council,http://opendatacommunities.org/id/metropolitan-district-council/walsall,WC65-464,29/02/2016,Childrens,REDACTED,01/02/2016,571.44,74006-HOLIDAY/CHRISTMAS ALLOWANCE-FOSTER CARERS-OTH AGENCY PROVISION,INTERNAL FOSTER CARE PROVISION,Third Party Payments,Revenue
Walsall Council,http://opendatacommunities.org/id/metropolitan-district-council/walsall,WC65-465,29/02/2016,Social Care & Inclusion,BELLEVUE COURT CARE HOME,02/02/2016,"1,532.96",73373-RESIDENTIAL & NURSING CARE PLACEMENTS,MH COMMISSIONING,Third Party Payments,Revenue
Walsall Council,http://opendatacommunities.org/id/metropolitan-district-council/walsall,WC65-466,29/02/2016,Social Care & Inclusion,BELLEVUE COURT CARE HOME,02/02/2016,"1,577.52",73373-RESIDENTIAL & NURSING CARE PLACEMENTS,MH COMMISSIONING,Third Party Payments,Revenue
Walsall Council,http://opendatacommunities.org/id/metropolitan-district-council/walsall,WC65-467,29/02/2016,Social Care & Inclusion,REDACTED,09/02/2016,"2,205.00",76422-DIRECT PAYMENTS TO SOCIAL SERVICES CLIENTS,LD COMMISSIONING,Transfer Payments,Revenue
Walsall Council,http://opendatacommunities.org/id/metropolitan-district-council/walsall,WC65-468,29/02/2016,Childrens,BERRICK COMPUTING LTD,05/02/2016,"1,160.00",63114-OTHER FEES & LICENCES-SERVICES-FEES,SAFEGUARDING BOARD,Supplies & Services,Revenue
Walsall Council,http://opendatacommunities.org/id/metropolitan-district-council/walsall,WC65-469,29/02/2016,Social Care & Inclusion,REDACTED,09/02/2016,912,76422-DIRECT PAYMENTS TO SOCIAL SERVICES CLIENTS,OP COMMISSIONING,Transfer Payments,Revenue
Walsall Council,http://opendatacommunities.org/id/metropolitan-district-council/walsall,WC65-470,29/02/2016,Childrens,REDACTED,01/02/2016,"1,214.31",74006-HOLIDAY/CHRISTMAS ALLOWANCE-FOSTER CARERS-OTH AGENCY PROVISION,INTERNAL FOSTER CARE PROVISION,Third Party Payments,Revenue
Walsall Council,http://opendatacommunities.org/id/metropolitan-district-council/walsall,WC65-471,29/02/2016,Childrens,REDACTED,01/02/2016,"1,445.32",62515-MISCELLANEOUS SUPPLIES,INTERNAL FOSTER CARE PROVISION,Supplies & Services,Revenue
Walsall Council,http://opendatacommunities.org/id/metropolitan-district-council/walsall,WC65-472,29/02/2016,Childrens,REDACTED,29/02/2016,"1,445.32",62515-MISCELLANEOUS SUPPLIES,INTERNAL FOSTER CARE PROVISION,Supplies & Services,Revenue
Walsall Council,http://opendatacommunities.org/id/metropolitan-district-council/walsall,WC65-473,29/02/2016,Social Care & Inclusion,REDACTED,09/02/2016,968,76422-DIRECT PAYMENTS TO SOCIAL SERVICES CLIENTS,OP COMMISSIONING,Transfer Payments,Revenue
Walsall Council,http://opendatacommunities.org/id/metropolitan-district-council/walsall,WC65-474,29/02/2016,Social Care & Inclusion,BESCOT LODGE RESIDENTIAL CARE HOME,16/02/2016,672.27,73373-RESIDENTIAL & NURSING CARE PLACEMENTS,OP COMMISSIONING,Third Party Payments,Revenue
Walsall Council,http://opendatacommunities.org/id/metropolitan-district-council/walsall,WC65-475,29/02/2016,Social Care & Inclusion,BESCOT LODGE RESIDENTIAL CARE HOME,24/02/2016,"1,546.57",73373-RESIDENTIAL & NURSING CARE PLACEMENTS,OP COMMISSIONING,Third Party Payments,Revenue
Walsall Council,http://opendatacommunities.org/id/metropolitan-district-council/walsall,WC65-476,29/02/2016,Social Care & Inclusion,BESCOT LODGE RESIDENTIAL CARE HOME,24/02/2016,"1,546.57",73373-RESIDENTIAL & NURSING CARE PLACEMENTS,OP COMMISSIONING,Third Party Payments,Revenue
Walsall Council,http://opendatacommunities.org/id/metropolitan-district-council/walsall,WC65-477,29/02/2016,Social Care & Inclusion,BESCOT LODGE RESIDENTIAL CARE HOME,24/02/2016,"1,546.57",73373-RESIDENTIAL & NURSING CARE PLACEMENTS,OP COMMISSIONING,Third Party Payments,Revenue
Walsall Council,http://opendatacommunities.org/id/metropolitan-district-council/walsall,WC65-478,29/02/2016,Social Care & Inclusion,BESCOT LODGE RESIDENTIAL CARE HOME,24/02/2016,"1,624.66",73373-RESIDENTIAL & NURSING CARE PLACEMENTS,MH COMMISSIONING,Third Party Payments,Revenue
Walsall Council,http://opendatacommunities.org/id/metropolitan-district-council/walsall,WC65-479,29/02/2016,Social Care & Inclusion,BESCOT LODGE RESIDENTIAL CARE HOME,24/02/2016,"1,624.66",73373-RESIDENTIAL & NURSING CARE PLACEMENTS,OP COMMISSIONING,Third Party Payments,Revenue
Walsall Council,http://opendatacommunities.org/id/metropolitan-district-council/walsall,WC65-480,29/02/2016,Social Care & Inclusion,BESCOT LODGE RESIDENTIAL CARE HOME,24/02/2016,"1,624.67",73373-RESIDENTIAL & NURSING CARE PLACEMENTS,OP COMMISSIONING,Third Party Payments,Revenue
Walsall Council,http://opendatacommunities.org/id/metropolitan-district-council/walsall,WC65-481,29/02/2016,Social Care & Inclusion,BESCOT LODGE RESIDENTIAL CARE HOME,24/02/2016,"1,642.10",73373-RESIDENTIAL & NURSING CARE PLACEMENTS,OP COMMISSIONING,Third Party Payments,Revenue
Walsall Council,http://opendatacommunities.org/id/metropolitan-district-council/walsall,WC65-482,29/02/2016,Economy & Environment,BESCOT STADIUM SUNDAY MARKET LTD,05/02/2016,"3,500.00",73025-PROFESSIONAL SERVICES-PRIV CONTRACTOR & OTHER AGENCIES,WILLENHALL MARKET,Third Party Payments,Revenue
Walsall Council,http://opendatacommunities.org/id/metropolitan-district-council/walsall,WC65-483,29/02/2016,Social Care & Inclusion,BESWICK HOUSE SUPPORTED ACCOMMODATION LTD,01/02/2016,"15,045.79",73365-BLOCK GROSS-SUPPORTING PEOPLE,EXTERNAL SP,Third Party Payments,Revenue
Walsall Council,http://opendatacommunities.org/id/metropolitan-district-council/walsall,WC65-484,29/02/2016,Social Care & Inclusion,BETHPHAGE.,01/02/2016,650,73374-SUPPORTED & OTHER ACCOMMODATION,LD COMMISSIONING,Third Party Payments,Revenue
Walsall Council,http://opendatacommunities.org/id/metropolitan-district-council/walsall,WC65-485,29/02/2016,Social Care & Inclusion,BETHPHAGE.,12/02/2016,812.5,73374-SUPPORTED & OTHER ACCOMMODATION,LD COMMISSIONING,Third Party Payments,Revenue
Walsall Council,http://opendatacommunities.org/id/metropolitan-district-council/walsall,WC65-486,29/02/2016,Social Care & Inclusion,BETHPHAGE.,01/02/2016,"1,411.02",73374-SUPPORTED & OTHER ACCOMMODATION,LD COMMISSIONING,Third Party Payments,Revenue
Walsall Council,http://opendatacommunities.org/id/metropolitan-district-council/walsall,WC65-487,29/02/2016,Social Care & Inclusion,BETHPHAGE.,01/02/2016,"1,439.24",73374-SUPPORTED & OTHER ACCOMMODATION,LD COMMISSIONING,Third Party Payments,Revenue
Walsall Council,http://opendatacommunities.org/id/metropolitan-district-council/walsall,WC65-488,29/02/2016,Social Care & Inclusion,BETHPHAGE.,01/02/2016,"1,768.00",73374-SUPPORTED & OTHER ACCOMMODATION,LD COMMISSIONING,Third Party Payments,Revenue
Walsall Council,http://opendatacommunities.org/id/metropolitan-district-council/walsall,WC65-489,29/02/2016,Social Care & Inclusion,BETHPHAGE.,12/02/2016,"1,791.99",73374-SUPPORTED & OTHER ACCOMMODATION,LD COMMISSIONING,Third Party Payments,Revenue
Walsall Council,http://opendatacommunities.org/id/metropolitan-district-council/walsall,WC65-490,29/02/2016,Social Care & Inclusion,BETHPHAGE.,12/02/2016,"1,799.05",73374-SUPPORTED & OTHER ACCOMMODATION,LD COMMISSIONING,Third Party Payments,Revenue
Walsall Council,http://opendatacommunities.org/id/metropolitan-district-council/walsall,WC65-491,29/02/2016,Social Care & Inclusion,BETHPHAGE.,12/02/2016,"2,210.00",73374-SUPPORTED & OTHER ACCOMMODATION,LD COMMISSIONING,Third Party Payments,Revenue
Walsall Council,http://opendatacommunities.org/id/metropolitan-district-council/walsall,WC65-492,29/02/2016,Social Care & Inclusion,BETHPHAGE.,01/02/2016,"3,831.92",73374-SUPPORTED & OTHER ACCOMMODATION,LD COMMISSIONING,Third Party Payments,Revenue
Walsall Council,http://opendatacommunities.org/id/metropolitan-district-council/walsall,WC65-493,29/02/2016,Social Care & Inclusion,BETHPHAGE.,12/02/2016,"4,789.90",73374-SUPPORTED & OTHER ACCOMMODATION,LD COMMISSIONING,Third Party Payments,Revenue
Walsall Council,http://opendatacommunities.org/id/metropolitan-district-council/walsall,WC65-494,29/02/2016,Social Care & Inclusion,REDACTED,09/02/2016,949.52,76422-DIRECT PAYMENTS TO SOCIAL SERVICES CLIENTS,MH COMMISSIONING,Transfer Payments,Revenue
Walsall Council,http://opendatacommunities.org/id/metropolitan-district-council/walsall,WC65-495,29/02/2016,Social Care & Inclusion,REDACTED,09/02/2016,"1,813.00",76422-DIRECT PAYMENTS TO SOCIAL SERVICES CLIENTS,OP COMMISSIONING,Transfer Payments,Revenue
Walsall Council,http://opendatacommunities.org/id/metropolitan-district-council/walsall,WC65-496,29/02/2016,Change and Governance,BFA SAFETY TRAINING,11/02/2016,295,30030-EXTERNAL TRAINING,HEALTH & SAFETY (TRADED),Employees,Revenue
Walsall Council,http://opendatacommunities.org/id/metropolitan-district-council/walsall,WC65-497,29/02/2016,Change and Governance,BFA SAFETY TRAINING,15/02/2016,495,30030-EXTERNAL TRAINING,HEALTH & SAFETY (TRADED),Employees,Revenue
Walsall Council,http://opendatacommunities.org/id/metropolitan-district-council/walsall,WC65-498,29/02/2016,Economy & Environment,BIFFA WASTE SERVICES LTD,17/02/2016,920.02,73005-LANDFILL PTYS-PRIV CONTRACTOR FEES,WASTE DISPOSAL - RESIDUAL,Third Party Payments,Revenue
Walsall Council,http://opendatacommunities.org/id/metropolitan-district-council/walsall,WC65-499,29/02/2016,Economy & Environment,BIFFA WASTE SERVICES LTD,15/02/2016,"2,083.99",73005-LANDFILL PTYS-PRIV CONTRACTOR FEES,WASTE DISPOSAL - RESIDUAL,Third Party Payments,Revenue
Walsall Council,http://opendatacommunities.org/id/metropolitan-district-council/walsall,WC65-500,29/02/2016,Economy & Environment,BIFFA WASTE SERVICES LTD,10/02/2016,"2,854.78",73005-LANDFILL PTYS-PRIV CONTRACTOR FEES,WASTE DISPOSAL - RESIDUAL,Third Party Payments,Revenue
Walsall Council,http://opendatacommunities.org/id/metropolitan-district-council/walsall,WC65-501,29/02/2016,Economy & Environment,BIFFA WASTE SERVICES LTD,01/02/2016,"3,849.11",73005-LANDFILL PTYS-PRIV CONTRACTOR FEES,WASTE DISPOSAL - RESIDUAL,Third Party Payments,Revenue
Walsall Council,http://opendatacommunities.org/id/metropolitan-district-council/walsall,WC65-502,29/02/2016,Economy & Environment,BIFFA WASTE SERVICES LTD,17/02/2016,"5,744.00",73039-LANDFILL TAX-PRIV CONTRACTOR FEES,WASTE DISPOSAL - RESIDUAL,Third Party Payments,Revenue
Walsall Council,http://opendatacommunities.org/id/metropolitan-district-council/walsall,WC65-503,29/02/2016,Economy & Environment,BIFFA WASTE SERVICES LTD,15/02/2016,"13,011.15",73039-LANDFILL TAX-PRIV CONTRACTOR FEES,WASTE DISPOSAL - RESIDUAL,Third Party Payments,Revenue
Walsall Council,http://opendatacommunities.org/id/metropolitan-district-council/walsall,WC65-504,29/02/2016,Economy & Environment,BIFFA WASTE SERVICES LTD,10/02/2016,"17,823.42",73039-LANDFILL TAX-PRIV CONTRACTOR FEES,WASTE DISPOSAL - RESIDUAL,Third Party Payments,Revenue
Walsall Council,http://opendatacommunities.org/id/metropolitan-district-council/walsall,WC65-505,29/02/2016,Economy & Environment,BIFFA WASTE SERVICES LTD,01/02/2016,"24,031.67",73039-LANDFILL TAX-PRIV CONTRACTOR FEES,WASTE DISPOSAL - RESIDUAL,Third Party Payments,Revenue
Walsall Council,http://opendatacommunities.org/id/metropolitan-district-council/walsall,WC65-506,29/02/2016,Childrens,REDACTED,09/02/2016,487.72,76422-DIRECT PAYMENTS TO SOCIAL SERVICES CLIENTS,FAMILY SUPPORT - DIRECT PAYMENTS,Transfer Payments,Revenue
Walsall Council,http://opendatacommunities.org/id/metropolitan-district-council/walsall,WC65-507,29/02/2016,Childrens,REDACTED,09/02/2016,537.2,76422-DIRECT PAYMENTS TO SOCIAL SERVICES CLIENTS,FAMILY SUPPORT - DIRECT PAYMENTS,Transfer Payments,Revenue
Walsall Council,http://opendatacommunities.org/id/metropolitan-district-council/walsall,WC65-508,29/02/2016,Economy & Environment,BIOGAS TECHNOLOGY LIMITED,03/02/2016,349.5,60008-MAINTENANCE-FURNITURE & EQUIPMENT,POLLUTION DIVISION,Supplies & Services,Revenue
Walsall Council,http://opendatacommunities.org/id/metropolitan-district-council/walsall,WC65-509,29/02/2016,Childrens,BIRCHILLS C OF E COMMUNITY ACADEMY,10/02/2016,302.1,77300-ISB-FORMULA ALLOCATION,BIRCHILLS CE COMMUNITY ACADEMY,Transfer Payments,Revenue
Walsall Council,http://opendatacommunities.org/id/metropolitan-district-council/walsall,WC65-510,29/02/2016,Childrens,BIRCHILLS C OF E COMMUNITY ACADEMY,10/02/2016,500,77300-ISB-FORMULA ALLOCATION,BIRCHILLS CE COMMUNITY ACADEMY,Transfer Payments,Revenue
Walsall Council,http://opendatacommunities.org/id/metropolitan-district-council/walsall,WC65-511,29/02/2016,Childrens,BIRCHILLS C OF E COMMUNITY ACADEMY,19/02/2016,500,77300-ISB-FORMULA ALLOCATION,BIRCHILLS CE COMMUNITY ACADEMY,Transfer Payments,Revenue
Walsall Council,http://opendatacommunities.org/id/metropolitan-district-council/walsall,WC65-512,29/02/2016,Childrens,BIRCHILLS C OF E COMMUNITY ACADEMY,12/02/2016,"9,412.12",66505-OTHER-GRANTS TO OTHER ORGS,EARLY YEARS - 3 YR OLDS,Third Party Payments,Revenue
Walsall Council,http://opendatacommunities.org/id/metropolitan-district-council/walsall,WC65-513,29/02/2016,Childrens,BIRMINGHAM CITY COUNCIL,03/02/2016,"1,695.00",66502-TOP UP FUNDING -GRANTS TO SCHOOLS,INDEPENDENT PROVIDERS - SPECIAL & AP,Third Party Payments,Revenue
Walsall Council,http://opendatacommunities.org/id/metropolitan-district-council/walsall,WC65-514,29/02/2016,Childrens,BIRMINGHAM CITY COUNCIL,10/02/2016,"2,584.39",66502-TOP UP FUNDING -GRANTS TO SCHOOLS,INDEPENDENT PROVIDERS - SPECIAL & AP,Third Party Payments,Revenue
Walsall Council,http://opendatacommunities.org/id/metropolitan-district-council/walsall,WC65-515,29/02/2016,Childrens,BIRMINGHAM CITY COUNCIL,03/02/2016,"4,818.88",66502-TOP UP FUNDING -GRANTS TO SCHOOLS,INDEPENDENT PROVIDERS - SPECIAL & AP,Third Party Payments,Revenue
Walsall Council,http://opendatacommunities.org/id/metropolitan-district-council/walsall,WC65-516,29/02/2016,Childrens,BIRMINGHAM CITY COUNCIL,03/02/2016,"4,818.88",66502-TOP UP FUNDING -GRANTS TO SCHOOLS,INDEPENDENT PROVIDERS - SPECIAL & AP,Third Party Payments,Revenue
Walsall Council,http://opendatacommunities.org/id/metropolitan-district-council/walsall,WC65-517,29/02/2016,Childrens,BIRMINGHAM CITY COUNCIL,03/02/2016,"4,818.88",66502-TOP UP FUNDING -GRANTS TO SCHOOLS,INDEPENDENT PROVIDERS - SPECIAL & AP,Third Party Payments,Revenue
Walsall Council,http://opendatacommunities.org/id/metropolitan-district-council/walsall,WC65-518,29/02/2016,Economy & Environment,BIRMINGHAM CITY COUNCIL,15/02/2016,"5,085.00",71000-PAYMENTS FOR SERVICES FROM OTHER LOCAL AUTHORITIES,PLANNING POLICY,Third Party Payments,Revenue
Walsall Council,http://opendatacommunities.org/id/metropolitan-district-council/walsall,WC65-519,29/02/2016,Childrens,BIRMINGHAM CITY COUNCIL,03/02/2016,"5,823.72",66502-TOP UP FUNDING -GRANTS TO SCHOOLS,INDEPENDENT PROVIDERS - SPECIAL & AP,Third Party Payments,Revenue
Walsall Council,http://opendatacommunities.org/id/metropolitan-district-council/walsall,WC65-520,29/02/2016,Childrens,BIRMINGHAM CITY COUNCIL,03/02/2016,"6,000.00",66502-TOP UP FUNDING -GRANTS TO SCHOOLS,INDEPENDENT PROVIDERS - SPECIAL & AP,Third Party Payments,Revenue
Walsall Council,http://opendatacommunities.org/id/metropolitan-district-council/walsall,WC65-521,29/02/2016,Childrens,BIRMINGHAM CITY COUNCIL,03/02/2016,"7,059.00",66502-TOP UP FUNDING -GRANTS TO SCHOOLS,INDEPENDENT PROVIDERS - SPECIAL & AP,Third Party Payments,Revenue
Walsall Council,http://opendatacommunities.org/id/metropolitan-district-council/walsall,WC65-522,29/02/2016,Childrens,BIRMINGHAM CITY COUNCIL,03/02/2016,"8,260.58",66502-TOP UP FUNDING -GRANTS TO SCHOOLS,INDEPENDENT PROVIDERS - SPECIAL & AP,Third Party Payments,Revenue
Walsall Council,http://opendatacommunities.org/id/metropolitan-district-council/walsall,WC65-523,29/02/2016,Economy & Environment,BIRMINGHAM CITY COUNCIL,15/02/2016,"10,170.50",71000-PAYMENTS FOR SERVICES FROM OTHER LOCAL AUTHORITIES,ROAD SAFETY & SUSTAINABLE TRAVEL,Third Party Payments,Revenue
Walsall Council,http://opendatacommunities.org/id/metropolitan-district-council/walsall,WC65-524,29/02/2016,Childrens,BIRMINGHAM CITY COUNCIL,03/02/2016,"13,422.00",66502-TOP UP FUNDING -GRANTS TO SCHOOLS,INDEPENDENT PROVIDERS - SPECIAL & AP,Third Party Payments,Revenue
Walsall Council,http://opendatacommunities.org/id/metropolitan-district-council/walsall,WC65-525,29/02/2016,Childrens,BIRMINGHAM CITY COUNCIL,03/02/2016,"15,221.42",66502-TOP UP FUNDING -GRANTS TO SCHOOLS,INDEPENDENT PROVIDERS - SPECIAL & AP,Third Party Payments,Revenue
Walsall Council,http://opendatacommunities.org/id/metropolitan-district-council/walsall,WC65-526,29/02/2016,Social Care & Inclusion,BIRMINGHAM CITY UNIVERSITY,16/02/2016,"3,960.00",30030-EXTERNAL TRAINING,WORKFORCE DEVELOPMENT,Employees,Revenue
Walsall Council,http://opendatacommunities.org/id/metropolitan-district-council/walsall,WC65-527,29/02/2016,Economy & Environment,BLACK COUNTRY CHAMBER OF COMMERCE & INDUSTRY.,17/02/2016,"1,295.00",63000-PROFESSIONAL FEES AND SERVICES,REGENERATION MANAGEMENT,Supplies & Services,Revenue
Walsall Council,http://opendatacommunities.org/id/metropolitan-district-council/walsall,WC65-528,29/02/2016,Economy & Environment,BLACK COUNTRY CONSORTIUM LIMITED,23/02/2016,"3,501.23",63000-PROFESSIONAL FEES AND SERVICES,GRANTS-BLACK COUNTRY INVEST TEAM,Supplies & Services,Revenue
Walsall Council,http://opendatacommunities.org/id/metropolitan-district-council/walsall,WC65-529,29/02/2016,Economy & Environment,BLACK COUNTRY CONSORTIUM LIMITED,15/02/2016,"4,000.00",63000-PROFESSIONAL FEES AND SERVICES,GRANTS-BLACK COUNTRY INVEST TEAM,Supplies & Services,Revenue
Walsall Council,http://opendatacommunities.org/id/metropolitan-district-council/walsall,WC65-530,29/02/2016,Economy & Environment,BLACK COUNTRY CONSORTIUM LIMITED,08/02/2016,"37,629.90",01045-PRIVATE GRANTS,CFR 1072 FAB KIT,Capital,Capital
Walsall Council,http://opendatacommunities.org/id/metropolitan-district-council/walsall,WC65-531,29/02/2016,Social Care & Inclusion,BLACK COUNTRY PARTNERSHIP NHS,18/02/2016,"18,600.00",73375-IN PATIENT BEDS,LD COMMISSIONING,Third Party Payments,Revenue
Walsall Council,http://opendatacommunities.org/id/metropolitan-district-council/walsall,WC65-532,29/02/2016,Social Care & Inclusion,BLACK COUNTRY PARTNERSHIP NHS,12/02/2016,"264,038.00",71007-CONTRIBUTION TO PCT,BCPFT,Third Party Payments,Revenue
Walsall Council,http://opendatacommunities.org/id/metropolitan-district-council/walsall,WC65-533,29/02/2016,Childrens,BLAKENALL HEATH JMI SCHOOL,10/02/2016,"55,920.00",77302-ISB-SCHOOL STANDARDS GRANT,BLAKENALL HEATH JUNIOR SCHOOL,Transfer Payments,Revenue
Walsall Council,http://opendatacommunities.org/id/metropolitan-district-council/walsall,WC65-534,29/02/2016,Childrens,BLAKENALL HEATH JMI SCHOOL,12/02/2016,"88,933.93",77300-ISB-FORMULA ALLOCATION,BLAKENALL HEATH JUNIOR SCHOOL,Transfer Payments,Revenue
Walsall Council,http://opendatacommunities.org/id/metropolitan-district-council/walsall,WC65-535,29/02/2016,Childrens,BLOXWICH ACADEMY,19/02/2016,500,77300-ISB-FORMULA ALLOCATION,THE MIRUS ACADEMY,Transfer Payments,Revenue
Walsall Council,http://opendatacommunities.org/id/metropolitan-district-council/walsall,WC65-536,29/02/2016,Childrens,BLOXWICH ACADEMY,12/02/2016,"10,322.06",66505-OTHER-GRANTS TO OTHER ORGS,EARLY YEARS - 3 YR OLDS,Third Party Payments,Revenue
Walsall Council,http://opendatacommunities.org/id/metropolitan-district-council/walsall,WC65-537,29/02/2016,Social Care & Inclusion,BLOXWICH COMMUNITY PARTNERSHIP.,17/02/2016,360,73374-SUPPORTED & OTHER ACCOMMODATION,MH COMMISSIONING,Third Party Payments,Revenue
Walsall Council,http://opendatacommunities.org/id/metropolitan-district-council/walsall,WC65-538,29/02/2016,Social Care & Inclusion,BLOXWICH COMMUNITY PARTNERSHIP.,17/02/2016,"4,400.00",43000-RENTS,EMPLOYMENT & OPPORTUNITY - DAY OPPORTUNITIES,Premises,Revenue
Walsall Council,http://opendatacommunities.org/id/metropolitan-district-council/walsall,WC65-539,29/02/2016,Economy & Environment,BLUE AND WHITE CREATIVE,08/02/2016,500,63000-PROFESSIONAL FEES AND SERVICES,EXTL FUNDED CREATIVE PROJECT MANAGEMENT,Supplies & Services,Revenue
Walsall Council,http://opendatacommunities.org/id/metropolitan-district-council/walsall,WC65-540,29/02/2016,Childrens,BLUE COAT CHURCH OF ENGLAND ACADEMY,10/02/2016,500,77300-ISB-FORMULA ALLOCATION,BLUE COAT CofE ACADEMY,Transfer Payments,Revenue
Walsall Council,http://opendatacommunities.org/id/metropolitan-district-council/walsall,WC65-541,29/02/2016,Childrens,BLUE COAT CHURCH OF ENGLAND ACADEMY,10/02/2016,500,77300-ISB-FORMULA ALLOCATION,BLUE COAT CofE ACADEMY,Transfer Payments,Revenue
Walsall Council,http://opendatacommunities.org/id/metropolitan-district-council/walsall,WC65-542,29/02/2016,Economy & Environment,BOC LTD,08/02/2016,589.73,60500-GENERAL MATERIALS,POLLUTION DIVISION,Supplies & Services,Revenue
Walsall Council,http://opendatacommunities.org/id/metropolitan-district-council/walsall,WC65-543,29/02/2016,Childrens,BODNANT COMMUNITY SCHOOL,02/02/2016,"1,000.00",77300-ISB-FORMULA ALLOCATION,OUT OF BOROUGH SCHOOLS,Transfer Payments,Revenue
Walsall Council,http://opendatacommunities.org/id/metropolitan-district-council/walsall,WC65-544,29/02/2016,Social Care & Inclusion,BOLDMERE COURT CARE HOME,24/02/2016,"1,582.15",73373-RESIDENTIAL & NURSING CARE PLACEMENTS,OP COMMISSIONING,Third Party Payments,Revenue
Walsall Council,http://opendatacommunities.org/id/metropolitan-district-council/walsall,WC65-545,29/02/2016,Social Care & Inclusion,BOLDMERE COURT CARE HOME,24/02/2016,"1,582.16",73373-RESIDENTIAL & NURSING CARE PLACEMENTS,OP COMMISSIONING,Third Party Payments,Revenue
Walsall Council,http://opendatacommunities.org/id/metropolitan-district-council/walsall,WC65-546,29/02/2016,Social Care & Inclusion,BOLDMERE COURT CARE HOME,24/02/2016,"1,582.16",73373-RESIDENTIAL & NURSING CARE PLACEMENTS,OP COMMISSIONING,Third Party Payments,Revenue
Walsall Council,http://opendatacommunities.org/id/metropolitan-district-council/walsall,WC65-547,29/02/2016,Economy & Environment,BOLINDA UK LTD,01/02/2016,305.52,60501-LIBRARY BOOKS,LIBRARY STOCK AND PERFORMANCE,Supplies & Services,Revenue
Walsall Council,http://opendatacommunities.org/id/metropolitan-district-council/walsall,WC65-548,29/02/2016,Economy & Environment,BONINGALE NURSERIES,17/02/2016,420,61500-CLOTHING & LAUNDRY,TREE TEAM,Supplies & Services,Revenue
Walsall Council,http://opendatacommunities.org/id/metropolitan-district-council/walsall,WC65-549,29/02/2016,Childrens,BOULTON TRAVEL LIMITED,05/02/2016,"2,260.00",52000-WITH DRIVER-HIRE OF VEHICLES,SCHOOL TRANSPORT,Transport,Revenue
Walsall Council,http://opendatacommunities.org/id/metropolitan-district-council/walsall,WC65-550,29/02/2016,Childrens,BOULTON TRAVEL LIMITED,05/02/2016,"2,318.00",52000-WITH DRIVER-HIRE OF VEHICLES,SCHOOL TRANSPORT,Transport,Revenue
Walsall Council,http://opendatacommunities.org/id/metropolitan-district-council/walsall,WC65-551,29/02/2016,Change and Governance,BOURNEMOUTH CONVENTION BUREAU LTD,01/02/2016,464.12,34329-HOTEL ACCOMMODATION-EMPLOYEES,CORPORATE MANAGEMENT TEAM,Employees,Revenue
Walsall Council,http://opendatacommunities.org/id/metropolitan-district-council/walsall,WC65-552,29/02/2016,Social Care & Inclusion,BOWDEN DERRA PARK,16/02/2016,"10,502.76",73373-RESIDENTIAL & NURSING CARE PLACEMENTS,LD COMMISSIONING,Third Party Payments,Revenue
Walsall Council,http://opendatacommunities.org/id/metropolitan-district-council/walsall,WC65-553,29/02/2016,Change and Governance,BRADLEY ENVIRONMENTAL,16/02/2016,250,01006-SITE WORKS MAIN CONTRACTORS,CFR 801 ASBESTOS REMOVAL EAST,Capital,Capital
Walsall Council,http://opendatacommunities.org/id/metropolitan-district-council/walsall,WC65-554,29/02/2016,Change and Governance,BRADLEY ENVIRONMENTAL,05/02/2016,875,01006-SITE WORKS MAIN CONTRACTORS,CFR 801 ASBESTOS REMOVAL EAST,Capital,Capital
Walsall Council,http://opendatacommunities.org/id/metropolitan-district-council/walsall,WC65-555,29/02/2016,Social Care & Inclusion,BRELMAYNE LTD,05/02/2016,377.55,60007-REPAIR OF EQUIPMENT-EQUIPMENT,REABLEMENT TEAM - HOLLY BANK,Supplies & Services,Revenue
Walsall Council,http://opendatacommunities.org/id/metropolitan-district-council/walsall,WC65-556,29/02/2016,Social Care & Inclusion,REDACTED,09/02/2016,440,76422-DIRECT PAYMENTS TO SOCIAL SERVICES CLIENTS,LD COMMISSIONING,Transfer Payments,Revenue
Walsall Council,http://opendatacommunities.org/id/metropolitan-district-council/walsall,WC65-557,29/02/2016,Childrens,REDACTED,01/02/2016,"1,301.84",74006-HOLIDAY/CHRISTMAS ALLOWANCE-FOSTER CARERS-OTH AGENCY PROVISION,INTERNAL FOSTER CARE PROVISION,Third Party Payments,Revenue
Walsall Council,http://opendatacommunities.org/id/metropolitan-district-council/walsall,WC65-558,29/02/2016,Childrens,REDACTED,01/02/2016,"1,445.32",62515-MISCELLANEOUS SUPPLIES,INTERNAL FOSTER CARE PROVISION,Supplies & Services,Revenue
Walsall Council,http://opendatacommunities.org/id/metropolitan-district-council/walsall,WC65-559,29/02/2016,Childrens,REDACTED,29/02/2016,"1,445.32",62515-MISCELLANEOUS SUPPLIES,INTERNAL FOSTER CARE PROVISION,Supplies & Services,Revenue
Walsall Council,http://opendatacommunities.org/id/metropolitan-district-council/walsall,WC65-560,29/02/2016,Economy & Environment,BRENNTAG UK LIMITED,18/02/2016,708.88,50301-FUEL-TRANSPORT RUN COSTS,FUEL,Transport,Revenue
Walsall Council,http://opendatacommunities.org/id/metropolitan-district-council/walsall,WC65-561,29/02/2016,Social Care & Inclusion,REDACTED,11/02/2016,"2,935.24",73374-SUPPORTED & OTHER ACCOMMODATION,LD COMMISSIONING,Third Party Payments,Revenue
Walsall Council,http://opendatacommunities.org/id/metropolitan-district-council/walsall,WC65-562,29/02/2016,Social Care & Inclusion,REDACTED,09/02/2016,"1,294.80",76422-DIRECT PAYMENTS TO SOCIAL SERVICES CLIENTS,OP COMMISSIONING,Transfer Payments,Revenue
Walsall Council,http://opendatacommunities.org/id/metropolitan-district-council/walsall,WC65-563,29/02/2016,Social Care & Inclusion,REDACTED,09/02/2016,697,76422-DIRECT PAYMENTS TO SOCIAL SERVICES CLIENTS,OP COMMISSIONING,Transfer Payments,Revenue
Walsall Council,http://opendatacommunities.org/id/metropolitan-district-council/walsall,WC65-564,29/02/2016,Social Care & Inclusion,BRIDGEWOOD HEALTH CARE LTD,02/02/2016,"5,513.72",73373-RESIDENTIAL & NURSING CARE PLACEMENTS,YADS COMMISSIONING,Third Party Payments,Revenue
Walsall Council,http://opendatacommunities.org/id/metropolitan-district-council/walsall,WC65-565,29/02/2016,Childrens,BRIGHT HORIZONS (WISHING WILLOW),01/02/2016,528.67,63120-CRECHE FACILITIES-SERVICES-FEES,RECRUITMENT TEAM,Supplies & Services,Revenue
Walsall Council,http://opendatacommunities.org/id/metropolitan-district-council/walsall,WC65-566,29/02/2016,Change and Governance,BRISTOW & SUTOR,05/02/2016,356.29,63102-CONSULTANTS FEES - CORPORATE,REVENUES,Supplies & Services,Revenue
Walsall Council,http://opendatacommunities.org/id/metropolitan-district-council/walsall,WC65-567,29/02/2016,Change and Governance,BRISTOW & SUTOR,01/02/2016,511.81,63102-CONSULTANTS FEES - CORPORATE,REVENUES,Supplies & Services,Revenue
Walsall Council,http://opendatacommunities.org/id/metropolitan-district-council/walsall,WC65-568,29/02/2016,Change and Governance,BRISTOW & SUTOR,12/02/2016,917.92,63102-CONSULTANTS FEES - CORPORATE,REVENUES,Supplies & Services,Revenue
Walsall Council,http://opendatacommunities.org/id/metropolitan-district-council/walsall,WC65-569,29/02/2016,Economy & Environment,BRITANNIA APPRENTICESHIPS LTD,05/02/2016,"2,250.00",66500-GRANTS TO OTHER ORGS,RES-WALSALL WORKS,Third Party Payments,Revenue
Walsall Council,http://opendatacommunities.org/id/metropolitan-district-council/walsall,WC65-570,29/02/2016,Change and Governance,BRITISH GAS BUSINESS,18/02/2016,230.37,42000-GAS-ENERGY COSTS,CENTRALISED ENERGY,Premises,Revenue
Walsall Council,http://opendatacommunities.org/id/metropolitan-district-council/walsall,WC65-571,29/02/2016,Change and Governance,BRITISH GAS BUSINESS,18/02/2016,458.94,42000-GAS-ENERGY COSTS,CENTRALISED ENERGY,Premises,Revenue
Walsall Council,http://opendatacommunities.org/id/metropolitan-district-council/walsall,WC65-572,29/02/2016,Childrens,BRITISH GAS BUSINESS,19/02/2016,490.91,42000-GAS-ENERGY COSTS,CLUSTER 5 DARLASTON,Premises,Revenue
Walsall Council,http://opendatacommunities.org/id/metropolitan-district-council/walsall,WC65-573,29/02/2016,Change and Governance,BRITISH GAS BUSINESS,04/02/2016,"1,067.94",42000-GAS-ENERGY COSTS,CENTRALISED ENERGY,Premises,Revenue
Walsall Council,http://opendatacommunities.org/id/metropolitan-district-council/walsall,WC65-574,29/02/2016,Childrens,BRITISH GAS BUSINESS,04/02/2016,"6,920.68",42000-GAS-ENERGY COSTS,PELSALL EDC,Premises,Revenue
Walsall Council,http://opendatacommunities.org/id/metropolitan-district-council/walsall,WC65-575,29/02/2016,Economy & Environment,BRITISH PARKING ASSOCIATON,08/02/2016,637,63000-PROFESSIONAL FEES AND SERVICES,PARKING SERVICES,Supplies & Services,Revenue
Walsall Council,http://opendatacommunities.org/id/metropolitan-district-council/walsall,WC65-576,29/02/2016,Childrens,BROADWAY TRAVEL CONNECTIONS,10/02/2016,"2,250.00",52000-WITH DRIVER-HIRE OF VEHICLES,SCHOOL TRANSPORT,Transport,Revenue
Walsall Council,http://opendatacommunities.org/id/metropolitan-district-council/walsall,WC65-577,29/02/2016,Social Care & Inclusion,BROOK DESIGN HARDWARE LTD T/A BROOKVENT,24/02/2016,"1,929.68",60500-GENERAL MATERIALS,EMPLOYMENT LINKS TO WORK,Supplies & Services,Revenue
Walsall Council,http://opendatacommunities.org/id/metropolitan-district-council/walsall,WC65-578,29/02/2016,Social Care & Inclusion,BROOK DESIGN HARDWARE LTD T/A BROOKVENT,19/02/2016,"11,273.67",60500-GENERAL MATERIALS,EMPLOYMENT LINKS TO WORK,Supplies & Services,Revenue
Walsall Council,http://opendatacommunities.org/id/metropolitan-district-council/walsall,WC65-579,29/02/2016,Economy & Environment,BROWNHILLS ASPHALT & TARMAC LIMITED,03/02/2016,400,60500-GENERAL MATERIALS,INFRASTRUCTURE MAINTENANCE,Supplies & Services,Revenue
Walsall Council,http://opendatacommunities.org/id/metropolitan-district-council/walsall,WC65-580,29/02/2016,Economy & Environment,BROWNHILLS ASPHALT & TARMAC LIMITED,01/02/2016,438,60500-GENERAL MATERIALS,INFRASTRUCTURE MAINTENANCE,Supplies & Services,Revenue
Walsall Council,http://opendatacommunities.org/id/metropolitan-district-council/walsall,WC65-581,29/02/2016,Economy & Environment,BROWNHILLS ASPHALT & TARMAC LIMITED,03/02/2016,490,73025-PROFESSIONAL SERVICES-PRIV CONTRACTOR & OTHER AGENCIES,DEPOT,Third Party Payments,Revenue
Walsall Council,http://opendatacommunities.org/id/metropolitan-district-council/walsall,WC65-582,29/02/2016,Economy & Environment,BROWNHILLS ASPHALT & TARMAC LIMITED,03/02/2016,520,60500-GENERAL MATERIALS,CEMETERIES CENTRAL ADMINISTRATION,Supplies & Services,Revenue
Walsall Council,http://opendatacommunities.org/id/metropolitan-district-council/walsall,WC65-583,29/02/2016,Economy & Environment,BROWNHILLS ASPHALT & TARMAC LIMITED,16/02/2016,775,63239-EXTERNAL WORKS-PAYMENT TO CONTRACTOR,SECTION 106,Third Party Payments,Revenue
Walsall Council,http://opendatacommunities.org/id/metropolitan-district-council/walsall,WC65-584,29/02/2016,Economy & Environment,BROWNHILLS ASPHALT & TARMAC LIMITED,17/02/2016,780,60500-GENERAL MATERIALS,CEMETERIES CENTRAL ADMINISTRATION,Supplies & Services,Revenue
Walsall Council,http://opendatacommunities.org/id/metropolitan-district-council/walsall,WC65-585,29/02/2016,Economy & Environment,BROWNHILLS ASPHALT & TARMAC LIMITED,03/02/2016,"1,650.00",60500-GENERAL MATERIALS,INFRASTRUCTURE MAINTENANCE,Supplies & Services,Revenue
Walsall Council,http://opendatacommunities.org/id/metropolitan-district-council/walsall,WC65-586,29/02/2016,Economy & Environment,BROWNHILLS ASPHALT & TARMAC LIMITED,18/02/2016,"4,140.00",60006-NEW-FURNITURE & EQUIPMENT,INFRASTRUCTURE MAINTENANCE,Supplies & Services,Revenue
Walsall Council,http://opendatacommunities.org/id/metropolitan-district-council/walsall,WC65-587,29/02/2016,Economy & Environment,BROWNHILLS ASPHALT & TARMAC LIMITED,17/02/2016,"5,154.00","40000-REPAIRS,ALTERATIONS & MAINTENANCE-PREM",SECTION 106,Premises,Revenue
Walsall Council,http://opendatacommunities.org/id/metropolitan-district-council/walsall,WC65-588,29/02/2016,Economy & Environment,BROWNHILLS ASPHALT & TARMAC LIMITED,17/02/2016,"15,297.00",01023-TECHNICAL ASSISTANTS TIME,CFR 818 MANAGING MEMORIAL SAFETY,Capital,Capital
Walsall Council,http://opendatacommunities.org/id/metropolitan-district-council/walsall,WC65-589,29/02/2016,Childrens,BROWNHILLS COMMUNITY ASSOCIATION,15/02/2016,556.5,66505-OTHER-GRANTS TO OTHER ORGS,EARLY YEARS - 3 YR OLDS,Third Party Payments,Revenue
Walsall Council,http://opendatacommunities.org/id/metropolitan-district-council/walsall,WC65-590,29/02/2016,Childrens,BROWNHILLS COMMUNITY ASSOCIATION,08/02/2016,"18,494.50",66500-GRANTS TO OTHER ORGS,BROWNHILLS COMMUNITY ASSOCIATION,Third Party Payments,Revenue
Walsall Council,http://opendatacommunities.org/id/metropolitan-district-council/walsall,WC65-591,29/02/2016,Economy & Environment,BROXAP LTD,19/02/2016,126.55,01009-SITE WORKS - OTHER CONTRACTORS,CFR 1085 SUPPORT OF A* STARS SAFER ROUTES TO SCHOOLS,Capital,Capital
Walsall Council,http://opendatacommunities.org/id/metropolitan-district-council/walsall,WC65-592,29/02/2016,Economy & Environment,BROXAP LTD,19/02/2016,354.34,01009-SITE WORKS - OTHER CONTRACTORS,CFR 1085 SUPPORT OF A* STARS SAFER ROUTES TO SCHOOLS,Capital,Capital
Walsall Council,http://opendatacommunities.org/id/metropolitan-district-council/walsall,WC65-593,29/02/2016,Economy & Environment,BROXAP LTD,19/02/2016,973.45,01009-SITE WORKS - OTHER CONTRACTORS,CFR 1085 NEW INVENTION JNR SAFER ROUTES TO SCHOOLS,Capital,Capital
Walsall Council,http://opendatacommunities.org/id/metropolitan-district-council/walsall,WC65-594,29/02/2016,Economy & Environment,BROXAP LTD,19/02/2016,"2,725.66",01009-SITE WORKS - OTHER CONTRACTORS,CFR 1085 NEW INVENTION JNR SAFER ROUTES TO SCHOOLS,Capital,Capital
Walsall Council,http://opendatacommunities.org/id/metropolitan-district-council/walsall,WC65-595,29/02/2016,Social Care & Inclusion,REDACTED,09/02/2016,"1,445.00",76422-DIRECT PAYMENTS TO SOCIAL SERVICES CLIENTS,LD COMMISSIONING,Transfer Payments,Revenue
Walsall Council,http://opendatacommunities.org/id/metropolitan-district-council/walsall,WC65-596,29/02/2016,Change and Governance,REDACTED,03/02/2016,300,"40000-REPAIRS,ALTERATIONS & MAINTENANCE-PREM",WALSALL TOWN HALL,Premises,Revenue
Walsall Council,http://opendatacommunities.org/id/metropolitan-district-council/walsall,WC65-597,29/02/2016,Economy & Environment,REDACTED,15/02/2016,600,63000-PROFESSIONAL FEES AND SERVICES,NAG - TEMPORARY EXHIBITIONS,Supplies & Services,Revenue
Walsall Council,http://opendatacommunities.org/id/metropolitan-district-council/walsall,WC65-598,29/02/2016,Economy & Environment,REDACTED,03/02/2016,900,60500-GENERAL MATERIALS,POLLUTION DIVISION,Supplies & Services,Revenue
Walsall Council,http://opendatacommunities.org/id/metropolitan-district-council/walsall,WC65-599,29/02/2016,Change and Governance,BT,05/02/2016,"1,454.68",63601-COSTS (NOT INTERNAL RECHARGES)-TELEPHONES,CENTRAL COMMUNICATIONS RECHARGES,Supplies & Services,Revenue
Walsall Council,http://opendatacommunities.org/id/metropolitan-district-council/walsall,WC65-600,29/02/2016,Change and Governance,BT,10/02/2016,"2,429.24",63601-COSTS (NOT INTERNAL RECHARGES)-TELEPHONES,CENTRAL COMMUNICATIONS RECHARGES,Supplies & Services,Revenue
Walsall Council,http://opendatacommunities.org/id/metropolitan-district-council/walsall,WC65-601,29/02/2016,Economy & Environment,BT,01/02/2016,"8,689.75",63601-COSTS (NOT INTERNAL RECHARGES)-TELEPHONES,TRAFFIC CONTROL,Supplies & Services,Revenue
Walsall Council,http://opendatacommunities.org/id/metropolitan-district-council/walsall,WC65-602,29/02/2016,Childrens,BT PLC,19/02/2016,420.23,63603-COST OF CALLS-TELEPHONES,CLUSTER 5 DARLASTON,Supplies & Services,Revenue
Walsall Council,http://opendatacommunities.org/id/metropolitan-district-council/walsall,WC65-603,29/02/2016,Change and Governance,BT PLC,01/02/2016,970,63603-COST OF CALLS-TELEPHONES,PROCESSING,Supplies & Services,Revenue
Walsall Council,http://opendatacommunities.org/id/metropolitan-district-council/walsall,WC65-604,29/02/2016,Change and Governance,BT PLC,03/02/2016,"4,802.78",63800-COMPUTER EQUIPMENT AND SUPPLIES,RECHARGEABLE EQUIPMENT,Supplies & Services,Revenue
Walsall Council,http://opendatacommunities.org/id/metropolitan-district-council/walsall,WC65-605,29/02/2016,Economy & Environment,BT PLC,18/02/2016,"5,220.62",01001-OTHER CONSULTANTS FEES,CFR 876 DARLASTON STATUTORY UNDERTAKERS,Capital,Capital
Walsall Council,http://opendatacommunities.org/id/metropolitan-district-council/walsall,WC65-606,29/02/2016,Economy & Environment,BTE PLANT SALES LIMITED,10/02/2016,226.9,73025-PROFESSIONAL SERVICES-PRIV CONTRACTOR & OTHER AGENCIES,FLEET,Third Party Payments,Revenue
Walsall Council,http://opendatacommunities.org/id/metropolitan-district-council/walsall,WC65-607,29/02/2016,Childrens,BUFFET EXPRESS LTD,05/02/2016,303.5,61305-CATERING,YOUTH OPINIONS UNITE,Supplies & Services,Revenue
Walsall Council,http://opendatacommunities.org/id/metropolitan-district-council/walsall,WC65-608,29/02/2016,Change and Governance,BUILDING RECRUITMENT COMPANY,01/02/2016,894.75,73025-PROFESSIONAL SERVICES-PRIV CONTRACTOR & OTHER AGENCIES,INTEGRATED FACILITIES MANAGEMENT,Third Party Payments,Revenue
Walsall Council,http://opendatacommunities.org/id/metropolitan-district-council/walsall,WC65-609,29/02/2016,Change and Governance,BUILDING RECRUITMENT COMPANY,01/02/2016,"1,069.55",73025-PROFESSIONAL SERVICES-PRIV CONTRACTOR & OTHER AGENCIES,INTEGRATED FACILITIES MANAGEMENT,Third Party Payments,Revenue
Walsall Council,http://opendatacommunities.org/id/metropolitan-district-council/walsall,WC65-610,29/02/2016,Childrens,BULLEYS CHARTERED SURVEYORS,10/02/2016,"31,880.46","40000-REPAIRS,ALTERATIONS & MAINTENANCE-PREM",SURE START CHILDRENS CENTRES,Premises,Revenue
Walsall Council,http://opendatacommunities.org/id/metropolitan-district-council/walsall,WC65-611,29/02/2016,Childrens,BUMBLE BEEZZZ DAY NURSERY,05/02/2016,450,63000-PROFESSIONAL FEES AND SERVICES,SUPPORT UNDER SECT 23 OF THE CHILDRENS ACT,Supplies & Services,Revenue
Walsall Council,http://opendatacommunities.org/id/metropolitan-district-council/walsall,WC65-612,29/02/2016,Social Care & Inclusion,BUPA CARE HOMES (CFHCARE) LTD,02/02/2016,"1,490.80",73373-RESIDENTIAL & NURSING CARE PLACEMENTS,OP COMMISSIONING,Third Party Payments,Revenue
Walsall Council,http://opendatacommunities.org/id/metropolitan-district-council/walsall,WC65-613,29/02/2016,Social Care & Inclusion,BUPA CARE HOMES (CFHCARE) LTD,02/02/2016,"1,527.60",73373-RESIDENTIAL & NURSING CARE PLACEMENTS,OP COMMISSIONING,Third Party Payments,Revenue
Walsall Council,http://opendatacommunities.org/id/metropolitan-district-council/walsall,WC65-614,29/02/2016,Social Care & Inclusion,BUPA CARE HOMES (CFHCARE) LTD,02/02/2016,"1,533.16",73373-RESIDENTIAL & NURSING CARE PLACEMENTS,MH COMMISSIONING,Third Party Payments,Revenue
Walsall Council,http://opendatacommunities.org/id/metropolitan-district-council/walsall,WC65-615,29/02/2016,Social Care & Inclusion,BUPA CARE HOMES (CFHCARE) LTD,02/02/2016,"1,755.68",73373-RESIDENTIAL & NURSING CARE PLACEMENTS,MH COMMISSIONING,Third Party Payments,Revenue
Walsall Council,http://opendatacommunities.org/id/metropolitan-district-council/walsall,WC65-616,29/02/2016,Social Care & Inclusion,BUPA CARE HOMES (CFHCARE) LTD,02/02/2016,"3,129.80",73373-RESIDENTIAL & NURSING CARE PLACEMENTS,OP COMMISSIONING,Third Party Payments,Revenue
Walsall Council,http://opendatacommunities.org/id/metropolitan-district-council/walsall,WC65-617,29/02/2016,Social Care & Inclusion,BUPA CARE HOMES-WATERSIDE NURSING HOME,09/02/2016,-480,73373-RESIDENTIAL & NURSING CARE PLACEMENTS,OP COMMISSIONING,Third Party Payments,Revenue
Walsall Council,http://opendatacommunities.org/id/metropolitan-district-council/walsall,WC65-618,29/02/2016,Social Care & Inclusion,BUPA CARE HOMES-WATERSIDE NURSING HOME,09/02/2016,-288,73373-RESIDENTIAL & NURSING CARE PLACEMENTS,OP COMMISSIONING,Third Party Payments,Revenue
Walsall Council,http://opendatacommunities.org/id/metropolitan-district-council/walsall,WC65-619,29/02/2016,Social Care & Inclusion,BUPA CARE HOMES-WATERSIDE NURSING HOME,09/02/2016,"1,058.36",73373-RESIDENTIAL & NURSING CARE PLACEMENTS,OP COMMISSIONING,Third Party Payments,Revenue
Walsall Council,http://opendatacommunities.org/id/metropolitan-district-council/walsall,WC65-620,29/02/2016,Social Care & Inclusion,BUPA CARE HOMES-WATERSIDE NURSING HOME,09/02/2016,"1,270.03",73373-RESIDENTIAL & NURSING CARE PLACEMENTS,OP COMMISSIONING,Third Party Payments,Revenue
Walsall Council,http://opendatacommunities.org/id/metropolitan-district-council/walsall,WC65-621,29/02/2016,Social Care & Inclusion,BUPA CARE HOMES-WATERSIDE NURSING HOME,09/02/2016,"2,116.71",73373-RESIDENTIAL & NURSING CARE PLACEMENTS,OP COMMISSIONING,Third Party Payments,Revenue
Walsall Council,http://opendatacommunities.org/id/metropolitan-district-council/walsall,WC65-622,29/02/2016,Social Care & Inclusion,BUSH HOME LTD,09/02/2016,"1,490.96",73373-RESIDENTIAL & NURSING CARE PLACEMENTS,OP COMMISSIONING,Third Party Payments,Revenue
Walsall Council,http://opendatacommunities.org/id/metropolitan-district-council/walsall,WC65-623,29/02/2016,Social Care & Inclusion,BUSH HOME LTD,09/02/2016,"1,493.24",73373-RESIDENTIAL & NURSING CARE PLACEMENTS,OP COMMISSIONING,Third Party Payments,Revenue
Walsall Council,http://opendatacommunities.org/id/metropolitan-district-council/walsall,WC65-624,29/02/2016,Social Care & Inclusion,BUSH HOME LTD,09/02/2016,"1,493.24",73373-RESIDENTIAL & NURSING CARE PLACEMENTS,OP COMMISSIONING,Third Party Payments,Revenue
Walsall Council,http://opendatacommunities.org/id/metropolitan-district-council/walsall,WC65-625,29/02/2016,Social Care & Inclusion,BUSH HOME LTD,09/02/2016,"1,493.24",73373-RESIDENTIAL & NURSING CARE PLACEMENTS,OP COMMISSIONING,Third Party Payments,Revenue
Walsall Council,http://opendatacommunities.org/id/metropolitan-district-council/walsall,WC65-626,29/02/2016,Social Care & Inclusion,BUSH HOME LTD,09/02/2016,"1,493.24",73373-RESIDENTIAL & NURSING CARE PLACEMENTS,OP COMMISSIONING,Third Party Payments,Revenue
Walsall Council,http://opendatacommunities.org/id/metropolitan-district-council/walsall,WC65-627,29/02/2016,Social Care & Inclusion,BUSH HOME LTD,09/02/2016,"1,493.24",73373-RESIDENTIAL & NURSING CARE PLACEMENTS,OP COMMISSIONING,Third Party Payments,Revenue
Walsall Council,http://opendatacommunities.org/id/metropolitan-district-council/walsall,WC65-628,29/02/2016,Social Care & Inclusion,BUSH HOME LTD,09/02/2016,"1,568.64",73373-RESIDENTIAL & NURSING CARE PLACEMENTS,OP COMMISSIONING,Third Party Payments,Revenue
Walsall Council,http://opendatacommunities.org/id/metropolitan-district-council/walsall,WC65-629,29/02/2016,Social Care & Inclusion,BUSH HOME LTD,09/02/2016,"1,568.64",73373-RESIDENTIAL & NURSING CARE PLACEMENTS,OP COMMISSIONING,Third Party Payments,Revenue
Walsall Council,http://opendatacommunities.org/id/metropolitan-district-council/walsall,WC65-630,29/02/2016,Social Care & Inclusion,BUSH HOME LTD,09/02/2016,"1,568.64",73373-RESIDENTIAL & NURSING CARE PLACEMENTS,OP COMMISSIONING,Third Party Payments,Revenue
Walsall Council,http://opendatacommunities.org/id/metropolitan-district-council/walsall,WC65-631,29/02/2016,Social Care & Inclusion,BUSH HOME LTD,09/02/2016,"1,568.64",73373-RESIDENTIAL & NURSING CARE PLACEMENTS,MH COMMISSIONING,Third Party Payments,Revenue
Walsall Council,http://opendatacommunities.org/id/metropolitan-district-council/walsall,WC65-632,29/02/2016,Social Care & Inclusion,BUSH HOME LTD,09/02/2016,"1,568.64",73373-RESIDENTIAL & NURSING CARE PLACEMENTS,MH COMMISSIONING,Third Party Payments,Revenue
Walsall Council,http://opendatacommunities.org/id/metropolitan-district-council/walsall,WC65-633,29/02/2016,Social Care & Inclusion,BUSH HOME LTD,09/02/2016,"1,568.64",73373-RESIDENTIAL & NURSING CARE PLACEMENTS,OP COMMISSIONING,Third Party Payments,Revenue
Walsall Council,http://opendatacommunities.org/id/metropolitan-district-council/walsall,WC65-634,29/02/2016,Social Care & Inclusion,BUSH HOME LTD,09/02/2016,"1,568.64",73373-RESIDENTIAL & NURSING CARE PLACEMENTS,MH COMMISSIONING,Third Party Payments,Revenue
Walsall Council,http://opendatacommunities.org/id/metropolitan-district-council/walsall,WC65-635,29/02/2016,Social Care & Inclusion,BUSH HOME LTD,09/02/2016,"1,568.64",73373-RESIDENTIAL & NURSING CARE PLACEMENTS,OP COMMISSIONING,Third Party Payments,Revenue
Walsall Council,http://opendatacommunities.org/id/metropolitan-district-council/walsall,WC65-636,29/02/2016,Social Care & Inclusion,BUSH HOME LTD,09/02/2016,"1,568.64",73373-RESIDENTIAL & NURSING CARE PLACEMENTS,OP COMMISSIONING,Third Party Payments,Revenue
Walsall Council,http://opendatacommunities.org/id/metropolitan-district-council/walsall,WC65-637,29/02/2016,Social Care & Inclusion,BUSH HOME LTD,09/02/2016,"1,568.64",73373-RESIDENTIAL & NURSING CARE PLACEMENTS,OP COMMISSIONING,Third Party Payments,Revenue
Walsall Council,http://opendatacommunities.org/id/metropolitan-district-council/walsall,WC65-638,29/02/2016,Social Care & Inclusion,BUSH HOME LTD,09/02/2016,"1,568.66",73373-RESIDENTIAL & NURSING CARE PLACEMENTS,MH COMMISSIONING,Third Party Payments,Revenue
Walsall Council,http://opendatacommunities.org/id/metropolitan-district-council/walsall,WC65-639,29/02/2016,Social Care & Inclusion,BUSH HOME LTD,09/02/2016,"1,592.64",73373-RESIDENTIAL & NURSING CARE PLACEMENTS,OP COMMISSIONING,Third Party Payments,Revenue
Walsall Council,http://opendatacommunities.org/id/metropolitan-district-council/walsall,WC65-640,29/02/2016,Childrens,BY THE BRIDGE,12/02/2016,"5,726.46",74037-INDEPENDENT FOSTER CARE-OTH AGENCY PROVISION,EXTERNAL FOSTER CARE PROVISION,Third Party Payments,Revenue
Walsall Council,http://opendatacommunities.org/id/metropolitan-district-council/walsall,WC65-641,29/02/2016,Social Care & Inclusion,C & V ORCHARD MANOR LTD,16/02/2016,952.39,73373-RESIDENTIAL & NURSING CARE PLACEMENTS,OP COMMISSIONING,Third Party Payments,Revenue
Walsall Council,http://opendatacommunities.org/id/metropolitan-district-council/walsall,WC65-642,29/02/2016,Social Care & Inclusion,C & V ORCHARD MANOR LTD,16/02/2016,"1,472.16",73373-RESIDENTIAL & NURSING CARE PLACEMENTS,LD COMMISSIONING,Third Party Payments,Revenue
Walsall Council,http://opendatacommunities.org/id/metropolitan-district-council/walsall,WC65-643,29/02/2016,Social Care & Inclusion,C & V ORCHARD MANOR LTD,16/02/2016,"1,472.16",73373-RESIDENTIAL & NURSING CARE PLACEMENTS,OP COMMISSIONING,Third Party Payments,Revenue
Walsall Council,http://opendatacommunities.org/id/metropolitan-district-council/walsall,WC65-644,29/02/2016,Social Care & Inclusion,C & V ORCHARD MANOR LTD,16/02/2016,"1,493.24",73373-RESIDENTIAL & NURSING CARE PLACEMENTS,OP COMMISSIONING,Third Party Payments,Revenue
Walsall Council,http://opendatacommunities.org/id/metropolitan-district-council/walsall,WC65-645,29/02/2016,Social Care & Inclusion,C & V ORCHARD MANOR LTD,24/02/2016,"1,493.24",73373-RESIDENTIAL & NURSING CARE PLACEMENTS,OP COMMISSIONING,Third Party Payments,Revenue
Walsall Council,http://opendatacommunities.org/id/metropolitan-district-council/walsall,WC65-646,29/02/2016,Social Care & Inclusion,C & V ORCHARD MANOR LTD,16/02/2016,"1,493.32",73373-RESIDENTIAL & NURSING CARE PLACEMENTS,LD COMMISSIONING,Third Party Payments,Revenue
Walsall Council,http://opendatacommunities.org/id/metropolitan-district-council/walsall,WC65-647,29/02/2016,Social Care & Inclusion,C & V ORCHARD MANOR LTD,24/02/2016,"1,493.32",73373-RESIDENTIAL & NURSING CARE PLACEMENTS,OP COMMISSIONING,Third Party Payments,Revenue
Walsall Council,http://opendatacommunities.org/id/metropolitan-district-council/walsall,WC65-648,29/02/2016,Social Care & Inclusion,C & V ORCHARD MANOR LTD,16/02/2016,"1,566.20",73373-RESIDENTIAL & NURSING CARE PLACEMENTS,OP COMMISSIONING,Third Party Payments,Revenue
Walsall Council,http://opendatacommunities.org/id/metropolitan-district-council/walsall,WC65-649,29/02/2016,Social Care & Inclusion,C & V ORCHARD MANOR LTD,24/02/2016,"1,568.60",73373-RESIDENTIAL & NURSING CARE PLACEMENTS,OP COMMISSIONING,Third Party Payments,Revenue
Walsall Council,http://opendatacommunities.org/id/metropolitan-district-council/walsall,WC65-650,29/02/2016,Social Care & Inclusion,C & V ORCHARD MANOR LTD,16/02/2016,"1,568.64",73373-RESIDENTIAL & NURSING CARE PLACEMENTS,OP COMMISSIONING,Third Party Payments,Revenue
Walsall Council,http://opendatacommunities.org/id/metropolitan-district-council/walsall,WC65-651,29/02/2016,Social Care & Inclusion,C & V ORCHARD MANOR LTD,16/02/2016,"5,770.35",73373-RESIDENTIAL & NURSING CARE PLACEMENTS,OP COMMISSIONING,Third Party Payments,Revenue
Walsall Council,http://opendatacommunities.org/id/metropolitan-district-council/walsall,WC65-652,29/02/2016,Social Care & Inclusion,C & V ORCHARD RESIDENTIAL LTD,24/02/2016,319.49,73373-RESIDENTIAL & NURSING CARE PLACEMENTS,OP COMMISSIONING,Third Party Payments,Revenue
Walsall Council,http://opendatacommunities.org/id/metropolitan-district-council/walsall,WC65-653,29/02/2016,Social Care & Inclusion,C & V ORCHARD RESIDENTIAL LTD,02/02/2016,"1,493.24",73373-RESIDENTIAL & NURSING CARE PLACEMENTS,OP COMMISSIONING,Third Party Payments,Revenue
Walsall Council,http://opendatacommunities.org/id/metropolitan-district-council/walsall,WC65-654,29/02/2016,Social Care & Inclusion,C & V ORCHARD RESIDENTIAL LTD,16/02/2016,"1,493.24",73373-RESIDENTIAL & NURSING CARE PLACEMENTS,OP COMMISSIONING,Third Party Payments,Revenue
Walsall Council,http://opendatacommunities.org/id/metropolitan-district-council/walsall,WC65-655,29/02/2016,Social Care & Inclusion,C & V ORCHARD RESIDENTIAL LTD,16/02/2016,"1,493.24",73373-RESIDENTIAL & NURSING CARE PLACEMENTS,OP COMMISSIONING,Third Party Payments,Revenue
Walsall Council,http://opendatacommunities.org/id/metropolitan-district-council/walsall,WC65-656,29/02/2016,Social Care & Inclusion,C & V ORCHARD RESIDENTIAL LTD,16/02/2016,"1,566.16",73373-RESIDENTIAL & NURSING CARE PLACEMENTS,OP COMMISSIONING,Third Party Payments,Revenue
Walsall Council,http://opendatacommunities.org/id/metropolitan-district-council/walsall,WC65-657,29/02/2016,Social Care & Inclusion,C & V ORCHARD RESIDENTIAL LTD,16/02/2016,"1,566.20",73373-RESIDENTIAL & NURSING CARE PLACEMENTS,OP COMMISSIONING,Third Party Payments,Revenue
Walsall Council,http://opendatacommunities.org/id/metropolitan-district-council/walsall,WC65-658,29/02/2016,Social Care & Inclusion,C & V ORCHARD RESIDENTIAL LTD,16/02/2016,"1,566.20",73373-RESIDENTIAL & NURSING CARE PLACEMENTS,OP COMMISSIONING,Third Party Payments,Revenue
Walsall Council,http://opendatacommunities.org/id/metropolitan-district-council/walsall,WC65-659,29/02/2016,Social Care & Inclusion,C & V ORCHARD RESIDENTIAL LTD,16/02/2016,"1,566.20",73373-RESIDENTIAL & NURSING CARE PLACEMENTS,OP COMMISSIONING,Third Party Payments,Revenue
Walsall Council,http://opendatacommunities.org/id/metropolitan-district-council/walsall,WC65-660,29/02/2016,Social Care & Inclusion,C & V ORCHARD RESIDENTIAL LTD,16/02/2016,"1,566.20",73373-RESIDENTIAL & NURSING CARE PLACEMENTS,OP COMMISSIONING,Third Party Payments,Revenue
Walsall Council,http://opendatacommunities.org/id/metropolitan-district-council/walsall,WC65-661,29/02/2016,Social Care & Inclusion,C & V ORCHARD RESIDENTIAL LTD,16/02/2016,"1,568.60",73373-RESIDENTIAL & NURSING CARE PLACEMENTS,OP COMMISSIONING,Third Party Payments,Revenue
Walsall Council,http://opendatacommunities.org/id/metropolitan-district-council/walsall,WC65-662,29/02/2016,Social Care & Inclusion,C & V ORCHARD RESIDENTIAL LTD,16/02/2016,"1,568.60",73373-RESIDENTIAL & NURSING CARE PLACEMENTS,OP COMMISSIONING,Third Party Payments,Revenue
Walsall Council,http://opendatacommunities.org/id/metropolitan-district-council/walsall,WC65-663,29/02/2016,Social Care & Inclusion,C & V ORCHARD RESIDENTIAL LTD,16/02/2016,"1,568.60",73373-RESIDENTIAL & NURSING CARE PLACEMENTS,OP COMMISSIONING,Third Party Payments,Revenue
Walsall Council,http://opendatacommunities.org/id/metropolitan-district-council/walsall,WC65-664,29/02/2016,Social Care & Inclusion,C & V ORCHARD RESIDENTIAL LTD,02/02/2016,"1,568.64",73373-RESIDENTIAL & NURSING CARE PLACEMENTS,OP COMMISSIONING,Third Party Payments,Revenue
Walsall Council,http://opendatacommunities.org/id/metropolitan-district-council/walsall,WC65-665,29/02/2016,Social Care & Inclusion,C & V ORCHARD RESIDENTIAL LTD,16/02/2016,"1,568.64",73373-RESIDENTIAL & NURSING CARE PLACEMENTS,OP COMMISSIONING,Third Party Payments,Revenue
Walsall Council,http://opendatacommunities.org/id/metropolitan-district-council/walsall,WC65-666,29/02/2016,Social Care & Inclusion,C & V ORCHARD RESIDENTIAL LTD,16/02/2016,"1,568.64",73373-RESIDENTIAL & NURSING CARE PLACEMENTS,OP COMMISSIONING,Third Party Payments,Revenue
Walsall Council,http://opendatacommunities.org/id/metropolitan-district-council/walsall,WC65-667,29/02/2016,Social Care & Inclusion,C & V ORCHARD RESIDENTIAL LTD,02/02/2016,"15,625.69",73373-RESIDENTIAL & NURSING CARE PLACEMENTS,OP COMMISSIONING,Third Party Payments,Revenue
Walsall Council,http://opendatacommunities.org/id/metropolitan-district-council/walsall,WC65-668,29/02/2016,Economy & Environment,C ART ART TRANSPORT LTD,02/02/2016,265,73032-TRANSPORTATION-PRIV CONTRACTOR FEES,NAG - TEMPORARY EXHIBITIONS,Third Party Payments,Revenue
Walsall Council,http://opendatacommunities.org/id/metropolitan-district-council/walsall,WC65-669,29/02/2016,Economy & Environment,C ART ART TRANSPORT LTD,02/02/2016,525,73032-TRANSPORTATION-PRIV CONTRACTOR FEES,NAG - TEMPORARY EXHIBITIONS,Third Party Payments,Revenue
Walsall Council,http://opendatacommunities.org/id/metropolitan-district-council/walsall,WC65-670,29/02/2016,Childrens,REDACTED,01/02/2016,"4,317.64",62515-MISCELLANEOUS SUPPLIES,INTERNAL FOSTER CARE PROVISION,Supplies & Services,Revenue
Walsall Council,http://opendatacommunities.org/id/metropolitan-district-council/walsall,WC65-671,29/02/2016,Childrens,REDACTED,29/02/2016,"4,317.64",62515-MISCELLANEOUS SUPPLIES,INTERNAL FOSTER CARE PROVISION,Supplies & Services,Revenue
Walsall Council,http://opendatacommunities.org/id/metropolitan-district-council/walsall,WC65-672,29/02/2016,Childrens,REDACTED,01/02/2016,"4,877.96",74006-HOLIDAY/CHRISTMAS ALLOWANCE-FOSTER CARERS-OTH AGENCY PROVISION,INTERNAL FOSTER CARE PROVISION,Third Party Payments,Revenue
Walsall Council,http://opendatacommunities.org/id/metropolitan-district-council/walsall,WC65-673,29/02/2016,Childrens,REDACTED,01/02/2016,"1,258.66",74006-HOLIDAY/CHRISTMAS ALLOWANCE-FOSTER CARERS-OTH AGENCY PROVISION,INTERNAL FOSTER CARE PROVISION,Third Party Payments,Revenue
Walsall Council,http://opendatacommunities.org/id/metropolitan-district-council/walsall,WC65-674,29/02/2016,Childrens,REDACTED,29/02/2016,"1,445.32",62515-MISCELLANEOUS SUPPLIES,INTERNAL FOSTER CARE PROVISION,Supplies & Services,Revenue
Walsall Council,http://opendatacommunities.org/id/metropolitan-district-council/walsall,WC65-675,29/02/2016,Childrens,REDACTED,01/02/2016,"1,753.09",62515-MISCELLANEOUS SUPPLIES,INTERNAL FOSTER CARE PROVISION,Supplies & Services,Revenue
Walsall Council,http://opendatacommunities.org/id/metropolitan-district-council/walsall,WC65-676,29/02/2016,Economy & Environment,C P DAVIDSON & SONS LTD,15/02/2016,220.26,60500-GENERAL MATERIALS,FLEET,Supplies & Services,Revenue
Walsall Council,http://opendatacommunities.org/id/metropolitan-district-council/walsall,WC65-677,29/02/2016,Economy & Environment,C P DAVIDSON & SONS LTD,15/02/2016,353.56,60514-MATERIALS TO STORES,FLEET PARTS STOCK ACCOUNT,Supplies & Services,Revenue
Walsall Council,http://opendatacommunities.org/id/metropolitan-district-council/walsall,WC65-678,29/02/2016,Economy & Environment,C P DAVIDSON & SONS LTD,18/02/2016,783.67,60514-MATERIALS TO STORES,FLEET PARTS STOCK ACCOUNT,Supplies & Services,Revenue
Walsall Council,http://opendatacommunities.org/id/metropolitan-district-council/walsall,WC65-679,29/02/2016,Economy & Environment,C P DAVIDSON & SONS LTD,01/02/2016,"1,350.00",52003-OPERATING LEASES-VEHICLES,LEASING,Central,Revenue
Walsall Council,http://opendatacommunities.org/id/metropolitan-district-council/walsall,WC65-680,29/02/2016,Economy & Environment,C P DAVIDSON & SONS LTD,01/02/2016,"1,350.00",52003-OPERATING LEASES-VEHICLES,LEASING,Central,Revenue
Walsall Council,http://opendatacommunities.org/id/metropolitan-district-council/walsall,WC65-681,29/02/2016,Economy & Environment,C P DAVIDSON & SONS LTD,01/02/2016,"1,350.00",52003-OPERATING LEASES-VEHICLES,LEASING,Central,Revenue
Walsall Council,http://opendatacommunities.org/id/metropolitan-district-council/walsall,WC65-682,29/02/2016,Economy & Environment,C P DAVIDSON & SONS LTD,02/02/2016,"1,350.00",52003-OPERATING LEASES-VEHICLES,LEASING,Central,Revenue
Walsall Council,http://opendatacommunities.org/id/metropolitan-district-council/walsall,WC65-683,29/02/2016,Economy & Environment,C P DAVIDSON & SONS LTD,18/02/2016,"1,800.00",52003-OPERATING LEASES-VEHICLES,LEASING,Central,Revenue
Walsall Council,http://opendatacommunities.org/id/metropolitan-district-council/walsall,WC65-684,29/02/2016,Economy & Environment,C P DAVIDSON & SONS LTD,18/02/2016,"1,800.00",52003-OPERATING LEASES-VEHICLES,LEASING,Central,Revenue
Walsall Council,http://opendatacommunities.org/id/metropolitan-district-council/walsall,WC65-685,29/02/2016,Economy & Environment,C P DAVIDSON & SONS LTD,18/02/2016,"1,800.00",52003-OPERATING LEASES-VEHICLES,LEASING,Central,Revenue
Walsall Council,http://opendatacommunities.org/id/metropolitan-district-council/walsall,WC65-686,29/02/2016,Economy & Environment,C P DAVIDSON & SONS LTD,18/02/2016,"1,800.00",52003-OPERATING LEASES-VEHICLES,LEASING,Central,Revenue
Walsall Council,http://opendatacommunities.org/id/metropolitan-district-council/walsall,WC65-687,29/02/2016,Childrens,REDACTED,15/02/2016,"1,142.88",74006-HOLIDAY/CHRISTMAS ALLOWANCE-FOSTER CARERS-OTH AGENCY PROVISION,INTERNAL FOSTER CARE PROVISION,Third Party Payments,Revenue
Walsall Council,http://opendatacommunities.org/id/metropolitan-district-council/walsall,WC65-688,29/02/2016,Economy & Environment,REDACTED,08/02/2016,348,63000-PROFESSIONAL FEES AND SERVICES,NAG - TEMPORARY EXHIBITIONS,Supplies & Services,Revenue
Walsall Council,http://opendatacommunities.org/id/metropolitan-district-council/walsall,WC65-689,29/02/2016,Economy & Environment,REDACTED,08/02/2016,456,63000-PROFESSIONAL FEES AND SERVICES,NAG - TEMPORARY EXHIBITIONS,Supplies & Services,Revenue
Walsall Council,http://opendatacommunities.org/id/metropolitan-district-council/walsall,WC65-690,29/02/2016,Economy & Environment,REDACTED,03/02/2016,468,63000-PROFESSIONAL FEES AND SERVICES,NAG - TEMPORARY EXHIBITIONS,Supplies & Services,Revenue
Walsall Council,http://opendatacommunities.org/id/metropolitan-district-council/walsall,WC65-691,29/02/2016,Social Care & Inclusion,CALDMORE AREA HOUSING ASS LTD,10/02/2016,306.28,73374-SUPPORTED & OTHER ACCOMMODATION,LD COMMISSIONING,Third Party Payments,Revenue
Walsall Council,http://opendatacommunities.org/id/metropolitan-district-council/walsall,WC65-692,29/02/2016,Social Care & Inclusion,CALDMORE AREA HOUSING ASS LTD,10/02/2016,344.57,73374-SUPPORTED & OTHER ACCOMMODATION,OP COMMISSIONING,Third Party Payments,Revenue
Walsall Council,http://opendatacommunities.org/id/metropolitan-district-council/walsall,WC65-693,29/02/2016,Social Care & Inclusion,CALDMORE AREA HOUSING ASS LTD,10/02/2016,485.93,73374-SUPPORTED & OTHER ACCOMMODATION,OP COMMISSIONING,Third Party Payments,Revenue
Walsall Council,http://opendatacommunities.org/id/metropolitan-district-council/walsall,WC65-694,29/02/2016,Social Care & Inclusion,CALDMORE AREA HOUSING ASS LTD,10/02/2016,733.31,73374-SUPPORTED & OTHER ACCOMMODATION,OP COMMISSIONING,Third Party Payments,Revenue
Walsall Council,http://opendatacommunities.org/id/metropolitan-district-council/walsall,WC65-695,29/02/2016,Social Care & Inclusion,CALDMORE AREA HOUSING ASS LTD,03/02/2016,919.78,73374-SUPPORTED & OTHER ACCOMMODATION,MH COMMISSIONING,Third Party Payments,Revenue
Walsall Council,http://opendatacommunities.org/id/metropolitan-district-council/walsall,WC65-696,29/02/2016,Social Care & Inclusion,CALDMORE AREA HOUSING ASS LTD,10/02/2016,"1,142.66",73374-SUPPORTED & OTHER ACCOMMODATION,OP COMMISSIONING,Third Party Payments,Revenue
Walsall Council,http://opendatacommunities.org/id/metropolitan-district-council/walsall,WC65-697,29/02/2016,Social Care & Inclusion,CALDMORE AREA HOUSING ASS LTD,19/02/2016,"1,560.00",70000-SOCIAL SERVICES-FEES TO VOLUNTARY BODIES,YADS SLA,Third Party Payments,Revenue
Walsall Council,http://opendatacommunities.org/id/metropolitan-district-council/walsall,WC65-698,29/02/2016,Social Care & Inclusion,CALDMORE AREA HOUSING ASS LTD,19/02/2016,"1,560.00",70000-SOCIAL SERVICES-FEES TO VOLUNTARY BODIES,YADS SLA,Third Party Payments,Revenue
Walsall Council,http://opendatacommunities.org/id/metropolitan-district-council/walsall,WC65-699,29/02/2016,Social Care & Inclusion,CALDMORE AREA HOUSING ASS LTD,02/02/2016,"1,718.85",73373-RESIDENTIAL & NURSING CARE PLACEMENTS,MH COMMISSIONING,Third Party Payments,Revenue
Walsall Council,http://opendatacommunities.org/id/metropolitan-district-council/walsall,WC65-700,29/02/2016,Social Care & Inclusion,CALDMORE AREA HOUSING ASS LTD,12/02/2016,"2,069.46",73374-SUPPORTED & OTHER ACCOMMODATION,MH COMMISSIONING,Third Party Payments,Revenue
Walsall Council,http://opendatacommunities.org/id/metropolitan-district-council/walsall,WC65-701,29/02/2016,Social Care & Inclusion,CALDMORE AREA HOUSING ASS LTD,02/02/2016,"2,533.04",73373-RESIDENTIAL & NURSING CARE PLACEMENTS,MH COMMISSIONING,Third Party Payments,Revenue
Walsall Council,http://opendatacommunities.org/id/metropolitan-district-council/walsall,WC65-702,29/02/2016,Social Care & Inclusion,CALDMORE AREA HOUSING ASS LTD,02/02/2016,"2,533.04",73373-RESIDENTIAL & NURSING CARE PLACEMENTS,MH COMMISSIONING,Third Party Payments,Revenue
Walsall Council,http://opendatacommunities.org/id/metropolitan-district-council/walsall,WC65-703,29/02/2016,Social Care & Inclusion,CALDMORE AREA HOUSING ASS LTD,02/02/2016,"2,533.04",73373-RESIDENTIAL & NURSING CARE PLACEMENTS,MH COMMISSIONING,Third Party Payments,Revenue
Walsall Council,http://opendatacommunities.org/id/metropolitan-district-council/walsall,WC65-704,29/02/2016,Social Care & Inclusion,CALDMORE AREA HOUSING ASS LTD,02/02/2016,"2,533.04",73373-RESIDENTIAL & NURSING CARE PLACEMENTS,MH COMMISSIONING,Third Party Payments,Revenue
Walsall Council,http://opendatacommunities.org/id/metropolitan-district-council/walsall,WC65-705,29/02/2016,Social Care & Inclusion,CALDMORE AREA HOUSING ASS LTD,02/02/2016,"2,533.04",73373-RESIDENTIAL & NURSING CARE PLACEMENTS,MH COMMISSIONING,Third Party Payments,Revenue
Walsall Council,http://opendatacommunities.org/id/metropolitan-district-council/walsall,WC65-706,29/02/2016,Social Care & Inclusion,CALDMORE AREA HOUSING ASS LTD,02/02/2016,"2,533.04",73373-RESIDENTIAL & NURSING CARE PLACEMENTS,MH COMMISSIONING,Third Party Payments,Revenue
Walsall Council,http://opendatacommunities.org/id/metropolitan-district-council/walsall,WC65-707,29/02/2016,Social Care & Inclusion,CALDMORE AREA HOUSING ASS LTD,02/02/2016,"2,533.04",73373-RESIDENTIAL & NURSING CARE PLACEMENTS,MH COMMISSIONING,Third Party Payments,Revenue
Walsall Council,http://opendatacommunities.org/id/metropolitan-district-council/walsall,WC65-708,29/02/2016,Social Care & Inclusion,CALDMORE AREA HOUSING ASS LTD,02/02/2016,"2,533.04",73373-RESIDENTIAL & NURSING CARE PLACEMENTS,MH COMMISSIONING,Third Party Payments,Revenue
Walsall Council,http://opendatacommunities.org/id/metropolitan-district-council/walsall,WC65-709,29/02/2016,Social Care & Inclusion,CALDMORE AREA HOUSING ASS LTD,02/02/2016,"2,533.04",73373-RESIDENTIAL & NURSING CARE PLACEMENTS,MH COMMISSIONING,Third Party Payments,Revenue
Walsall Council,http://opendatacommunities.org/id/metropolitan-district-council/walsall,WC65-710,29/02/2016,Social Care & Inclusion,CALDMORE AREA HOUSING ASS LTD,02/02/2016,"2,533.04",73373-RESIDENTIAL & NURSING CARE PLACEMENTS,MH COMMISSIONING,Third Party Payments,Revenue
Walsall Council,http://opendatacommunities.org/id/metropolitan-district-council/walsall,WC65-711,29/02/2016,Childrens,REDACTED,15/02/2016,373.76,74006-HOLIDAY/CHRISTMAS ALLOWANCE-FOSTER CARERS-OTH AGENCY PROVISION,INTERNAL FOSTER CARE PROVISION,Third Party Payments,Revenue
Walsall Council,http://opendatacommunities.org/id/metropolitan-district-council/walsall,WC65-712,29/02/2016,Childrens,REDACTED,09/02/2016,287.7,76422-DIRECT PAYMENTS TO SOCIAL SERVICES CLIENTS,FAMILY SUPPORT - DIRECT PAYMENTS,Transfer Payments,Revenue
Walsall Council,http://opendatacommunities.org/id/metropolitan-district-council/walsall,WC65-713,29/02/2016,Childrens,CAMBIAN CHILDCARE LIMITED,15/02/2016,"-3,276.39",74037-INDEPENDENT FOSTER CARE-OTH AGENCY PROVISION,EXTERNAL FOSTER CARE PROVISION,Third Party Payments,Revenue
Walsall Council,http://opendatacommunities.org/id/metropolitan-district-council/walsall,WC65-714,29/02/2016,Childrens,CAMBIAN CHILDCARE LIMITED,15/02/2016,"-3,276.39",74037-INDEPENDENT FOSTER CARE-OTH AGENCY PROVISION,EXTERNAL FOSTER CARE PROVISION,Third Party Payments,Revenue
Walsall Council,http://opendatacommunities.org/id/metropolitan-district-council/walsall,WC65-715,29/02/2016,Childrens,CAMBIAN CHILDCARE LIMITED,15/02/2016,"-3,170.70",74037-INDEPENDENT FOSTER CARE-OTH AGENCY PROVISION,EXTERNAL FOSTER CARE PROVISION,Third Party Payments,Revenue
Walsall Council,http://opendatacommunities.org/id/metropolitan-district-council/walsall,WC65-716,29/02/2016,Childrens,CAMBIAN CHILDCARE LIMITED,17/02/2016,"2,485.59",74036-EXTERNAL RESIDENTIAL CARE-OTH AGENCY PROVISION,INDEPENDENT RESIDENTIAL HOMES,Third Party Payments,Revenue
Walsall Council,http://opendatacommunities.org/id/metropolitan-district-council/walsall,WC65-717,29/02/2016,Childrens,CAMBIAN CHILDCARE LIMITED,23/02/2016,"2,541.25",74037-INDEPENDENT FOSTER CARE-OTH AGENCY PROVISION,EXTERNAL FOSTER CARE PROVISION,Third Party Payments,Revenue
Walsall Council,http://opendatacommunities.org/id/metropolitan-district-council/walsall,WC65-718,29/02/2016,Childrens,CAMBIAN CHILDCARE LIMITED,23/02/2016,"2,675.00",74037-INDEPENDENT FOSTER CARE-OTH AGENCY PROVISION,EXTERNAL FOSTER CARE PROVISION,Third Party Payments,Revenue
Walsall Council,http://opendatacommunities.org/id/metropolitan-district-council/walsall,WC65-719,29/02/2016,Childrens,CAMBIAN CHILDCARE LIMITED,15/02/2016,"3,103.10",74037-INDEPENDENT FOSTER CARE-OTH AGENCY PROVISION,EXTERNAL FOSTER CARE PROVISION,Third Party Payments,Revenue
Walsall Council,http://opendatacommunities.org/id/metropolitan-district-council/walsall,WC65-720,29/02/2016,Childrens,CAMBIAN CHILDCARE LIMITED,03/02/2016,"3,167.40",74037-INDEPENDENT FOSTER CARE-OTH AGENCY PROVISION,EXTERNAL FOSTER CARE PROVISION,Third Party Payments,Revenue
Walsall Council,http://opendatacommunities.org/id/metropolitan-district-council/walsall,WC65-721,29/02/2016,Childrens,CAMBIAN CHILDCARE LIMITED,10/02/2016,"3,170.70",74037-INDEPENDENT FOSTER CARE-OTH AGENCY PROVISION,EXTERNAL FOSTER CARE PROVISION,Third Party Payments,Revenue
Walsall Council,http://opendatacommunities.org/id/metropolitan-district-council/walsall,WC65-722,29/02/2016,Childrens,CAMBIAN CHILDCARE LIMITED,15/02/2016,"3,184.63",74037-INDEPENDENT FOSTER CARE-OTH AGENCY PROVISION,EXTERNAL FOSTER CARE PROVISION,Third Party Payments,Revenue
Walsall Council,http://opendatacommunities.org/id/metropolitan-district-council/walsall,WC65-723,29/02/2016,Childrens,CAMBIAN CHILDCARE LIMITED,03/02/2016,"3,272.98",74037-INDEPENDENT FOSTER CARE-OTH AGENCY PROVISION,EXTERNAL FOSTER CARE PROVISION,Third Party Payments,Revenue
Walsall Council,http://opendatacommunities.org/id/metropolitan-district-council/walsall,WC65-724,29/02/2016,Childrens,CAMBIAN CHILDCARE LIMITED,03/02/2016,"3,272.98",74037-INDEPENDENT FOSTER CARE-OTH AGENCY PROVISION,EXTERNAL FOSTER CARE PROVISION,Third Party Payments,Revenue
Walsall Council,http://opendatacommunities.org/id/metropolitan-district-council/walsall,WC65-725,29/02/2016,Childrens,CAMBIAN CHILDCARE LIMITED,10/02/2016,"3,276.39",74037-INDEPENDENT FOSTER CARE-OTH AGENCY PROVISION,EXTERNAL FOSTER CARE PROVISION,Third Party Payments,Revenue
Walsall Council,http://opendatacommunities.org/id/metropolitan-district-council/walsall,WC65-726,29/02/2016,Childrens,CAMBIAN CHILDCARE LIMITED,10/02/2016,"3,276.39",74037-INDEPENDENT FOSTER CARE-OTH AGENCY PROVISION,EXTERNAL FOSTER CARE PROVISION,Third Party Payments,Revenue
Walsall Council,http://opendatacommunities.org/id/metropolitan-district-council/walsall,WC65-727,29/02/2016,Childrens,CAMBIAN CHILDCARE LIMITED,15/02/2016,"3,361.64",74037-INDEPENDENT FOSTER CARE-OTH AGENCY PROVISION,EXTERNAL FOSTER CARE PROVISION,Third Party Payments,Revenue
Walsall Council,http://opendatacommunities.org/id/metropolitan-district-council/walsall,WC65-728,29/02/2016,Childrens,CAMBIAN CHILDCARE LIMITED,17/02/2016,"13,414.53",74036-EXTERNAL RESIDENTIAL CARE-OTH AGENCY PROVISION,INDEPENDENT RESIDENTIAL HOMES,Third Party Payments,Revenue
Walsall Council,http://opendatacommunities.org/id/metropolitan-district-council/walsall,WC65-729,29/02/2016,Childrens,CAMBIAN CHILDCARE LIMITED,22/02/2016,"13,464.41",74036-EXTERNAL RESIDENTIAL CARE-OTH AGENCY PROVISION,INDEPENDENT RESIDENTIAL HOMES,Third Party Payments,Revenue
Walsall Council,http://opendatacommunities.org/id/metropolitan-district-council/walsall,WC65-730,29/02/2016,Economy & Environment,CAMERA ONE LIMITED,10/02/2016,250,73025-PROFESSIONAL SERVICES-PRIV CONTRACTOR & OTHER AGENCIES,DEPOT,Third Party Payments,Revenue
Walsall Council,http://opendatacommunities.org/id/metropolitan-district-council/walsall,WC65-731,29/02/2016,Economy & Environment,CAMERA ONE LIMITED,18/02/2016,750,01006-SITE WORKS MAIN CONTRACTORS,CFR 923 WILLENHALL SKATE PARK,Capital,Capital
Walsall Council,http://opendatacommunities.org/id/metropolitan-district-council/walsall,WC65-732,29/02/2016,Economy & Environment,CAMERA ONE LIMITED,16/02/2016,"4,900.00",01006-SITE WORKS MAIN CONTRACTORS,CFR 923 WILLENHALL SKATE PARK,Capital,Capital
Walsall Council,http://opendatacommunities.org/id/metropolitan-district-council/walsall,WC65-733,29/02/2016,Economy & Environment,CAMERA ONE LIMITED,16/02/2016,"7,600.00",01006-SITE WORKS MAIN CONTRACTORS,CFR 923 WILLENHALL SKATE PARK,Capital,Capital
Walsall Council,http://opendatacommunities.org/id/metropolitan-district-council/walsall,WC65-734,29/02/2016,Economy & Environment,CAMPBELL ASSOCIATES,18/02/2016,639,60008-MAINTENANCE-FURNITURE & EQUIPMENT,POLLUTION DIVISION,Supplies & Services,Revenue
Walsall Council,http://opendatacommunities.org/id/metropolitan-district-council/walsall,WC65-735,29/02/2016,Childrens,CAMPSBOURNE SCHOOL,19/02/2016,"1,000.00",77300-ISB-FORMULA ALLOCATION,OUT OF BOROUGH SCHOOLS,Transfer Payments,Revenue
Walsall Council,http://opendatacommunities.org/id/metropolitan-district-council/walsall,WC65-736,29/02/2016,Childrens,CAMPSBOURNE SCHOOL,19/02/2016,"1,000.00",77300-ISB-FORMULA ALLOCATION,OUT OF BOROUGH SCHOOLS,Transfer Payments,Revenue
Walsall Council,http://opendatacommunities.org/id/metropolitan-district-council/walsall,WC65-737,29/02/2016,Social Care & Inclusion,REDACTED,09/02/2016,"9,450.00",76422-DIRECT PAYMENTS TO SOCIAL SERVICES CLIENTS,OP COMMISSIONING,Transfer Payments,Revenue
Walsall Council,http://opendatacommunities.org/id/metropolitan-district-council/walsall,WC65-738,29/02/2016,Change and Governance,CAPITA BUSINESS SERVICES LTD 001,01/02/2016,-326.7,63820-RECHARGE FOR MAINTENANCE/APPLICATION COSTS-COMPUTER,APPLICATIONS,Supplies & Services,Revenue
Walsall Council,http://opendatacommunities.org/id/metropolitan-district-council/walsall,WC65-739,29/02/2016,Change and Governance,CAPITA BUSINESS SERVICES LTD 001,18/02/2016,"1,171.50",63800-COMPUTER EQUIPMENT AND SUPPLIES,APPLICATIONS,Supplies & Services,Revenue
Walsall Council,http://opendatacommunities.org/id/metropolitan-district-council/walsall,WC65-740,29/02/2016,Change and Governance,CAPITA IT SERVICES (BSF) LIMITED,26/02/2016,"1,077.12",63800-COMPUTER EQUIPMENT AND SUPPLIES,SIT-CORPORATE SERVICES,Supplies & Services,Revenue
Walsall Council,http://opendatacommunities.org/id/metropolitan-district-council/walsall,WC65-741,29/02/2016,Childrens,CAPITA IT SERVICES (BSF) LIMITED,04/02/2016,"1,201.00",64007-SPECIAL PROJECT-EXPENSES,INFORMATION SERVICES,Supplies & Services,Revenue
Walsall Council,http://opendatacommunities.org/id/metropolitan-district-council/walsall,WC65-742,29/02/2016,Capital Financing,CAPITA TREASURY SOLUTIONS LIMITED,08/02/2016,"4,500.00",63000-PROFESSIONAL FEES AND SERVICES,TREASURY MANAGEMENT COSTS,Supplies & Services,Revenue
Walsall Council,http://opendatacommunities.org/id/metropolitan-district-council/walsall,WC65-743,29/02/2016,Leasing,CAPITA TREASURY SOLUTIONS LIMITED,17/02/2016,"16,160.00",01018-VEHICLES LEASING,VEHICLE MAINTENANCE VEHICLES,Capital,Capital
Walsall Council,http://opendatacommunities.org/id/metropolitan-district-council/walsall,WC65-744,29/02/2016,Childrens,CAPSTONE FOSTER CARE (SOUTH EAST) LIMITED,19/02/2016,338.43,74037-INDEPENDENT FOSTER CARE-OTH AGENCY PROVISION,EXTERNAL FOSTER CARE PROVISION,Third Party Payments,Revenue
Walsall Council,http://opendatacommunities.org/id/metropolitan-district-council/walsall,WC65-745,29/02/2016,Childrens,CAPSTONE FOSTER CARE (SOUTH EAST) LIMITED,03/02/2016,361.77,74037-INDEPENDENT FOSTER CARE-OTH AGENCY PROVISION,EXTERNAL FOSTER CARE PROVISION,Third Party Payments,Revenue
Walsall Council,http://opendatacommunities.org/id/metropolitan-district-council/walsall,WC65-746,29/02/2016,Childrens,CAPSTONE FOSTER CARE (SOUTH EAST) LIMITED,03/02/2016,361.77,74037-INDEPENDENT FOSTER CARE-OTH AGENCY PROVISION,EXTERNAL FOSTER CARE PROVISION,Third Party Payments,Revenue
Walsall Council,http://opendatacommunities.org/id/metropolitan-district-council/walsall,WC65-747,29/02/2016,Childrens,CAPSTONE FOSTER CARE (SOUTH EAST) LIMITED,17/02/2016,"2,591.90",74037-INDEPENDENT FOSTER CARE-OTH AGENCY PROVISION,EXTERNAL FOSTER CARE PROVISION,Third Party Payments,Revenue
Walsall Council,http://opendatacommunities.org/id/metropolitan-district-council/walsall,WC65-748,29/02/2016,Childrens,CAPSTONE FOSTER CARE (SOUTH EAST) LIMITED,19/02/2016,"2,591.90",74037-INDEPENDENT FOSTER CARE-OTH AGENCY PROVISION,EXTERNAL FOSTER CARE PROVISION,Third Party Payments,Revenue
Walsall Council,http://opendatacommunities.org/id/metropolitan-district-council/walsall,WC65-749,29/02/2016,Childrens,CAPSTONE FOSTER CARE (SOUTH EAST) LIMITED,03/02/2016,"2,770.65",74037-INDEPENDENT FOSTER CARE-OTH AGENCY PROVISION,EXTERNAL FOSTER CARE PROVISION,Third Party Payments,Revenue
Walsall Council,http://opendatacommunities.org/id/metropolitan-district-council/walsall,WC65-750,29/02/2016,Childrens,CAPSTONE FOSTER CARE (SOUTH EAST) LIMITED,03/02/2016,"2,770.65",74037-INDEPENDENT FOSTER CARE-OTH AGENCY PROVISION,EXTERNAL FOSTER CARE PROVISION,Third Party Payments,Revenue
Walsall Council,http://opendatacommunities.org/id/metropolitan-district-council/walsall,WC65-751,29/02/2016,Childrens,CAPSTONE FOSTER CARE (SOUTH EAST) LIMITED,17/02/2016,"2,957.59",74037-INDEPENDENT FOSTER CARE-OTH AGENCY PROVISION,EXTERNAL FOSTER CARE PROVISION,Third Party Payments,Revenue
Walsall Council,http://opendatacommunities.org/id/metropolitan-district-council/walsall,WC65-752,29/02/2016,Childrens,CAPSTONE FOSTER CARE (SOUTH EAST) LIMITED,17/02/2016,"2,962.06",74037-INDEPENDENT FOSTER CARE-OTH AGENCY PROVISION,EXTERNAL FOSTER CARE PROVISION,Third Party Payments,Revenue
Walsall Council,http://opendatacommunities.org/id/metropolitan-district-council/walsall,WC65-753,29/02/2016,Childrens,CAPSTONE FOSTER CARE (SOUTH EAST) LIMITED,17/02/2016,"2,962.06",74037-INDEPENDENT FOSTER CARE-OTH AGENCY PROVISION,EXTERNAL FOSTER CARE PROVISION,Third Party Payments,Revenue
Walsall Council,http://opendatacommunities.org/id/metropolitan-district-council/walsall,WC65-754,29/02/2016,Childrens,CAPSTONE FOSTER CARE (SOUTH EAST) LIMITED,03/02/2016,"3,161.56",74037-INDEPENDENT FOSTER CARE-OTH AGENCY PROVISION,EXTERNAL FOSTER CARE PROVISION,Third Party Payments,Revenue
Walsall Council,http://opendatacommunities.org/id/metropolitan-district-council/walsall,WC65-755,29/02/2016,Childrens,CAPSTONE FOSTER CARE (SOUTH EAST) LIMITED,03/02/2016,"3,166.34",74037-INDEPENDENT FOSTER CARE-OTH AGENCY PROVISION,EXTERNAL FOSTER CARE PROVISION,Third Party Payments,Revenue
Walsall Council,http://opendatacommunities.org/id/metropolitan-district-council/walsall,WC65-756,29/02/2016,Childrens,CAPSTONE FOSTER CARE (SOUTH EAST) LIMITED,03/02/2016,"3,166.34",74037-INDEPENDENT FOSTER CARE-OTH AGENCY PROVISION,EXTERNAL FOSTER CARE PROVISION,Third Party Payments,Revenue
Walsall Council,http://opendatacommunities.org/id/metropolitan-district-council/walsall,WC65-757,29/02/2016,Childrens,CAPSTONE FOSTER CARE (SOUTH EAST) LIMITED,17/02/2016,"3,376.47",74037-INDEPENDENT FOSTER CARE-OTH AGENCY PROVISION,EXTERNAL FOSTER CARE PROVISION,Third Party Payments,Revenue
Walsall Council,http://opendatacommunities.org/id/metropolitan-district-council/walsall,WC65-758,29/02/2016,Childrens,CAPSTONE FOSTER CARE (SOUTH EAST) LIMITED,17/02/2016,"3,536.22",74037-INDEPENDENT FOSTER CARE-OTH AGENCY PROVISION,EXTERNAL FOSTER CARE PROVISION,Third Party Payments,Revenue
Walsall Council,http://opendatacommunities.org/id/metropolitan-district-council/walsall,WC65-759,29/02/2016,Childrens,CAPSTONE FOSTER CARE (SOUTH EAST) LIMITED,03/02/2016,"3,609.33",74037-INDEPENDENT FOSTER CARE-OTH AGENCY PROVISION,EXTERNAL FOSTER CARE PROVISION,Third Party Payments,Revenue
Walsall Council,http://opendatacommunities.org/id/metropolitan-district-council/walsall,WC65-760,29/02/2016,Childrens,CAPSTONE FOSTER CARE (SOUTH EAST) LIMITED,03/02/2016,"3,780.10",74037-INDEPENDENT FOSTER CARE-OTH AGENCY PROVISION,EXTERNAL FOSTER CARE PROVISION,Third Party Payments,Revenue
Walsall Council,http://opendatacommunities.org/id/metropolitan-district-council/walsall,WC65-761,29/02/2016,Social Care & Inclusion,CARE & MANAGEMENT SERVICES LTD,24/02/2016,"5,934.26",73373-RESIDENTIAL & NURSING CARE PLACEMENTS,MH COMMISSIONING,Third Party Payments,Revenue
